{"text_format":"1","workbook":"xlsx","n_sheets":3,"sheets":["Start","Checklist","Types"],"not_rendered":{"charts":0,"images":1,"macros":1,"external_links":0,"defined_names":2,"comments":0,"pivot_tables":0},"unopened":[],"bounds":{"document_bytes":16777216,"sheet_cells":100000,"rows_first":2000,"rows_last":500,"rows_between":2000,"halvings":0,"cell_chars":16384,"cell_head_chars":4096},"cells_cut":0,"cells_raw":0,"read":"whole","date_system":"1900"}

{"sheet":"Start","index":0,"n_rows":19,"n_cols":4,"rows_kept":19,"cut":false,"hidden":false,"merged":[[6,3,20,3]]}
[{"$error":"#VALUE!"}]
["OKVIZ Rating Checklist"]
["Version 2.1.1"]
[]
[]
["Instructions",null,null,"JSON"]
["To Update a Rating"]
["(Macros required)","1. Paste an existing rating JSON in the \"JSON\" cell"]
[null,"2. Change the  \"Choose\" column values in the Checklist"]
[null,"3. Copy the content of the \"JSON\"cell and send it via email"]
[]
["To Create a new Rating"]
[null,"1. Go to the Checklist sheet and insert the Visual Name"]
[null,"2. Insert the Visual Id as found in the OKVIZ Index"]
[null,"3. Choose all the applicable Visual Types before the next step"]
[null,"4. Fill the  \"Choose\" column for each row*"]
[null,"5. Send this full file via email"]
[]
[null,"* If you have disabled the macros, you have to skip the features not related to the visual."]

{"sheet":"Checklist","index":1,"n_rows":718,"n_cols":16,"rows_kept":718,"cut":false,"hidden":false,"merged":[]}
["Visual",null," ","Area","Type","Id","Name","Description","Option1","Option2","Option3","Option4","Option5","Choose","Duplicate","Visible"]
["Visual Id",null," ","Features","*","F00","Latest API","Utilizes the latest Power BI custom visual API.","No","Yes",null,null,null,null,{"$f":"IF(COUNTIFS($F$2:F2, F2, $P$2:P2, TRUE)>1,TRUE,FALSE)","v":false},{"$f":"OR(ISNUMBER(MATCH(Checklist[[#This Row],[Type]], $B$3:$B$22, 0)), Checklist[[#This Row],[Type]] = \"*\")","v":true}]
["Visual Type(s)",null,null,"Features","*","F01","Bookmarks","Allows the visual to be included in Power BI bookmarks for storytelling or saving states.","No","Yes",null,null,null,null,{"$f":"IF(COUNTIFS($F$2:F3, F3, $P$2:P3, TRUE)>1,TRUE,FALSE)","v":false},{"$f":"OR(ISNUMBER(MATCH(Checklist[[#This Row],[Type]], $B$3:$B$22, 0)), Checklist[[#This Row],[Type]] = \"*\")","v":true}]
[null,null,null,"Features","*","F02","Highlight","Supports highlighting data points when interacting with other visuals.","No","Yes",null,null,null,null,{"$f":"IF(COUNTIFS($F$2:F4, F4, $P$2:P4, TRUE)>1,TRUE,FALSE)","v":false},{"$f":"OR(ISNUMBER(MATCH(Checklist[[#This Row],[Type]], $B$3:$B$22, 0)), Checklist[[#This Row],[Type]] = \"*\")","v":true}]
[null,null,null,"Features","*","F03","Data Point Selection","Allows users to interact with data points for more details or cross-filtering.","No","Yes",null,null,null,null,{"$f":"IF(COUNTIFS($F$2:F5, F5, $P$2:P5, TRUE)>1,TRUE,FALSE)","v":false},{"$f":"OR(ISNUMBER(MATCH(Checklist[[#This Row],[Type]], $B$3:$B$22, 0)), Checklist[[#This Row],[Type]] = \"*\")","v":true}]
[null,null,null,"Features","*","F03.1","Data Point Multiple Selection","Allows users to select multiple data points.","No","Yes",null,null,null,null,{"$f":"IF(COUNTIFS($F$2:F6, F6, $P$2:P6, TRUE)>1,TRUE,FALSE)","v":false},{"$f":"OR(ISNUMBER(MATCH(Checklist[[#This Row],[Type]], $B$3:$B$22, 0)), Checklist[[#This Row],[Type]] = \"*\")","v":true}]
[null,null,null,"Features","*","F04","Conditional Formatting","Allows dynamic conditional formatting based on data values or conditions.","Not available","Power BI or Custom System",null,null,null,null,{"$f":"IF(COUNTIFS($F$2:F7, F7, $P$2:P7, TRUE)>1,TRUE,FALSE)","v":false},{"$f":"OR(ISNUMBER(MATCH(Checklist[[#This Row],[Type]], $B$3:$B$22, 0)), Checklist[[#This Row],[Type]] = \"*\")","v":true}]
[null,null,null,"Features","*","F05","Tooltips","Displays additional information when hovering over data points.","No","Yes",null,null,null,null,{"$f":"IF(COUNTIFS($F$2:F8, F8, $P$2:P8, TRUE)>1,TRUE,FALSE)","v":false},{"$f":"OR(ISNUMBER(MATCH(Checklist[[#This Row],[Type]], $B$3:$B$22, 0)), Checklist[[#This Row],[Type]] = \"*\")","v":true}]
[null,null,null,"Features","*","F05.1","Report Tooltips","Supports custom report page tooltips.","No","Yes",null,null,null,null,{"$f":"IF(COUNTIFS($F$2:F9, F9, $P$2:P9, TRUE)>1,TRUE,FALSE)","v":false},{"$f":"OR(ISNUMBER(MATCH(Checklist[[#This Row],[Type]], $B$3:$B$22, 0)), Checklist[[#This Row],[Type]] = \"*\")","v":true}]
[null,null,null,"Features","*","F05.2","Modern Tooltips","Utilizes the latest tooltip design and capabilities.","No","Yes",null,null,null,null,{"$f":"IF(COUNTIFS($F$2:F10, F10, $P$2:P10, TRUE)>1,TRUE,FALSE)","v":false},{"$f":"OR(ISNUMBER(MATCH(Checklist[[#This Row],[Type]], $B$3:$B$22, 0)), Checklist[[#This Row],[Type]] = \"*\")","v":true}]
[null,null,null,"Features","*","F06","Drilldown","Allows users to navigate through hierarchical data levels.","No","Yes",null,null,null,null,{"$f":"IF(COUNTIFS($F$2:F11, F11, $P$2:P11, TRUE)>1,TRUE,FALSE)","v":false},{"$f":"OR(ISNUMBER(MATCH(Checklist[[#This Row],[Type]], $B$3:$B$22, 0)), Checklist[[#This Row],[Type]] = \"*\")","v":true}]
[null,null,null,"Features","*","F07","Subtotals API (for Matrix Mapping)","Supports the Subtotals API for matrix visuals so to properly display subtotals for aggregated data.","No","Yes",null,null,null,null,{"$f":"IF(COUNTIFS($F$2:F12, F12, $P$2:P12, TRUE)>1,TRUE,FALSE)","v":false},{"$f":"OR(ISNUMBER(MATCH(Checklist[[#This Row],[Type]], $B$3:$B$22, 0)), Checklist[[#This Row],[Type]] = \"*\")","v":true}]
[null,null,null,"Features","*","F08","Sync Slicers (for Slicers)","Supports syncing slicers across multiple pages.","No","Yes",null,null,null,null,{"$f":"IF(COUNTIFS($F$2:F13, F13, $P$2:P13, TRUE)>1,TRUE,FALSE)","v":false},{"$f":"OR(ISNUMBER(MATCH(Checklist[[#This Row],[Type]], $B$3:$B$22, 0)), Checklist[[#This Row],[Type]] = \"*\")","v":true}]
[null,null,null,"Features","*","F09","On-Object Formatting","Provides formatting options directly on the visual elements.","No","Yes",null,null,null,null,{"$f":"IF(COUNTIFS($F$2:F14, F14, $P$2:P14, TRUE)>1,TRUE,FALSE)","v":false},{"$f":"OR(ISNUMBER(MATCH(Checklist[[#This Row],[Type]], $B$3:$B$22, 0)), Checklist[[#This Row],[Type]] = \"*\")","v":true}]
[null,null,null,"Features","*","F10","Data Mapping","Connect data fields to visual properties for data visualization.","No","Partially","Yes",null,null,null,{"$f":"IF(COUNTIFS($F$2:F15, F15, $P$2:P15, TRUE)>1,TRUE,FALSE)","v":false},{"$f":"OR(ISNUMBER(MATCH(Checklist[[#This Row],[Type]], $B$3:$B$22, 0)), Checklist[[#This Row],[Type]] = \"*\")","v":true}]
[null,null,null,"Features","*","F11","Dynamic Format Strings","Supports dynamic format strings as defined by DAX expressions or Calculation Groups.","No","Yes",null,null,null,null,{"$f":"IF(COUNTIFS($F$2:F16, F16, $P$2:P16, TRUE)>1,TRUE,FALSE)","v":false},{"$f":"OR(ISNUMBER(MATCH(Checklist[[#This Row],[Type]], $B$3:$B$22, 0)), Checklist[[#This Row],[Type]] = \"*\")","v":true}]
[null,null,null,"Features","*","F12","Colors Customization","Supports color customization to differentiate data points or categories.","No","Yes",null,null,null,null,{"$f":"IF(COUNTIFS($F$2:F17, F17, $P$2:P17, TRUE)>1,TRUE,FALSE)","v":false},{"$f":"OR(ISNUMBER(MATCH(Checklist[[#This Row],[Type]], $B$3:$B$22, 0)), Checklist[[#This Row],[Type]] = \"*\")","v":true}]
[null,null,null,"Features","*","F13","Templates","Possibility to export and import reusable templates.","No","Yes",null,null,null,null,{"$f":"IF(COUNTIFS($F$2:F18, F18, $P$2:P18, TRUE)>1,TRUE,FALSE)","v":false},{"$f":"OR(ISNUMBER(MATCH(Checklist[[#This Row],[Type]], $B$3:$B$22, 0)), Checklist[[#This Row],[Type]] = \"*\")","v":true}]
[null,null,null,"Features","*","F14","Legend","Supports a legend to provide context for data.","No","Yes",null,null,null,null,{"$f":"IF(COUNTIFS($F$2:F19, F19, $P$2:P19, TRUE)>1,TRUE,FALSE)","v":false},{"$f":"OR(ISNUMBER(MATCH(Checklist[[#This Row],[Type]], $B$3:$B$22, 0)), Checklist[[#This Row],[Type]] = \"*\")","v":true}]
[null,null,null,"Features","*","F14.1","Legend Customization","Allows customization of the legend, including position, orientation, title, and font size.","No","Yes",null,null,null,null,{"$f":"IF(COUNTIFS($F$2:F20, F20, $P$2:P20, TRUE)>1,TRUE,FALSE)","v":false},{"$f":"OR(ISNUMBER(MATCH(Checklist[[#This Row],[Type]], $B$3:$B$22, 0)), Checklist[[#This Row],[Type]] = \"*\")","v":true}]
[null,null,null,"Features","*","F15","Data Labels","Enables the display of labels for data points.","No","Yes",null,null,null,null,{"$f":"IF(COUNTIFS($F$2:F21, F21, $P$2:P21, TRUE)>1,TRUE,FALSE)","v":false},{"$f":"OR(ISNUMBER(MATCH(Checklist[[#This Row],[Type]], $B$3:$B$22, 0)), Checklist[[#This Row],[Type]] = \"*\")","v":true}]
[null,null,null,"Features","*","F16","Small Multiples","Supports small multiples to display multiple charts in a grid layout.","No","Yes",null,null,null,null,{"$f":"IF(COUNTIFS($F$2:F22, F22, $P$2:P22, TRUE)>1,TRUE,FALSE)","v":false},{"$f":"OR(ISNUMBER(MATCH(Checklist[[#This Row],[Type]], $B$3:$B$22, 0)), Checklist[[#This Row],[Type]] = \"*\")","v":true}]
[null,null,null,"Features","Arc Diagram","FC.NET01","Node Customization","Allows customization of node size, color, and shape.","No","Yes",null,null,null,null,{"$f":"IF(COUNTIFS($F$2:F23, F23, $P$2:P23, TRUE)>1,TRUE,FALSE)","v":false},{"$f":"OR(ISNUMBER(MATCH(Checklist[[#This Row],[Type]], $B$3:$B$22, 0)), Checklist[[#This Row],[Type]] = \"*\")","v":false}]
[null,null,null,"Features","Arc Diagram","FC.NET01.1","Dynamic Node Customization","Allows customization of node size, color, and shape based on data.","No","Yes",null,null,null,null,{"$f":"IF(COUNTIFS($F$2:F24, F24, $P$2:P24, TRUE)>1,TRUE,FALSE)","v":false},{"$f":"OR(ISNUMBER(MATCH(Checklist[[#This Row],[Type]], $B$3:$B$22, 0)), Checklist[[#This Row],[Type]] = \"*\")","v":false}]
[null,null,null,"Features","Arc Diagram","FC.NET02","Edge Customization","Allows customization of edge thickness, color, and style.","No","Yes",null,null,null,null,{"$f":"IF(COUNTIFS($F$2:F25, F25, $P$2:P25, TRUE)>1,TRUE,FALSE)","v":false},{"$f":"OR(ISNUMBER(MATCH(Checklist[[#This Row],[Type]], $B$3:$B$22, 0)), Checklist[[#This Row],[Type]] = \"*\")","v":false}]
[null,null,null,"Features","Arc Diagram","FC.NET02.1","Dynamic Edge Customization","Allows customization of node size, color, and shape based on data.","No","Yes",null,null,null,null,{"$f":"IF(COUNTIFS($F$2:F26, F26, $P$2:P26, TRUE)>1,TRUE,FALSE)","v":false},{"$f":"OR(ISNUMBER(MATCH(Checklist[[#This Row],[Type]], $B$3:$B$22, 0)), Checklist[[#This Row],[Type]] = \"*\")","v":false}]
[null,null,null,"Features","Arc Diagram","FC.NET03","Node Labels","Enables the display of labels for nodes to provide additional context.","No","Yes",null,null,null,null,{"$f":"IF(COUNTIFS($F$2:F27, F27, $P$2:P27, TRUE)>1,TRUE,FALSE)","v":false},{"$f":"OR(ISNUMBER(MATCH(Checklist[[#This Row],[Type]], $B$3:$B$22, 0)), Checklist[[#This Row],[Type]] = \"*\")","v":false}]
[null,null,null,"Features","Arc Diagram","FC.NET04","Edge Labels","Enables the display of labels for edges to provide additional context.","No","Yes",null,null,null,null,{"$f":"IF(COUNTIFS($F$2:F28, F28, $P$2:P28, TRUE)>1,TRUE,FALSE)","v":false},{"$f":"OR(ISNUMBER(MATCH(Checklist[[#This Row],[Type]], $B$3:$B$22, 0)), Checklist[[#This Row],[Type]] = \"*\")","v":false}]
[null,null,null,"Features","Arc Diagram","FC.NET05","Edge Bundling","Supports edge bundling to reduce visual clutter and improve readability.","No","Yes",null,null,null,null,{"$f":"IF(COUNTIFS($F$2:F29, F29, $P$2:P29, TRUE)>1,TRUE,FALSE)","v":false},{"$f":"OR(ISNUMBER(MATCH(Checklist[[#This Row],[Type]], $B$3:$B$22, 0)), Checklist[[#This Row],[Type]] = \"*\")","v":false}]
[null,null,null,"Features","Arc Diagram","FC.NET07","Node Clustering","Supports grouping nodes into clusters based on data values or conditions.","No","Yes",null,null,null,null,{"$f":"IF(COUNTIFS($F$2:F30, F30, $P$2:P30, TRUE)>1,TRUE,FALSE)","v":false},{"$f":"OR(ISNUMBER(MATCH(Checklist[[#This Row],[Type]], $B$3:$B$22, 0)), Checklist[[#This Row],[Type]] = \"*\")","v":false}]
[null,null,null,"Features","Arc Diagram","FC.NET10","Jittering","Allows data points to be jittered to avoid overlap and improve visibility.","No","Yes",null,null,null,null,{"$f":"IF(COUNTIFS($F$2:F31, F31, $P$2:P31, TRUE)>1,TRUE,FALSE)","v":false},{"$f":"OR(ISNUMBER(MATCH(Checklist[[#This Row],[Type]], $B$3:$B$22, 0)), Checklist[[#This Row],[Type]] = \"*\")","v":false}]
[null,null,null,"Features","Area Chart","FC.CART01","Axis Titles","Allows users to add titles to the X and Y axes for better context.","No","Yes",null,null,null,null,{"$f":"IF(COUNTIFS($F$2:F32, F32, $P$2:P32, TRUE)>1,TRUE,FALSE)","v":false},{"$f":"OR(ISNUMBER(MATCH(Checklist[[#This Row],[Type]], $B$3:$B$22, 0)), Checklist[[#This Row],[Type]] = \"*\")","v":false}]
[null,null,null,"Features","Area Chart","FC.CART02","Axis Customization","Allows customization of the axis labels, tick marks, and scales.","No","Yes",null,null,null,null,{"$f":"IF(COUNTIFS($F$2:F33, F33, $P$2:P33, TRUE)>1,TRUE,FALSE)","v":false},{"$f":"OR(ISNUMBER(MATCH(Checklist[[#This Row],[Type]], $B$3:$B$22, 0)), Checklist[[#This Row],[Type]] = \"*\")","v":false}]
[null,null,null,"Features","Area Chart","FC.CART04","Grid Lines","Supports grid lines to aid in reading data values.","No","Yes",null,null,null,null,{"$f":"IF(COUNTIFS($F$2:F34, F34, $P$2:P34, TRUE)>1,TRUE,FALSE)","v":false},{"$f":"OR(ISNUMBER(MATCH(Checklist[[#This Row],[Type]], $B$3:$B$22, 0)), Checklist[[#This Row],[Type]] = \"*\")","v":false}]
[null,null,null,"Features","Area Chart","FC.CART05","Reference Lines","Supports adding reference lines to highlight specific values or thresholds.","No","Yes",null,null,null,null,{"$f":"IF(COUNTIFS($F$2:F35, F35, $P$2:P35, TRUE)>1,TRUE,FALSE)","v":false},{"$f":"OR(ISNUMBER(MATCH(Checklist[[#This Row],[Type]], $B$3:$B$22, 0)), Checklist[[#This Row],[Type]] = \"*\")","v":false}]
[null,null,null,"Features","Area Chart","FC.CART07","Data Point Markers","Allows users to conditionally format data point markers.","No","Yes",null,null,null,null,{"$f":"IF(COUNTIFS($F$2:F36, F36, $P$2:P36, TRUE)>1,TRUE,FALSE)","v":false},{"$f":"OR(ISNUMBER(MATCH(Checklist[[#This Row],[Type]], $B$3:$B$22, 0)), Checklist[[#This Row],[Type]] = \"*\")","v":false}]
[null,null,null,"Features","Area Chart","FC.CART08","Trend Lines","Supports adding trend lines to visualize data trends.","No","Yes",null,null,null,null,{"$f":"IF(COUNTIFS($F$2:F37, F37, $P$2:P37, TRUE)>1,TRUE,FALSE)","v":false},{"$f":"OR(ISNUMBER(MATCH(Checklist[[#This Row],[Type]], $B$3:$B$22, 0)), Checklist[[#This Row],[Type]] = \"*\")","v":false}]
[null,null,null,"Features","Area Chart","FC.CART09","Pan & Zoom","Supports panning and zooming for better exploration of data.","No","Yes",null,null,null,null,{"$f":"IF(COUNTIFS($F$2:F38, F38, $P$2:P38, TRUE)>1,TRUE,FALSE)","v":false},{"$f":"OR(ISNUMBER(MATCH(Checklist[[#This Row],[Type]], $B$3:$B$22, 0)), Checklist[[#This Row],[Type]] = \"*\")","v":false}]
[null,null,null,"Features","Area Chart","FC.CART10","Dynamic Sorting","Supports sorting data points based on specific columns or measures.","No","Yes",null,null,null,null,{"$f":"IF(COUNTIFS($F$2:F39, F39, $P$2:P39, TRUE)>1,TRUE,FALSE)","v":false},{"$f":"OR(ISNUMBER(MATCH(Checklist[[#This Row],[Type]], $B$3:$B$22, 0)), Checklist[[#This Row],[Type]] = \"*\")","v":false}]
[null,null,null,"Features","Area Chart","FC.CART11","Custom Annotations","Allows users to add custom annotations based on data or conditions.","No","Yes",null,null,null,null,{"$f":"IF(COUNTIFS($F$2:F40, F40, $P$2:P40, TRUE)>1,TRUE,FALSE)","v":false},{"$f":"OR(ISNUMBER(MATCH(Checklist[[#This Row],[Type]], $B$3:$B$22, 0)), Checklist[[#This Row],[Type]] = \"*\")","v":false}]
[null,null,null,"Features","Area Chart","FT.AREA01","Absolute or Percentage Values","Allows users to switch between absolute and percentage values for better comparison.","No","Yes",null,null,null,null,{"$f":"IF(COUNTIFS($F$2:F41, F41, $P$2:P41, TRUE)>1,TRUE,FALSE)","v":false},{"$f":"OR(ISNUMBER(MATCH(Checklist[[#This Row],[Type]], $B$3:$B$22, 0)), Checklist[[#This Row],[Type]] = \"*\")","v":false}]
[null,null,null,"Features","Area Chart","FT.AREA02","Stacked Areas","Supports stacking areas for better comparison of categories.","No","Yes",null,null,null,null,{"$f":"IF(COUNTIFS($F$2:F42, F42, $P$2:P42, TRUE)>1,TRUE,FALSE)","v":false},{"$f":"OR(ISNUMBER(MATCH(Checklist[[#This Row],[Type]], $B$3:$B$22, 0)), Checklist[[#This Row],[Type]] = \"*\")","v":false}]
[null,null,null,"Features","Area Chart","FT.AREA02.1","Stacking Sorting","Supports sorting of stacked areas.","No","Yes",null,null,null,null,{"$f":"IF(COUNTIFS($F$2:F43, F43, $P$2:P43, TRUE)>1,TRUE,FALSE)","v":false},{"$f":"OR(ISNUMBER(MATCH(Checklist[[#This Row],[Type]], $B$3:$B$22, 0)), Checklist[[#This Row],[Type]] = \"*\")","v":false}]
[null,null,null,"Features","Area Chart","FT.AREA03","Curves Smoothing","Supports smoothing curves for better visualization (stepped, linear, etc.)","No","Yes",null,null,null,null,{"$f":"IF(COUNTIFS($F$2:F44, F44, $P$2:P44, TRUE)>1,TRUE,FALSE)","v":false},{"$f":"OR(ISNUMBER(MATCH(Checklist[[#This Row],[Type]], $B$3:$B$22, 0)), Checklist[[#This Row],[Type]] = \"*\")","v":false}]
[null,null,null,"Features","Area Chart","FT.AREA04","Stroke Customization","Allows customization of the stroke color and tickness.","No","Yes",null,null,null,null,{"$f":"IF(COUNTIFS($F$2:F45, F45, $P$2:P45, TRUE)>1,TRUE,FALSE)","v":false},{"$f":"OR(ISNUMBER(MATCH(Checklist[[#This Row],[Type]], $B$3:$B$22, 0)), Checklist[[#This Row],[Type]] = \"*\")","v":false}]
[null,null,null,"Features","Area Chart","FT.AREA05","Category Labels","Enables the display of labels for categories.","No","Yes",null,null,null,null,{"$f":"IF(COUNTIFS($F$2:F46, F46, $P$2:P46, TRUE)>1,TRUE,FALSE)","v":false},{"$f":"OR(ISNUMBER(MATCH(Checklist[[#This Row],[Type]], $B$3:$B$22, 0)), Checklist[[#This Row],[Type]] = \"*\")","v":false}]
[null,null,null,"Features","Bar Chart","FC.CART01","Axis Titles","Allows users to add titles to the X and Y axes for better context.","No","Yes",null,null,null,null,{"$f":"IF(COUNTIFS($F$2:F47, F47, $P$2:P47, TRUE)>1,TRUE,FALSE)","v":false},{"$f":"OR(ISNUMBER(MATCH(Checklist[[#This Row],[Type]], $B$3:$B$22, 0)), Checklist[[#This Row],[Type]] = \"*\")","v":false}]
[null,null,null,"Features","Bar Chart","FC.CART02","Axis Customization","Allows customization of the axis labels, tick marks, and scales.","No","Yes",null,null,null,null,{"$f":"IF(COUNTIFS($F$2:F48, F48, $P$2:P48, TRUE)>1,TRUE,FALSE)","v":false},{"$f":"OR(ISNUMBER(MATCH(Checklist[[#This Row],[Type]], $B$3:$B$22, 0)), Checklist[[#This Row],[Type]] = \"*\")","v":false}]
[null,null,null,"Features","Bar Chart","FC.CART04","Grid Lines","Supports grid lines to aid in reading data values.","No","Yes",null,null,null,null,{"$f":"IF(COUNTIFS($F$2:F49, F49, $P$2:P49, TRUE)>1,TRUE,FALSE)","v":false},{"$f":"OR(ISNUMBER(MATCH(Checklist[[#This Row],[Type]], $B$3:$B$22, 0)), Checklist[[#This Row],[Type]] = \"*\")","v":false}]
[null,null,null,"Features","Bar Chart","FC.CART05","Reference Lines","Supports adding reference lines to highlight specific values or thresholds.","No","Yes",null,null,null,null,{"$f":"IF(COUNTIFS($F$2:F50, F50, $P$2:P50, TRUE)>1,TRUE,FALSE)","v":false},{"$f":"OR(ISNUMBER(MATCH(Checklist[[#This Row],[Type]], $B$3:$B$22, 0)), Checklist[[#This Row],[Type]] = \"*\")","v":false}]
[null,null,null,"Features","Bar Chart","FC.CART07","Data Point Markers","Allows users to conditionally format data point markers.","No","Yes",null,null,null,null,{"$f":"IF(COUNTIFS($F$2:F51, F51, $P$2:P51, TRUE)>1,TRUE,FALSE)","v":false},{"$f":"OR(ISNUMBER(MATCH(Checklist[[#This Row],[Type]], $B$3:$B$22, 0)), Checklist[[#This Row],[Type]] = \"*\")","v":false}]
[null,null,null,"Features","Bar Chart","FC.CART08","Trend Lines","Supports adding trend lines to visualize data trends.","No","Yes",null,null,null,null,{"$f":"IF(COUNTIFS($F$2:F52, F52, $P$2:P52, TRUE)>1,TRUE,FALSE)","v":false},{"$f":"OR(ISNUMBER(MATCH(Checklist[[#This Row],[Type]], $B$3:$B$22, 0)), Checklist[[#This Row],[Type]] = \"*\")","v":false}]
[null,null,null,"Features","Bar Chart","FC.CART09","Pan & Zoom","Supports panning and zooming for better exploration of data.","No","Yes",null,null,null,null,{"$f":"IF(COUNTIFS($F$2:F53, F53, $P$2:P53, TRUE)>1,TRUE,FALSE)","v":false},{"$f":"OR(ISNUMBER(MATCH(Checklist[[#This Row],[Type]], $B$3:$B$22, 0)), Checklist[[#This Row],[Type]] = \"*\")","v":false}]
[null,null,null,"Features","Bar Chart","FC.CART10","Dynamic Sorting","Supports sorting data points based on specific columns or measures.","No","Yes",null,null,null,null,{"$f":"IF(COUNTIFS($F$2:F54, F54, $P$2:P54, TRUE)>1,TRUE,FALSE)","v":false},{"$f":"OR(ISNUMBER(MATCH(Checklist[[#This Row],[Type]], $B$3:$B$22, 0)), Checklist[[#This Row],[Type]] = \"*\")","v":false}]
[null,null,null,"Features","Bar Chart","FC.CART11","Custom Annotations","Allows users to add custom annotations based on data or conditions.","No","Yes",null,null,null,null,{"$f":"IF(COUNTIFS($F$2:F55, F55, $P$2:P55, TRUE)>1,TRUE,FALSE)","v":false},{"$f":"OR(ISNUMBER(MATCH(Checklist[[#This Row],[Type]], $B$3:$B$22, 0)), Checklist[[#This Row],[Type]] = \"*\")","v":false}]
[null,null,null,"Features","Bar Chart","FT.BAR01","Multiple Orientations","Supports both horizontal and vertical orientations.","No","Yes",null,null,null,null,{"$f":"IF(COUNTIFS($F$2:F56, F56, $P$2:P56, TRUE)>1,TRUE,FALSE)","v":false},{"$f":"OR(ISNUMBER(MATCH(Checklist[[#This Row],[Type]], $B$3:$B$22, 0)), Checklist[[#This Row],[Type]] = \"*\")","v":false}]
[null,null,null,"Features","Bar Chart","FT.BAR02","Stacked Bars","Supports stacking bars.","No","Yes",null,null,null,null,{"$f":"IF(COUNTIFS($F$2:F57, F57, $P$2:P57, TRUE)>1,TRUE,FALSE)","v":false},{"$f":"OR(ISNUMBER(MATCH(Checklist[[#This Row],[Type]], $B$3:$B$22, 0)), Checklist[[#This Row],[Type]] = \"*\")","v":false}]
[null,null,null,"Features","Bar Chart","FT.BAR02.1","Stacking Sorting","Supports sorting of stacked bars.","No","Yes",null,null,null,null,{"$f":"IF(COUNTIFS($F$2:F58, F58, $P$2:P58, TRUE)>1,TRUE,FALSE)","v":false},{"$f":"OR(ISNUMBER(MATCH(Checklist[[#This Row],[Type]], $B$3:$B$22, 0)), Checklist[[#This Row],[Type]] = \"*\")","v":false}]
[null,null,null,"Features","Bar Chart","FT.BAR03","Clustered Bars","Supports clustering bars.","No","Yes",null,null,null,null,{"$f":"IF(COUNTIFS($F$2:F59, F59, $P$2:P59, TRUE)>1,TRUE,FALSE)","v":false},{"$f":"OR(ISNUMBER(MATCH(Checklist[[#This Row],[Type]], $B$3:$B$22, 0)), Checklist[[#This Row],[Type]] = \"*\")","v":false}]
[null,null,null,"Features","Bar Chart","FT.BAR04","Hide Zero Values","Option to hide bars with zero/blank values.","No","Yes",null,null,null,null,{"$f":"IF(COUNTIFS($F$2:F60, F60, $P$2:P60, TRUE)>1,TRUE,FALSE)","v":false},{"$f":"OR(ISNUMBER(MATCH(Checklist[[#This Row],[Type]], $B$3:$B$22, 0)), Checklist[[#This Row],[Type]] = \"*\")","v":false}]
[null,null,null,"Features","Chart on Map","FC.MAP01","Map Styles","Provides options for customizing map styles and themes. E.g: Light, Dark, Streets, Satellite, etc.","No","Yes",null,null,null,null,{"$f":"IF(COUNTIFS($F$2:F61, F61, $P$2:P61, TRUE)>1,TRUE,FALSE)","v":false},{"$f":"OR(ISNUMBER(MATCH(Checklist[[#This Row],[Type]], $B$3:$B$22, 0)), Checklist[[#This Row],[Type]] = \"*\")","v":false}]
[null,null,null,"Features","Chart on Map","FC.MAP02","Map Services Integration","Allows integration with map services for detailed mapping capabilities.","No","Yes",null,null,null,null,{"$f":"IF(COUNTIFS($F$2:F62, F62, $P$2:P62, TRUE)>1,TRUE,FALSE)","v":false},{"$f":"OR(ISNUMBER(MATCH(Checklist[[#This Row],[Type]], $B$3:$B$22, 0)), Checklist[[#This Row],[Type]] = \"*\")","v":false}]
[null,null,null,"Features","Chart on Map","FC.MAP02.1","Offline Maps","Supports offline maps for disconnected environments.","No","Yes",null,null,null,null,{"$f":"IF(COUNTIFS($F$2:F63, F63, $P$2:P63, TRUE)>1,TRUE,FALSE)","v":false},{"$f":"OR(ISNUMBER(MATCH(Checklist[[#This Row],[Type]], $B$3:$B$22, 0)), Checklist[[#This Row],[Type]] = \"*\")","v":false}]
[null,null,null,"Features","Chart on Map","FC.MAP03","Location Data Integration","Supports integration with coordinates (e.g. latitude, longitude) and categorical location data (e.g. city name, state name).","No","Yes",null,null,null,null,{"$f":"IF(COUNTIFS($F$2:F64, F64, $P$2:P64, TRUE)>1,TRUE,FALSE)","v":false},{"$f":"OR(ISNUMBER(MATCH(Checklist[[#This Row],[Type]], $B$3:$B$22, 0)), Checklist[[#This Row],[Type]] = \"*\")","v":false}]
[null,null,null,"Features","Chart on Map","FC.MAP03.1","Manual Mapping","Supports manual mapping of categorical location data.","No","Yes",null,null,null,null,{"$f":"IF(COUNTIFS($F$2:F65, F65, $P$2:P65, TRUE)>1,TRUE,FALSE)","v":false},{"$f":"OR(ISNUMBER(MATCH(Checklist[[#This Row],[Type]], $B$3:$B$22, 0)), Checklist[[#This Row],[Type]] = \"*\")","v":false}]
[null,null,null,"Features","Chart on Map","FC.MAP04","Jittering","Allows data points to be jittered to avoid overlap and improve visibility.","No","Yes",null,null,null,null,{"$f":"IF(COUNTIFS($F$2:F66, F66, $P$2:P66, TRUE)>1,TRUE,FALSE)","v":false},{"$f":"OR(ISNUMBER(MATCH(Checklist[[#This Row],[Type]], $B$3:$B$22, 0)), Checklist[[#This Row],[Type]] = \"*\")","v":false}]
[null,null,null,"Features","Chart on Map","FC.MAP05","Map Annotations","Allows users to add custom annotations to the map.","No","Yes",null,null,null,null,{"$f":"IF(COUNTIFS($F$2:F67, F67, $P$2:P67, TRUE)>1,TRUE,FALSE)","v":false},{"$f":"OR(ISNUMBER(MATCH(Checklist[[#This Row],[Type]], $B$3:$B$22, 0)), Checklist[[#This Row],[Type]] = \"*\")","v":false}]
[null,null,null,"Features","Chart on Map","FC.MAP06","Pan & Zoom","Supports panning and zooming for better exploration of data.","No","Yes",null,null,null,null,{"$f":"IF(COUNTIFS($F$2:F68, F68, $P$2:P68, TRUE)>1,TRUE,FALSE)","v":false},{"$f":"OR(ISNUMBER(MATCH(Checklist[[#This Row],[Type]], $B$3:$B$22, 0)), Checklist[[#This Row],[Type]] = \"*\")","v":false}]
[null,null,null,"Features","Chart on Map","FT.CMAP01","Bar Charts","Allows the display of bar charts on maps.","No","Yes",null,null,null,null,{"$f":"IF(COUNTIFS($F$2:F69, F69, $P$2:P69, TRUE)>1,TRUE,FALSE)","v":false},{"$f":"OR(ISNUMBER(MATCH(Checklist[[#This Row],[Type]], $B$3:$B$22, 0)), Checklist[[#This Row],[Type]] = \"*\")","v":false}]
[null,null,null,"Features","Chart on Map","FT.CMAP02","Pie/Donut Charts","Allows the display of pie or donut charts on maps.","No","Yes",null,null,null,null,{"$f":"IF(COUNTIFS($F$2:F70, F70, $P$2:P70, TRUE)>1,TRUE,FALSE)","v":false},{"$f":"OR(ISNUMBER(MATCH(Checklist[[#This Row],[Type]], $B$3:$B$22, 0)), Checklist[[#This Row],[Type]] = \"*\")","v":false}]
[null,null,null,"Features","Chart on Map","FT.CMAP03","Sparklines","Allows the display of sparklines on maps.","No","Yes",null,null,null,null,{"$f":"IF(COUNTIFS($F$2:F71, F71, $P$2:P71, TRUE)>1,TRUE,FALSE)","v":false},{"$f":"OR(ISNUMBER(MATCH(Checklist[[#This Row],[Type]], $B$3:$B$22, 0)), Checklist[[#This Row],[Type]] = \"*\")","v":false}]
[null,null,null,"Features","Beeswarm Chart","FC.CART01","Axis Titles","Allows users to add titles to the X and Y axes for better context.","No","Yes",null,null,null,null,{"$f":"IF(COUNTIFS($F$2:F72, F72, $P$2:P72, TRUE)>1,TRUE,FALSE)","v":false},{"$f":"OR(ISNUMBER(MATCH(Checklist[[#This Row],[Type]], $B$3:$B$22, 0)), Checklist[[#This Row],[Type]] = \"*\")","v":false}]
[null,null,null,"Features","Beeswarm Chart","FC.CART02","Axis Customization","Allows customization of the axis labels, tick marks, and scales.","No","Yes",null,null,null,null,{"$f":"IF(COUNTIFS($F$2:F73, F73, $P$2:P73, TRUE)>1,TRUE,FALSE)","v":false},{"$f":"OR(ISNUMBER(MATCH(Checklist[[#This Row],[Type]], $B$3:$B$22, 0)), Checklist[[#This Row],[Type]] = \"*\")","v":false}]
[null,null,null,"Features","Beeswarm Chart","FC.CART04","Grid Lines","Supports grid lines to aid in reading data values.","No","Yes",null,null,null,null,{"$f":"IF(COUNTIFS($F$2:F74, F74, $P$2:P74, TRUE)>1,TRUE,FALSE)","v":false},{"$f":"OR(ISNUMBER(MATCH(Checklist[[#This Row],[Type]], $B$3:$B$22, 0)), Checklist[[#This Row],[Type]] = \"*\")","v":false}]
[null,null,null,"Features","Beeswarm Chart","FC.CART05","Reference Lines","Supports adding reference lines to highlight specific values or thresholds.","No","Yes",null,null,null,null,{"$f":"IF(COUNTIFS($F$2:F75, F75, $P$2:P75, TRUE)>1,TRUE,FALSE)","v":false},{"$f":"OR(ISNUMBER(MATCH(Checklist[[#This Row],[Type]], $B$3:$B$22, 0)), Checklist[[#This Row],[Type]] = \"*\")","v":false}]
[null,null,null,"Features","Beeswarm Chart","FC.CART07","Data Point Markers","Allows users to conditionally format data point markers.","No","Yes",null,null,null,null,{"$f":"IF(COUNTIFS($F$2:F76, F76, $P$2:P76, TRUE)>1,TRUE,FALSE)","v":false},{"$f":"OR(ISNUMBER(MATCH(Checklist[[#This Row],[Type]], $B$3:$B$22, 0)), Checklist[[#This Row],[Type]] = \"*\")","v":false}]
[null,null,null,"Features","Beeswarm Chart","FT.BEES01","Jittering","Allows data points to be jittered to avoid overlap and improve visibility.","No","Yes",null,null,null,null,{"$f":"IF(COUNTIFS($F$2:F77, F77, $P$2:P77, TRUE)>1,TRUE,FALSE)","v":false},{"$f":"OR(ISNUMBER(MATCH(Checklist[[#This Row],[Type]], $B$3:$B$22, 0)), Checklist[[#This Row],[Type]] = \"*\")","v":false}]
[null,null,null,"Features","Beeswarm Chart","FT.BEES02","Group Differentiation","Supports visual differentiation between groups or categories within the data.","No","Yes",null,null,null,null,{"$f":"IF(COUNTIFS($F$2:F78, F78, $P$2:P78, TRUE)>1,TRUE,FALSE)","v":false},{"$f":"OR(ISNUMBER(MATCH(Checklist[[#This Row],[Type]], $B$3:$B$22, 0)), Checklist[[#This Row],[Type]] = \"*\")","v":false}]
[null,null,null,"Features","Bowtie Chart","FC.FLOW01","Labels on Flow Lines/Stages","Provides additional information about transitions.","No","Yes",null,null,null,null,{"$f":"IF(COUNTIFS($F$2:F79, F79, $P$2:P79, TRUE)>1,TRUE,FALSE)","v":false},{"$f":"OR(ISNUMBER(MATCH(Checklist[[#This Row],[Type]], $B$3:$B$22, 0)), Checklist[[#This Row],[Type]] = \"*\")","v":false}]
[null,null,null,"Features","Bowtie Chart","FC.FLOW03","Swimlanes","Allows to divide the chart into sections to represent different actors or departments.","No","Yes",null,null,null,null,{"$f":"IF(COUNTIFS($F$2:F80, F80, $P$2:P80, TRUE)>1,TRUE,FALSE)","v":false},{"$f":"OR(ISNUMBER(MATCH(Checklist[[#This Row],[Type]], $B$3:$B$22, 0)), Checklist[[#This Row],[Type]] = \"*\")","v":false}]
[null,null,null,"Features","Bowtie Chart","FC.FLOW05","Background Grid","Allow to display a grid to align elements neatly.","No","Yes",null,null,null,null,{"$f":"IF(COUNTIFS($F$2:F81, F81, $P$2:P81, TRUE)>1,TRUE,FALSE)","v":false},{"$f":"OR(ISNUMBER(MATCH(Checklist[[#This Row],[Type]], $B$3:$B$22, 0)), Checklist[[#This Row],[Type]] = \"*\")","v":false}]
[null,null,null,"Features","Box & Whisker Plot","FC.CART01","Axis Titles","Allows users to add titles to the X and Y axes for better context.","No","Yes",null,null,null,null,{"$f":"IF(COUNTIFS($F$2:F82, F82, $P$2:P82, TRUE)>1,TRUE,FALSE)","v":false},{"$f":"OR(ISNUMBER(MATCH(Checklist[[#This Row],[Type]], $B$3:$B$22, 0)), Checklist[[#This Row],[Type]] = \"*\")","v":false}]
[null,null,null,"Features","Box & Whisker Plot","FC.CART02","Axis Customization","Allows customization of the axis labels, tick marks, and scales.","No","Yes",null,null,null,null,{"$f":"IF(COUNTIFS($F$2:F83, F83, $P$2:P83, TRUE)>1,TRUE,FALSE)","v":false},{"$f":"OR(ISNUMBER(MATCH(Checklist[[#This Row],[Type]], $B$3:$B$22, 0)), Checklist[[#This Row],[Type]] = \"*\")","v":false}]
[null,null,null,"Features","Box & Whisker Plot","FC.CART04","Grid Lines","Supports grid lines to aid in reading data values.","No","Yes",null,null,null,null,{"$f":"IF(COUNTIFS($F$2:F84, F84, $P$2:P84, TRUE)>1,TRUE,FALSE)","v":false},{"$f":"OR(ISNUMBER(MATCH(Checklist[[#This Row],[Type]], $B$3:$B$22, 0)), Checklist[[#This Row],[Type]] = \"*\")","v":false}]
[null,null,null,"Features","Box & Whisker Plot","FC.CART05","Reference Lines","Supports adding reference lines to highlight specific values or thresholds.","No","Yes",null,null,null,null,{"$f":"IF(COUNTIFS($F$2:F85, F85, $P$2:P85, TRUE)>1,TRUE,FALSE)","v":false},{"$f":"OR(ISNUMBER(MATCH(Checklist[[#This Row],[Type]], $B$3:$B$22, 0)), Checklist[[#This Row],[Type]] = \"*\")","v":false}]
[null,null,null,"Features","Box & Whisker Plot","FC.CART07","Data Point Markers","Allows users to conditionally format data point markers.","No","Yes",null,null,null,null,{"$f":"IF(COUNTIFS($F$2:F86, F86, $P$2:P86, TRUE)>1,TRUE,FALSE)","v":false},{"$f":"OR(ISNUMBER(MATCH(Checklist[[#This Row],[Type]], $B$3:$B$22, 0)), Checklist[[#This Row],[Type]] = \"*\")","v":false}]
[null,null,null,"Features","Box & Whisker Plot","FC.CART08","Trend Lines","Supports adding trend lines to visualize data trends.","No","Yes",null,null,null,null,{"$f":"IF(COUNTIFS($F$2:F87, F87, $P$2:P87, TRUE)>1,TRUE,FALSE)","v":false},{"$f":"OR(ISNUMBER(MATCH(Checklist[[#This Row],[Type]], $B$3:$B$22, 0)), Checklist[[#This Row],[Type]] = \"*\")","v":false}]
[null,null,null,"Features","Box & Whisker Plot","FC.CART09","Pan & Zoom","Supports panning and zooming for better exploration of data.","No","Yes",null,null,null,null,{"$f":"IF(COUNTIFS($F$2:F88, F88, $P$2:P88, TRUE)>1,TRUE,FALSE)","v":false},{"$f":"OR(ISNUMBER(MATCH(Checklist[[#This Row],[Type]], $B$3:$B$22, 0)), Checklist[[#This Row],[Type]] = \"*\")","v":false}]
[null,null,null,"Features","Box & Whisker Plot","FC.CART10","Dynamic Sorting","Supports sorting data points based on specific columns or measures.","No","Yes",null,null,null,null,{"$f":"IF(COUNTIFS($F$2:F89, F89, $P$2:P89, TRUE)>1,TRUE,FALSE)","v":false},{"$f":"OR(ISNUMBER(MATCH(Checklist[[#This Row],[Type]], $B$3:$B$22, 0)), Checklist[[#This Row],[Type]] = \"*\")","v":false}]
[null,null,null,"Features","Box & Whisker Plot","FC.CART11","Custom Annotations","Allows users to add custom annotations based on data or conditions.","No","Yes",null,null,null,null,{"$f":"IF(COUNTIFS($F$2:F90, F90, $P$2:P90, TRUE)>1,TRUE,FALSE)","v":false},{"$f":"OR(ISNUMBER(MATCH(Checklist[[#This Row],[Type]], $B$3:$B$22, 0)), Checklist[[#This Row],[Type]] = \"*\")","v":false}]
[null,null,null,"Features","Box & Whisker Plot","FT.BOX01","Quartile Coloring","Possibility to individually color upper and lower quartile.","No","Yes",null,null,null,null,{"$f":"IF(COUNTIFS($F$2:F91, F91, $P$2:P91, TRUE)>1,TRUE,FALSE)","v":false},{"$f":"OR(ISNUMBER(MATCH(Checklist[[#This Row],[Type]], $B$3:$B$22, 0)), Checklist[[#This Row],[Type]] = \"*\")","v":false}]
[null,null,null,"Features","Box & Whisker Plot","FT.BOX02","Multiple Orientations","Supports both horizontal and vertical orientations.","No","Yes",null,null,null,null,{"$f":"IF(COUNTIFS($F$2:F92, F92, $P$2:P92, TRUE)>1,TRUE,FALSE)","v":false},{"$f":"OR(ISNUMBER(MATCH(Checklist[[#This Row],[Type]], $B$3:$B$22, 0)), Checklist[[#This Row],[Type]] = \"*\")","v":false}]
[null,null,null,"Features","Box & Whisker Plot","FT.BOX03","Jittering","Allows data points to be jittered to avoid overlap and improve visibility.","No","Yes",null,null,null,null,{"$f":"IF(COUNTIFS($F$2:F93, F93, $P$2:P93, TRUE)>1,TRUE,FALSE)","v":false},{"$f":"OR(ISNUMBER(MATCH(Checklist[[#This Row],[Type]], $B$3:$B$22, 0)), Checklist[[#This Row],[Type]] = \"*\")","v":false}]
[null,null,null,"Features","Box & Whisker Plot","FT.BOX04","Data Point Borders","Allows users to customize data points border.","No","Yes",null,null,null,null,{"$f":"IF(COUNTIFS($F$2:F94, F94, $P$2:P94, TRUE)>1,TRUE,FALSE)","v":false},{"$f":"OR(ISNUMBER(MATCH(Checklist[[#This Row],[Type]], $B$3:$B$22, 0)), Checklist[[#This Row],[Type]] = \"*\")","v":false}]
[null,null,null,"Features","Bubble/Scatter Chart","FC.CART01","Axis Titles","Allows users to add titles to the X and Y axes for better context.","No","Yes",null,null,null,null,{"$f":"IF(COUNTIFS($F$2:F95, F95, $P$2:P95, TRUE)>1,TRUE,FALSE)","v":false},{"$f":"OR(ISNUMBER(MATCH(Checklist[[#This Row],[Type]], $B$3:$B$22, 0)), Checklist[[#This Row],[Type]] = \"*\")","v":false}]
[null,null,null,"Features","Bubble/Scatter Chart","FC.CART02","Axis Customization","Allows customization of the axis labels, tick marks, and scales.","No","Yes",null,null,null,null,{"$f":"IF(COUNTIFS($F$2:F96, F96, $P$2:P96, TRUE)>1,TRUE,FALSE)","v":false},{"$f":"OR(ISNUMBER(MATCH(Checklist[[#This Row],[Type]], $B$3:$B$22, 0)), Checklist[[#This Row],[Type]] = \"*\")","v":false}]
[null,null,null,"Features","Bubble/Scatter Chart","FC.CART04","Grid Lines","Supports grid lines to aid in reading data values.","No","Yes",null,null,null,null,{"$f":"IF(COUNTIFS($F$2:F97, F97, $P$2:P97, TRUE)>1,TRUE,FALSE)","v":false},{"$f":"OR(ISNUMBER(MATCH(Checklist[[#This Row],[Type]], $B$3:$B$22, 0)), Checklist[[#This Row],[Type]] = \"*\")","v":false}]
[null,null,null,"Features","Bubble/Scatter Chart","FC.CART05","Reference Lines","Supports adding reference lines to highlight specific values or thresholds.","No","Yes",null,null,null,null,{"$f":"IF(COUNTIFS($F$2:F98, F98, $P$2:P98, TRUE)>1,TRUE,FALSE)","v":false},{"$f":"OR(ISNUMBER(MATCH(Checklist[[#This Row],[Type]], $B$3:$B$22, 0)), Checklist[[#This Row],[Type]] = \"*\")","v":false}]
[null,null,null,"Features","Bubble/Scatter Chart","FC.CART07","Data Point Markers","Allows users to conditionally format data point markers.","No","Yes",null,null,null,null,{"$f":"IF(COUNTIFS($F$2:F99, F99, $P$2:P99, TRUE)>1,TRUE,FALSE)","v":false},{"$f":"OR(ISNUMBER(MATCH(Checklist[[#This Row],[Type]], $B$3:$B$22, 0)), Checklist[[#This Row],[Type]] = \"*\")","v":false}]
[null,null,null,"Features","Bubble/Scatter Chart","FC.CART08","Trend Lines","Supports adding trend lines to visualize data trends.","No","Yes",null,null,null,null,{"$f":"IF(COUNTIFS($F$2:F100, F100, $P$2:P100, TRUE)>1,TRUE,FALSE)","v":false},{"$f":"OR(ISNUMBER(MATCH(Checklist[[#This Row],[Type]], $B$3:$B$22, 0)), Checklist[[#This Row],[Type]] = \"*\")","v":false}]
[null,null,null,"Features","Bubble/Scatter Chart","FC.CART09","Pan & Zoom","Supports panning and zooming for better exploration of data.","No","Yes",null,null,null,null,{"$f":"IF(COUNTIFS($F$2:F101, F101, $P$2:P101, TRUE)>1,TRUE,FALSE)","v":false},{"$f":"OR(ISNUMBER(MATCH(Checklist[[#This Row],[Type]], $B$3:$B$22, 0)), Checklist[[#This Row],[Type]] = \"*\")","v":false}]
[null,null,null,"Features","Bubble/Scatter Chart","FC.CART11","Custom Annotations","Allows users to add custom annotations based on data or conditions.","No","Yes",null,null,null,null,{"$f":"IF(COUNTIFS($F$2:F102, F102, $P$2:P102, TRUE)>1,TRUE,FALSE)","v":false},{"$f":"OR(ISNUMBER(MATCH(Checklist[[#This Row],[Type]], $B$3:$B$22, 0)), Checklist[[#This Row],[Type]] = \"*\")","v":false}]
[null,null,null,"Features","Bubble/Scatter Chart","FC.PROP03","Category Labels","Enables the display of labels for categories.","No","Yes",null,null,null,null,{"$f":"IF(COUNTIFS($F$2:F103, F103, $P$2:P103, TRUE)>1,TRUE,FALSE)","v":false},{"$f":"OR(ISNUMBER(MATCH(Checklist[[#This Row],[Type]], $B$3:$B$22, 0)), Checklist[[#This Row],[Type]] = \"*\")","v":false}]
[null,null,null,"Features","Bubble/Scatter Chart","FC.PROP04","Borders Customization","Allows customization of borders for better visual distinction.","No","Yes",null,null,null,null,{"$f":"IF(COUNTIFS($F$2:F104, F104, $P$2:P104, TRUE)>1,TRUE,FALSE)","v":false},{"$f":"OR(ISNUMBER(MATCH(Checklist[[#This Row],[Type]], $B$3:$B$22, 0)), Checklist[[#This Row],[Type]] = \"*\")","v":false}]
[null,null,null,"Features","Bubble/Scatter Chart","FC.PROP05","Pan & Zoom","Supports panning and zooming for better exploration of data.","No","Yes",null,null,null,null,{"$f":"IF(COUNTIFS($F$2:F105, F105, $P$2:P105, TRUE)>1,TRUE,FALSE)","v":false},{"$f":"OR(ISNUMBER(MATCH(Checklist[[#This Row],[Type]], $B$3:$B$22, 0)), Checklist[[#This Row],[Type]] = \"*\")","v":false}]
[null,null,null,"Features","Bubble/Scatter Chart","FC.PROP06","Dynamic Sorting","Supports sorting data points based on specific columns or measures.","No","Yes",null,null,null,null,{"$f":"IF(COUNTIFS($F$2:F106, F106, $P$2:P106, TRUE)>1,TRUE,FALSE)","v":false},{"$f":"OR(ISNUMBER(MATCH(Checklist[[#This Row],[Type]], $B$3:$B$22, 0)), Checklist[[#This Row],[Type]] = \"*\")","v":false}]
[null,null,null,"Features","Bubble/Scatter Chart","FC.PROP07","Multiple Selection with Lasso","Allows users to select multiple data points by drawing a lasso around them.","No","Yes",null,null,null,null,{"$f":"IF(COUNTIFS($F$2:F107, F107, $P$2:P107, TRUE)>1,TRUE,FALSE)","v":false},{"$f":"OR(ISNUMBER(MATCH(Checklist[[#This Row],[Type]], $B$3:$B$22, 0)), Checklist[[#This Row],[Type]] = \"*\")","v":false}]
[null,null,null,"Features","Bubble/Scatter Chart","FT.BUBBLE01","Multiple Series Support","Enables the display of multiple data series within the same chart, each represented by different colors or shapes.","No","Yes",null,null,null,null,{"$f":"IF(COUNTIFS($F$2:F108, F108, $P$2:P108, TRUE)>1,TRUE,FALSE)","v":false},{"$f":"OR(ISNUMBER(MATCH(Checklist[[#This Row],[Type]], $B$3:$B$22, 0)), Checklist[[#This Row],[Type]] = \"*\")","v":false}]
[null,null,null,"Features","Bubble/Scatter Chart","FT.BUBBLE02","Data Point Borders","Allows users to customize data points border.","No","Yes",null,null,null,null,{"$f":"IF(COUNTIFS($F$2:F109, F109, $P$2:P109, TRUE)>1,TRUE,FALSE)","v":false},{"$f":"OR(ISNUMBER(MATCH(Checklist[[#This Row],[Type]], $B$3:$B$22, 0)), Checklist[[#This Row],[Type]] = \"*\")","v":false}]
[null,null,null,"Features","Bubble/Scatter Chart","FT.BUBBLE03","Quadrant Division","Possibility to divide the visual in quadrants, both in a fixed and dynamic way.","No","Yes",null,null,null,null,{"$f":"IF(COUNTIFS($F$2:F110, F110, $P$2:P110, TRUE)>1,TRUE,FALSE)","v":false},{"$f":"OR(ISNUMBER(MATCH(Checklist[[#This Row],[Type]], $B$3:$B$22, 0)), Checklist[[#This Row],[Type]] = \"*\")","v":false}]
[null,null,null,"Features","Bubble/Scatter Chart","FT.BUBBLE04","Quadrant Background","Possibility to add a background to each quadrant.","No","Yes",null,null,null,null,{"$f":"IF(COUNTIFS($F$2:F111, F111, $P$2:P111, TRUE)>1,TRUE,FALSE)","v":false},{"$f":"OR(ISNUMBER(MATCH(Checklist[[#This Row],[Type]], $B$3:$B$22, 0)), Checklist[[#This Row],[Type]] = \"*\")","v":false}]
[null,null,null,"Features","Bubble/Scatter Chart","FT.BUBBLE05","Transparency","Possibility to add transparency to avoid overlap and improve visibility.","No","Yes",null,null,null,null,{"$f":"IF(COUNTIFS($F$2:F112, F112, $P$2:P112, TRUE)>1,TRUE,FALSE)","v":false},{"$f":"OR(ISNUMBER(MATCH(Checklist[[#This Row],[Type]], $B$3:$B$22, 0)), Checklist[[#This Row],[Type]] = \"*\")","v":false}]
[null,null,null,"Features","Bubble/Scatter Chart","FT.BUBBLE06","Dynamic Z-Order","Possibility to control the z-order through measures or columns.","No","Yes",null,null,null,null,{"$f":"IF(COUNTIFS($F$2:F113, F113, $P$2:P113, TRUE)>1,TRUE,FALSE)","v":false},{"$f":"OR(ISNUMBER(MATCH(Checklist[[#This Row],[Type]], $B$3:$B$22, 0)), Checklist[[#This Row],[Type]] = \"*\")","v":false}]
[null,null,null,"Features","Bubble/Scatter Chart","FT.BUBBLE07","Jittering","Allows data points to be jittered to avoid overlap and improve visibility.","No","Yes",null,null,null,null,{"$f":"IF(COUNTIFS($F$2:F114, F114, $P$2:P114, TRUE)>1,TRUE,FALSE)","v":false},{"$f":"OR(ISNUMBER(MATCH(Checklist[[#This Row],[Type]], $B$3:$B$22, 0)), Checklist[[#This Row],[Type]] = \"*\")","v":false}]
[null,null,null,"Features","Bubble/Scatter Chart","FT.BUBBLE08","Clustering","Groups nearby data points into clusters for better visualization of density.","No","Yes",null,null,null,null,{"$f":"IF(COUNTIFS($F$2:F115, F115, $P$2:P115, TRUE)>1,TRUE,FALSE)","v":false},{"$f":"OR(ISNUMBER(MATCH(Checklist[[#This Row],[Type]], $B$3:$B$22, 0)), Checklist[[#This Row],[Type]] = \"*\")","v":false}]
[null,null,null,"Features","Bubble/Scatter Chart","FT.BUBBLE09","Bubble Size","Allows users to customize the size of the bubbles based on data values.","No","Yes",null,null,null,null,{"$f":"IF(COUNTIFS($F$2:F116, F116, $P$2:P116, TRUE)>1,TRUE,FALSE)","v":false},{"$f":"OR(ISNUMBER(MATCH(Checklist[[#This Row],[Type]], $B$3:$B$22, 0)), Checklist[[#This Row],[Type]] = \"*\")","v":false}]
[null,null,null,"Features","Bubble Map","FC.MAP01","Map Styles","Provides options for customizing map styles and themes. E.g: Light, Dark, Streets, Satellite, etc.","No","Yes",null,null,null,null,{"$f":"IF(COUNTIFS($F$2:F117, F117, $P$2:P117, TRUE)>1,TRUE,FALSE)","v":false},{"$f":"OR(ISNUMBER(MATCH(Checklist[[#This Row],[Type]], $B$3:$B$22, 0)), Checklist[[#This Row],[Type]] = \"*\")","v":false}]
[null,null,null,"Features","Bubble Map","FC.MAP02","Map Services Integration","Allows integration with map services for detailed mapping capabilities.","No","Yes",null,null,null,null,{"$f":"IF(COUNTIFS($F$2:F118, F118, $P$2:P118, TRUE)>1,TRUE,FALSE)","v":false},{"$f":"OR(ISNUMBER(MATCH(Checklist[[#This Row],[Type]], $B$3:$B$22, 0)), Checklist[[#This Row],[Type]] = \"*\")","v":false}]
[null,null,null,"Features","Bubble Map","FC.MAP02.1","Offline Maps","Supports offline maps for disconnected environments.","No","Yes",null,null,null,null,{"$f":"IF(COUNTIFS($F$2:F119, F119, $P$2:P119, TRUE)>1,TRUE,FALSE)","v":false},{"$f":"OR(ISNUMBER(MATCH(Checklist[[#This Row],[Type]], $B$3:$B$22, 0)), Checklist[[#This Row],[Type]] = \"*\")","v":false}]
[null,null,null,"Features","Bubble Map","FC.MAP03","Location Data Integration","Supports integration with coordinates (e.g. latitude, longitude) and categorical location data (e.g. city name, state name).","No","Yes",null,null,null,null,{"$f":"IF(COUNTIFS($F$2:F120, F120, $P$2:P120, TRUE)>1,TRUE,FALSE)","v":false},{"$f":"OR(ISNUMBER(MATCH(Checklist[[#This Row],[Type]], $B$3:$B$22, 0)), Checklist[[#This Row],[Type]] = \"*\")","v":false}]
[null,null,null,"Features","Bubble Map","FC.MAP03.1","Manual Mapping","Supports manual mapping of categorical location data.","No","Yes",null,null,null,null,{"$f":"IF(COUNTIFS($F$2:F121, F121, $P$2:P121, TRUE)>1,TRUE,FALSE)","v":false},{"$f":"OR(ISNUMBER(MATCH(Checklist[[#This Row],[Type]], $B$3:$B$22, 0)), Checklist[[#This Row],[Type]] = \"*\")","v":false}]
[null,null,null,"Features","Bubble Map","FC.MAP04","Jittering","Allows data points to be jittered to avoid overlap and improve visibility.","No","Yes",null,null,null,null,{"$f":"IF(COUNTIFS($F$2:F122, F122, $P$2:P122, TRUE)>1,TRUE,FALSE)","v":false},{"$f":"OR(ISNUMBER(MATCH(Checklist[[#This Row],[Type]], $B$3:$B$22, 0)), Checklist[[#This Row],[Type]] = \"*\")","v":false}]
[null,null,null,"Features","Bubble Map","FC.MAP05","Map Annotations","Allows users to add custom annotations to the map.","No","Yes",null,null,null,null,{"$f":"IF(COUNTIFS($F$2:F123, F123, $P$2:P123, TRUE)>1,TRUE,FALSE)","v":false},{"$f":"OR(ISNUMBER(MATCH(Checklist[[#This Row],[Type]], $B$3:$B$22, 0)), Checklist[[#This Row],[Type]] = \"*\")","v":false}]
[null,null,null,"Features","Bubble Map","FC.MAP06","Pan & Zoom","Supports panning and zooming for better exploration of data.","No","Yes",null,null,null,null,{"$f":"IF(COUNTIFS($F$2:F124, F124, $P$2:P124, TRUE)>1,TRUE,FALSE)","v":false},{"$f":"OR(ISNUMBER(MATCH(Checklist[[#This Row],[Type]], $B$3:$B$22, 0)), Checklist[[#This Row],[Type]] = \"*\")","v":false}]
[null,null,null,"Features","Bubble Map","FT.BMAP01","Clustering","Groups nearby data points into clusters for better visualization of density.","No","Yes",null,null,null,null,{"$f":"IF(COUNTIFS($F$2:F125, F125, $P$2:P125, TRUE)>1,TRUE,FALSE)","v":false},{"$f":"OR(ISNUMBER(MATCH(Checklist[[#This Row],[Type]], $B$3:$B$22, 0)), Checklist[[#This Row],[Type]] = \"*\")","v":false}]
[null,null,null,"Features","Bubble Map","FT.BMAP02","Jittering","Allows data points to be jittered to avoid overlap and improve visibility.","No","Yes",null,null,null,null,{"$f":"IF(COUNTIFS($F$2:F126, F126, $P$2:P126, TRUE)>1,TRUE,FALSE)","v":false},{"$f":"OR(ISNUMBER(MATCH(Checklist[[#This Row],[Type]], $B$3:$B$22, 0)), Checklist[[#This Row],[Type]] = \"*\")","v":false}]
[null,null,null,"Features","Bullet Chart","FC.CART01","Axis Titles","Allows users to add titles to the X and Y axes for better context.","No","Yes",null,null,null,null,{"$f":"IF(COUNTIFS($F$2:F127, F127, $P$2:P127, TRUE)>1,TRUE,FALSE)","v":false},{"$f":"OR(ISNUMBER(MATCH(Checklist[[#This Row],[Type]], $B$3:$B$22, 0)), Checklist[[#This Row],[Type]] = \"*\")","v":false}]
[null,null,null,"Features","Bullet Chart","FC.CART02","Axis Customization","Allows customization of the axis labels, tick marks, and scales.","No","Yes",null,null,null,null,{"$f":"IF(COUNTIFS($F$2:F128, F128, $P$2:P128, TRUE)>1,TRUE,FALSE)","v":false},{"$f":"OR(ISNUMBER(MATCH(Checklist[[#This Row],[Type]], $B$3:$B$22, 0)), Checklist[[#This Row],[Type]] = \"*\")","v":false}]
[null,null,null,"Features","Bullet Chart","FC.CART04","Grid Lines","Supports grid lines to aid in reading data values.","No","Yes",null,null,null,null,{"$f":"IF(COUNTIFS($F$2:F129, F129, $P$2:P129, TRUE)>1,TRUE,FALSE)","v":false},{"$f":"OR(ISNUMBER(MATCH(Checklist[[#This Row],[Type]], $B$3:$B$22, 0)), Checklist[[#This Row],[Type]] = \"*\")","v":false}]
[null,null,null,"Features","Bullet Chart","FC.CART10","Dynamic Sorting","Supports sorting data points based on specific columns or measures.","No","Yes",null,null,null,null,{"$f":"IF(COUNTIFS($F$2:F130, F130, $P$2:P130, TRUE)>1,TRUE,FALSE)","v":false},{"$f":"OR(ISNUMBER(MATCH(Checklist[[#This Row],[Type]], $B$3:$B$22, 0)), Checklist[[#This Row],[Type]] = \"*\")","v":false}]
[null,null,null,"Features","Bullet Chart","FT.BULLET01","Comparison Measure","Supports the display of a comparison measure to provide context for the main measure.","No","Yes",null,null,null,null,{"$f":"IF(COUNTIFS($F$2:F131, F131, $P$2:P131, TRUE)>1,TRUE,FALSE)","v":false},{"$f":"OR(ISNUMBER(MATCH(Checklist[[#This Row],[Type]], $B$3:$B$22, 0)), Checklist[[#This Row],[Type]] = \"*\")","v":false}]
[null,null,null,"Features","Bullet Chart","FT.BULLET02","Target Labels","Enables the display of labels for target values.","No","Yes",null,null,null,null,{"$f":"IF(COUNTIFS($F$2:F132, F132, $P$2:P132, TRUE)>1,TRUE,FALSE)","v":false},{"$f":"OR(ISNUMBER(MATCH(Checklist[[#This Row],[Type]], $B$3:$B$22, 0)), Checklist[[#This Row],[Type]] = \"*\")","v":false}]
[null,null,null,"Features","Bullet Chart","FT.BULLET03","States or Bands","Supports different states or bands to indicate performance levels.","No","Yes",null,null,null,null,{"$f":"IF(COUNTIFS($F$2:F133, F133, $P$2:P133, TRUE)>1,TRUE,FALSE)","v":false},{"$f":"OR(ISNUMBER(MATCH(Checklist[[#This Row],[Type]], $B$3:$B$22, 0)), Checklist[[#This Row],[Type]] = \"*\")","v":false}]
[null,null,null,"Features","Bullet Chart","FT.BULLET04","Variance","Supports the display of variance between the main measure and the target.","No","Yes",null,null,null,null,{"$f":"IF(COUNTIFS($F$2:F134, F134, $P$2:P134, TRUE)>1,TRUE,FALSE)","v":false},{"$f":"OR(ISNUMBER(MATCH(Checklist[[#This Row],[Type]], $B$3:$B$22, 0)), Checklist[[#This Row],[Type]] = \"*\")","v":false}]
[null,null,null,"Features","Bullet Chart","FT.BULLET05","Multiple Orientations","Supports both horizontal and vertical orientations.","No","Yes",null,null,null,null,{"$f":"IF(COUNTIFS($F$2:F135, F135, $P$2:P135, TRUE)>1,TRUE,FALSE)","v":false},{"$f":"OR(ISNUMBER(MATCH(Checklist[[#This Row],[Type]], $B$3:$B$22, 0)), Checklist[[#This Row],[Type]] = \"*\")","v":false}]
[null,null,null,"Features","Bump Chart","FC.CART01","Axis Titles","Allows users to add titles to the X and Y axes for better context.","No","Yes",null,null,null,null,{"$f":"IF(COUNTIFS($F$2:F136, F136, $P$2:P136, TRUE)>1,TRUE,FALSE)","v":false},{"$f":"OR(ISNUMBER(MATCH(Checklist[[#This Row],[Type]], $B$3:$B$22, 0)), Checklist[[#This Row],[Type]] = \"*\")","v":false}]
[null,null,null,"Features","Bump Chart","FC.CART02","Axis Customization","Allows customization of the axis labels, tick marks, and scales.","No","Yes",null,null,null,null,{"$f":"IF(COUNTIFS($F$2:F137, F137, $P$2:P137, TRUE)>1,TRUE,FALSE)","v":false},{"$f":"OR(ISNUMBER(MATCH(Checklist[[#This Row],[Type]], $B$3:$B$22, 0)), Checklist[[#This Row],[Type]] = \"*\")","v":false}]
[null,null,null,"Features","Bump Chart","FC.CART04","Grid Lines","Supports grid lines to aid in reading data values.","No","Yes",null,null,null,null,{"$f":"IF(COUNTIFS($F$2:F138, F138, $P$2:P138, TRUE)>1,TRUE,FALSE)","v":false},{"$f":"OR(ISNUMBER(MATCH(Checklist[[#This Row],[Type]], $B$3:$B$22, 0)), Checklist[[#This Row],[Type]] = \"*\")","v":false}]
[null,null,null,"Features","Bump Chart","FC.CART05","Reference Lines","Supports adding reference lines to highlight specific values or thresholds.","No","Yes",null,null,null,null,{"$f":"IF(COUNTIFS($F$2:F139, F139, $P$2:P139, TRUE)>1,TRUE,FALSE)","v":false},{"$f":"OR(ISNUMBER(MATCH(Checklist[[#This Row],[Type]], $B$3:$B$22, 0)), Checklist[[#This Row],[Type]] = \"*\")","v":false}]
[null,null,null,"Features","Bump Chart","FC.CART07","Data Point Markers","Allows users to conditionally format data point markers.","No","Yes",null,null,null,null,{"$f":"IF(COUNTIFS($F$2:F140, F140, $P$2:P140, TRUE)>1,TRUE,FALSE)","v":false},{"$f":"OR(ISNUMBER(MATCH(Checklist[[#This Row],[Type]], $B$3:$B$22, 0)), Checklist[[#This Row],[Type]] = \"*\")","v":false}]
[null,null,null,"Features","Bump Chart","FC.CART08","Trend Lines","Supports adding trend lines to visualize data trends.","No","Yes",null,null,null,null,{"$f":"IF(COUNTIFS($F$2:F141, F141, $P$2:P141, TRUE)>1,TRUE,FALSE)","v":false},{"$f":"OR(ISNUMBER(MATCH(Checklist[[#This Row],[Type]], $B$3:$B$22, 0)), Checklist[[#This Row],[Type]] = \"*\")","v":false}]
[null,null,null,"Features","Bump Chart","FC.CART10","Dynamic Sorting","Supports sorting data points based on specific columns or measures.","No","Yes",null,null,null,null,{"$f":"IF(COUNTIFS($F$2:F142, F142, $P$2:P142, TRUE)>1,TRUE,FALSE)","v":false},{"$f":"OR(ISNUMBER(MATCH(Checklist[[#This Row],[Type]], $B$3:$B$22, 0)), Checklist[[#This Row],[Type]] = \"*\")","v":false}]
[null,null,null,"Features","Bump Chart","FT.BUMP01","Stroke Customization","Allows customization of the stroke for better visual distinction.","No","Yes",null,null,null,null,{"$f":"IF(COUNTIFS($F$2:F143, F143, $P$2:P143, TRUE)>1,TRUE,FALSE)","v":false},{"$f":"OR(ISNUMBER(MATCH(Checklist[[#This Row],[Type]], $B$3:$B$22, 0)), Checklist[[#This Row],[Type]] = \"*\")","v":false}]
[null,null,null,"Features","Calendar","FC.TIME01","Axis Customization","Allows customization of the axis labels, tick marks, and scales.","No","Yes",null,null,null,null,{"$f":"IF(COUNTIFS($F$2:F144, F144, $P$2:P144, TRUE)>1,TRUE,FALSE)","v":false},{"$f":"OR(ISNUMBER(MATCH(Checklist[[#This Row],[Type]], $B$3:$B$22, 0)), Checklist[[#This Row],[Type]] = \"*\")","v":false}]
[null,null,null,"Features","Calendar","FC.TIME03","Grid Lines","Supports grid lines to aid in reading data values.","No","Yes",null,null,null,null,{"$f":"IF(COUNTIFS($F$2:F145, F145, $P$2:P145, TRUE)>1,TRUE,FALSE)","v":false},{"$f":"OR(ISNUMBER(MATCH(Checklist[[#This Row],[Type]], $B$3:$B$22, 0)), Checklist[[#This Row],[Type]] = \"*\")","v":false}]
[null,null,null,"Features","Calendar","FC.TIME06","Custom Annotations","Allows users to add custom annotations based on data or conditions.","No","Yes",null,null,null,null,{"$f":"IF(COUNTIFS($F$2:F146, F146, $P$2:P146, TRUE)>1,TRUE,FALSE)","v":false},{"$f":"OR(ISNUMBER(MATCH(Checklist[[#This Row],[Type]], $B$3:$B$22, 0)), Checklist[[#This Row],[Type]] = \"*\")","v":false}]
[null,null,null,"Features","Calendar","FT.CAL01","Date Range Selection","Allows users to select a specific date range for filtering data.","No","Yes",null,null,null,null,{"$f":"IF(COUNTIFS($F$2:F147, F147, $P$2:P147, TRUE)>1,TRUE,FALSE)","v":false},{"$f":"OR(ISNUMBER(MATCH(Checklist[[#This Row],[Type]], $B$3:$B$22, 0)), Checklist[[#This Row],[Type]] = \"*\")","v":false}]
[null,null,null,"Features","Calendar","FT.CAL02","Hierarchical Navigation","Supports hierarchical navigation for better exploration of data.","No","Yes",null,null,null,null,{"$f":"IF(COUNTIFS($F$2:F148, F148, $P$2:P148, TRUE)>1,TRUE,FALSE)","v":false},{"$f":"OR(ISNUMBER(MATCH(Checklist[[#This Row],[Type]], $B$3:$B$22, 0)), Checklist[[#This Row],[Type]] = \"*\")","v":false}]
[null,null,null,"Features","Calendar","FT.CAL03","Custom Calendar Layout","Allows users to customize the layout of the calendar view.","No","Yes",null,null,null,null,{"$f":"IF(COUNTIFS($F$2:F149, F149, $P$2:P149, TRUE)>1,TRUE,FALSE)","v":false},{"$f":"OR(ISNUMBER(MATCH(Checklist[[#This Row],[Type]], $B$3:$B$22, 0)), Checklist[[#This Row],[Type]] = \"*\")","v":false}]
[null,null,null,"Features","Calendar","FT.CAL04","Multiple Calendar Systems","Supports multiple calendar systems for different regions or cultures.","No","Yes",null,null,null,null,{"$f":"IF(COUNTIFS($F$2:F150, F150, $P$2:P150, TRUE)>1,TRUE,FALSE)","v":false},{"$f":"OR(ISNUMBER(MATCH(Checklist[[#This Row],[Type]], $B$3:$B$22, 0)), Checklist[[#This Row],[Type]] = \"*\")","v":false}]
[null,null,null,"Features","Calendar","FT.CAL04.1","Custom Calendar System","Allows users to define a custom calendar system.","No","Yes",null,null,null,null,{"$f":"IF(COUNTIFS($F$2:F151, F151, $P$2:P151, TRUE)>1,TRUE,FALSE)","v":false},{"$f":"OR(ISNUMBER(MATCH(Checklist[[#This Row],[Type]], $B$3:$B$22, 0)), Checklist[[#This Row],[Type]] = \"*\")","v":false}]
[null,null,null,"Features","Calendar","FT.CAL05","Multiple Measures","Supports displaying multiple measures on the calendar view.","No","Yes",null,null,null,null,{"$f":"IF(COUNTIFS($F$2:F152, F152, $P$2:P152, TRUE)>1,TRUE,FALSE)","v":false},{"$f":"OR(ISNUMBER(MATCH(Checklist[[#This Row],[Type]], $B$3:$B$22, 0)), Checklist[[#This Row],[Type]] = \"*\")","v":false}]
[null,null,null,"Features","Calendar","FT.CAL06","Events","Displays events or activities on the calendar view.","No","Yes",null,null,null,null,{"$f":"IF(COUNTIFS($F$2:F153, F153, $P$2:P153, TRUE)>1,TRUE,FALSE)","v":false},{"$f":"OR(ISNUMBER(MATCH(Checklist[[#This Row],[Type]], $B$3:$B$22, 0)), Checklist[[#This Row],[Type]] = \"*\")","v":false}]
[null,null,null,"Features","Calendar","FT.CAL07","Automatic Holidays","Highlights holidays or special days on the calendar view automatically.","No","Yes",null,null,null,null,{"$f":"IF(COUNTIFS($F$2:F154, F154, $P$2:P154, TRUE)>1,TRUE,FALSE)","v":false},{"$f":"OR(ISNUMBER(MATCH(Checklist[[#This Row],[Type]], $B$3:$B$22, 0)), Checklist[[#This Row],[Type]] = \"*\")","v":false}]
[null,null,null,"Features","Calendar","FT.CAL08","Calendar Localization","Supports localization for different regions or languages. This includes date formats, day names, first week day, etc.","No","Yes",null,null,null,null,{"$f":"IF(COUNTIFS($F$2:F155, F155, $P$2:P155, TRUE)>1,TRUE,FALSE)","v":false},{"$f":"OR(ISNUMBER(MATCH(Checklist[[#This Row],[Type]], $B$3:$B$22, 0)), Checklist[[#This Row],[Type]] = \"*\")","v":false}]
[null,null,null,"Features","Candlestick Chart","FC.CART01","Axis Titles","Allows users to add titles to the X and Y axes for better context.","No","Yes",null,null,null,null,{"$f":"IF(COUNTIFS($F$2:F156, F156, $P$2:P156, TRUE)>1,TRUE,FALSE)","v":false},{"$f":"OR(ISNUMBER(MATCH(Checklist[[#This Row],[Type]], $B$3:$B$22, 0)), Checklist[[#This Row],[Type]] = \"*\")","v":false}]
[null,null,null,"Features","Candlestick Chart","FC.CART02","Axis Customization","Allows customization of the axis labels, tick marks, and scales.","No","Yes",null,null,null,null,{"$f":"IF(COUNTIFS($F$2:F157, F157, $P$2:P157, TRUE)>1,TRUE,FALSE)","v":false},{"$f":"OR(ISNUMBER(MATCH(Checklist[[#This Row],[Type]], $B$3:$B$22, 0)), Checklist[[#This Row],[Type]] = \"*\")","v":false}]
[null,null,null,"Features","Candlestick Chart","FC.CART04","Grid Lines","Supports grid lines to aid in reading data values.","No","Yes",null,null,null,null,{"$f":"IF(COUNTIFS($F$2:F158, F158, $P$2:P158, TRUE)>1,TRUE,FALSE)","v":false},{"$f":"OR(ISNUMBER(MATCH(Checklist[[#This Row],[Type]], $B$3:$B$22, 0)), Checklist[[#This Row],[Type]] = \"*\")","v":false}]
[null,null,null,"Features","Candlestick Chart","FC.CART07","Data Point Markers","Allows users to conditionally format data point markers.","No","Yes",null,null,null,null,{"$f":"IF(COUNTIFS($F$2:F159, F159, $P$2:P159, TRUE)>1,TRUE,FALSE)","v":false},{"$f":"OR(ISNUMBER(MATCH(Checklist[[#This Row],[Type]], $B$3:$B$22, 0)), Checklist[[#This Row],[Type]] = \"*\")","v":false}]
[null,null,null,"Features","Candlestick Chart","FC.CART08","Trend Lines","Supports adding trend lines to visualize data trends.","No","Yes",null,null,null,null,{"$f":"IF(COUNTIFS($F$2:F160, F160, $P$2:P160, TRUE)>1,TRUE,FALSE)","v":false},{"$f":"OR(ISNUMBER(MATCH(Checklist[[#This Row],[Type]], $B$3:$B$22, 0)), Checklist[[#This Row],[Type]] = \"*\")","v":false}]
[null,null,null,"Features","Candlestick Chart","FC.CART09","Pan & Zoom","Supports panning and zooming for better exploration of data.","No","Yes",null,null,null,null,{"$f":"IF(COUNTIFS($F$2:F161, F161, $P$2:P161, TRUE)>1,TRUE,FALSE)","v":false},{"$f":"OR(ISNUMBER(MATCH(Checklist[[#This Row],[Type]], $B$3:$B$22, 0)), Checklist[[#This Row],[Type]] = \"*\")","v":false}]
[null,null,null,"Features","Candlestick Chart","FC.CART11","Custom Annotations","Allows users to add custom annotations based on data or conditions.","No","Yes",null,null,null,null,{"$f":"IF(COUNTIFS($F$2:F162, F162, $P$2:P162, TRUE)>1,TRUE,FALSE)","v":false},{"$f":"OR(ISNUMBER(MATCH(Checklist[[#This Row],[Type]], $B$3:$B$22, 0)), Checklist[[#This Row],[Type]] = \"*\")","v":false}]
[null,null,null,"Features","Candlestick Chart","FT.CANDLE01","Open/Close Indicators","Displays open and close prices distinctly for each time period.","No","Yes",null,null,null,null,{"$f":"IF(COUNTIFS($F$2:F163, F163, $P$2:P163, TRUE)>1,TRUE,FALSE)","v":false},{"$f":"OR(ISNUMBER(MATCH(Checklist[[#This Row],[Type]], $B$3:$B$22, 0)), Checklist[[#This Row],[Type]] = \"*\")","v":false}]
[null,null,null,"Features","Candlestick Chart","FT.CANDLE02","High/Low Indicators","Shows high and low prices for each time period, enhancing price range visibility.","No","Yes",null,null,null,null,{"$f":"IF(COUNTIFS($F$2:F164, F164, $P$2:P164, TRUE)>1,TRUE,FALSE)","v":false},{"$f":"OR(ISNUMBER(MATCH(Checklist[[#This Row],[Type]], $B$3:$B$22, 0)), Checklist[[#This Row],[Type]] = \"*\")","v":false}]
[null,null,null,"Features","Candlestick Chart","FT.CANDLE03","Volume Bars","Supports volume bars to show trading volume for each time period.","No","Yes",null,null,null,null,{"$f":"IF(COUNTIFS($F$2:F165, F165, $P$2:P165, TRUE)>1,TRUE,FALSE)","v":false},{"$f":"OR(ISNUMBER(MATCH(Checklist[[#This Row],[Type]], $B$3:$B$22, 0)), Checklist[[#This Row],[Type]] = \"*\")","v":false}]
[null,null,null,"Features","Candlestick Chart","FT.CANDLE04","Bollinger Bands","Displays Bollinger Bands to indicate price volatility.","No","Yes",null,null,null,null,{"$f":"IF(COUNTIFS($F$2:F166, F166, $P$2:P166, TRUE)>1,TRUE,FALSE)","v":false},{"$f":"OR(ISNUMBER(MATCH(Checklist[[#This Row],[Type]], $B$3:$B$22, 0)), Checklist[[#This Row],[Type]] = \"*\")","v":false}]
[null,null,null,"Features","Candlestick Chart","FT.CANDLE05","Stock Services Integration","Supports integration with stock services to fetch real-time data.","No","Yes",null,null,null,null,{"$f":"IF(COUNTIFS($F$2:F167, F167, $P$2:P167, TRUE)>1,TRUE,FALSE)","v":false},{"$f":"OR(ISNUMBER(MATCH(Checklist[[#This Row],[Type]], $B$3:$B$22, 0)), Checklist[[#This Row],[Type]] = \"*\")","v":false}]
[null,null,null,"Features","Candlestick Chart","FT.CANDLE06","Brick Size Customization","Allows users to define the brick size to represent price movements (Renko chart).","No","Yes",null,null,null,null,{"$f":"IF(COUNTIFS($F$2:F168, F168, $P$2:P168, TRUE)>1,TRUE,FALSE)","v":false},{"$f":"OR(ISNUMBER(MATCH(Checklist[[#This Row],[Type]], $B$3:$B$22, 0)), Checklist[[#This Row],[Type]] = \"*\")","v":false}]
[null,null,null,"Features","Candlestick Chart","FT.CANDLE07","Candle Style Customization","Supports different candle styles for better visualization (OHLC chart)","No","Yes",null,null,null,null,{"$f":"IF(COUNTIFS($F$2:F169, F169, $P$2:P169, TRUE)>1,TRUE,FALSE)","v":false},{"$f":"OR(ISNUMBER(MATCH(Checklist[[#This Row],[Type]], $B$3:$B$22, 0)), Checklist[[#This Row],[Type]] = \"*\")","v":false}]
[null,null,null,"Features","Candlestick Chart","FT.CANDLE08","Heikin-Ashi","Supports Heikin-Ashi candlesticks for better trend visualization.","No","Yes",null,null,null,null,{"$f":"IF(COUNTIFS($F$2:F170, F170, $P$2:P170, TRUE)>1,TRUE,FALSE)","v":false},{"$f":"OR(ISNUMBER(MATCH(Checklist[[#This Row],[Type]], $B$3:$B$22, 0)), Checklist[[#This Row],[Type]] = \"*\")","v":false}]
[null,null,null,"Features","Card","FC.SINGLE01","Contextual Label","Supports displaying a label to provide context or summary information.","No","Yes",null,null,null,null,{"$f":"IF(COUNTIFS($F$2:F171, F171, $P$2:P171, TRUE)>1,TRUE,FALSE)","v":false},{"$f":"OR(ISNUMBER(MATCH(Checklist[[#This Row],[Type]], $B$3:$B$22, 0)), Checklist[[#This Row],[Type]] = \"*\")","v":false}]
[null,null,null,"Features","Card","FC.SINGLE02","Advanced Formatting","Supports advanced formatting options for the visual elements.","No","Yes",null,null,null,null,{"$f":"IF(COUNTIFS($F$2:F172, F172, $P$2:P172, TRUE)>1,TRUE,FALSE)","v":false},{"$f":"OR(ISNUMBER(MATCH(Checklist[[#This Row],[Type]], $B$3:$B$22, 0)), Checklist[[#This Row],[Type]] = \"*\")","v":false}]
[null,null,null,"Features","Cartogram","FC.MAP03","Location Data Integration","Supports integration with coordinates (e.g. latitude, longitude) and categorical location data (e.g. city name, state name).","No","Yes",null,null,null,null,{"$f":"IF(COUNTIFS($F$2:F173, F173, $P$2:P173, TRUE)>1,TRUE,FALSE)","v":false},{"$f":"OR(ISNUMBER(MATCH(Checklist[[#This Row],[Type]], $B$3:$B$22, 0)), Checklist[[#This Row],[Type]] = \"*\")","v":false}]
[null,null,null,"Features","Cartogram","FC.MAP03.1","Manual Mapping","Supports manual mapping of categorical location data.","No","Yes",null,null,null,null,{"$f":"IF(COUNTIFS($F$2:F174, F174, $P$2:P174, TRUE)>1,TRUE,FALSE)","v":false},{"$f":"OR(ISNUMBER(MATCH(Checklist[[#This Row],[Type]], $B$3:$B$22, 0)), Checklist[[#This Row],[Type]] = \"*\")","v":false}]
[null,null,null,"Features","Cartogram","FC.MAP05","Map Annotations","Allows users to add custom annotations to the map.","No","Yes",null,null,null,null,{"$f":"IF(COUNTIFS($F$2:F175, F175, $P$2:P175, TRUE)>1,TRUE,FALSE)","v":false},{"$f":"OR(ISNUMBER(MATCH(Checklist[[#This Row],[Type]], $B$3:$B$22, 0)), Checklist[[#This Row],[Type]] = \"*\")","v":false}]
[null,null,null,"Features","Cartogram","FC.MAP06","Pan & Zoom","Supports panning and zooming for better exploration of data.","No","Yes",null,null,null,null,{"$f":"IF(COUNTIFS($F$2:F176, F176, $P$2:P176, TRUE)>1,TRUE,FALSE)","v":false},{"$f":"OR(ISNUMBER(MATCH(Checklist[[#This Row],[Type]], $B$3:$B$22, 0)), Checklist[[#This Row],[Type]] = \"*\")","v":false}]
[null,null,null,"Features","Chord Diagram","FC.NET01","Node Customization","Allows customization of node size, color, and shape.","No","Yes",null,null,null,null,{"$f":"IF(COUNTIFS($F$2:F177, F177, $P$2:P177, TRUE)>1,TRUE,FALSE)","v":false},{"$f":"OR(ISNUMBER(MATCH(Checklist[[#This Row],[Type]], $B$3:$B$22, 0)), Checklist[[#This Row],[Type]] = \"*\")","v":false}]
[null,null,null,"Features","Chord Diagram","FC.NET01.1","Dynamic Node Customization","Allows customization of node size, color, and shape based on data.","No","Yes",null,null,null,null,{"$f":"IF(COUNTIFS($F$2:F178, F178, $P$2:P178, TRUE)>1,TRUE,FALSE)","v":false},{"$f":"OR(ISNUMBER(MATCH(Checklist[[#This Row],[Type]], $B$3:$B$22, 0)), Checklist[[#This Row],[Type]] = \"*\")","v":false}]
[null,null,null,"Features","Chord Diagram","FC.NET02","Edge Customization","Allows customization of edge thickness, color, and style.","No","Yes",null,null,null,null,{"$f":"IF(COUNTIFS($F$2:F179, F179, $P$2:P179, TRUE)>1,TRUE,FALSE)","v":false},{"$f":"OR(ISNUMBER(MATCH(Checklist[[#This Row],[Type]], $B$3:$B$22, 0)), Checklist[[#This Row],[Type]] = \"*\")","v":false}]
[null,null,null,"Features","Chord Diagram","FC.NET02.1","Dynamic Edge Customization","Allows customization of node size, color, and shape based on data.","No","Yes",null,null,null,null,{"$f":"IF(COUNTIFS($F$2:F180, F180, $P$2:P180, TRUE)>1,TRUE,FALSE)","v":false},{"$f":"OR(ISNUMBER(MATCH(Checklist[[#This Row],[Type]], $B$3:$B$22, 0)), Checklist[[#This Row],[Type]] = \"*\")","v":false}]
[null,null,null,"Features","Chord Diagram","FC.NET03","Node Labels","Enables the display of labels for nodes to provide additional context.","No","Yes",null,null,null,null,{"$f":"IF(COUNTIFS($F$2:F181, F181, $P$2:P181, TRUE)>1,TRUE,FALSE)","v":false},{"$f":"OR(ISNUMBER(MATCH(Checklist[[#This Row],[Type]], $B$3:$B$22, 0)), Checklist[[#This Row],[Type]] = \"*\")","v":false}]
[null,null,null,"Features","Chord Diagram","FC.NET04","Edge Labels","Enables the display of labels for edges to provide additional context.","No","Yes",null,null,null,null,{"$f":"IF(COUNTIFS($F$2:F182, F182, $P$2:P182, TRUE)>1,TRUE,FALSE)","v":false},{"$f":"OR(ISNUMBER(MATCH(Checklist[[#This Row],[Type]], $B$3:$B$22, 0)), Checklist[[#This Row],[Type]] = \"*\")","v":false}]
[null,null,null,"Features","Chord Diagram","FC.NET05","Edge Bundling","Supports edge bundling to reduce visual clutter and improve readability.","No","Yes",null,null,null,null,{"$f":"IF(COUNTIFS($F$2:F183, F183, $P$2:P183, TRUE)>1,TRUE,FALSE)","v":false},{"$f":"OR(ISNUMBER(MATCH(Checklist[[#This Row],[Type]], $B$3:$B$22, 0)), Checklist[[#This Row],[Type]] = \"*\")","v":false}]
[null,null,null,"Features","Chord Diagram","FC.NET10","Jittering","Allows data points to be jittered to avoid overlap and improve visibility.","No","Yes",null,null,null,null,{"$f":"IF(COUNTIFS($F$2:F184, F184, $P$2:P184, TRUE)>1,TRUE,FALSE)","v":false},{"$f":"OR(ISNUMBER(MATCH(Checklist[[#This Row],[Type]], $B$3:$B$22, 0)), Checklist[[#This Row],[Type]] = \"*\")","v":false}]
[null,null,null,"Features","Chord Diagram","FT.CHORD01","Ribbons or Lines","Supports different visual representations for the connections between entities.","No","Yes",null,null,null,null,{"$f":"IF(COUNTIFS($F$2:F185, F185, $P$2:P185, TRUE)>1,TRUE,FALSE)","v":false},{"$f":"OR(ISNUMBER(MATCH(Checklist[[#This Row],[Type]], $B$3:$B$22, 0)), Checklist[[#This Row],[Type]] = \"*\")","v":false}]
[null,null,null,"Features","Chord Diagram","FT.CHORD02","Chord Sorting","Supports sorting chords based on specific criteria.","No","Yes",null,null,null,null,{"$f":"IF(COUNTIFS($F$2:F186, F186, $P$2:P186, TRUE)>1,TRUE,FALSE)","v":false},{"$f":"OR(ISNUMBER(MATCH(Checklist[[#This Row],[Type]], $B$3:$B$22, 0)), Checklist[[#This Row],[Type]] = \"*\")","v":false}]
[null,null,null,"Features","Choropleth Map","FC.MAP01","Map Styles","Provides options for customizing map styles and themes. E.g: Light, Dark, Streets, Satellite, etc.","No","Yes",null,null,null,null,{"$f":"IF(COUNTIFS($F$2:F187, F187, $P$2:P187, TRUE)>1,TRUE,FALSE)","v":false},{"$f":"OR(ISNUMBER(MATCH(Checklist[[#This Row],[Type]], $B$3:$B$22, 0)), Checklist[[#This Row],[Type]] = \"*\")","v":false}]
[null,null,null,"Features","Choropleth Map","FC.MAP02","Map Services Integration","Allows integration with map services for detailed mapping capabilities.","No","Yes",null,null,null,null,{"$f":"IF(COUNTIFS($F$2:F188, F188, $P$2:P188, TRUE)>1,TRUE,FALSE)","v":false},{"$f":"OR(ISNUMBER(MATCH(Checklist[[#This Row],[Type]], $B$3:$B$22, 0)), Checklist[[#This Row],[Type]] = \"*\")","v":false}]
[null,null,null,"Features","Choropleth Map","FC.MAP02.1","Offline Maps","Supports offline maps for disconnected environments.","No","Yes",null,null,null,null,{"$f":"IF(COUNTIFS($F$2:F189, F189, $P$2:P189, TRUE)>1,TRUE,FALSE)","v":false},{"$f":"OR(ISNUMBER(MATCH(Checklist[[#This Row],[Type]], $B$3:$B$22, 0)), Checklist[[#This Row],[Type]] = \"*\")","v":false}]
[null,null,null,"Features","Choropleth Map","FC.MAP03","Location Data Integration","Supports integration with coordinates (e.g. latitude, longitude) and categorical location data (e.g. city name, state name).","No","Yes",null,null,null,null,{"$f":"IF(COUNTIFS($F$2:F190, F190, $P$2:P190, TRUE)>1,TRUE,FALSE)","v":false},{"$f":"OR(ISNUMBER(MATCH(Checklist[[#This Row],[Type]], $B$3:$B$22, 0)), Checklist[[#This Row],[Type]] = \"*\")","v":false}]
[null,null,null,"Features","Choropleth Map","FC.MAP03.1","Manual Mapping","Supports manual mapping of categorical location data.","No","Yes",null,null,null,null,{"$f":"IF(COUNTIFS($F$2:F191, F191, $P$2:P191, TRUE)>1,TRUE,FALSE)","v":false},{"$f":"OR(ISNUMBER(MATCH(Checklist[[#This Row],[Type]], $B$3:$B$22, 0)), Checklist[[#This Row],[Type]] = \"*\")","v":false}]
[null,null,null,"Features","Choropleth Map","FC.MAP04","Jittering","Allows data points to be jittered to avoid overlap and improve visibility.","No","Yes",null,null,null,null,{"$f":"IF(COUNTIFS($F$2:F192, F192, $P$2:P192, TRUE)>1,TRUE,FALSE)","v":false},{"$f":"OR(ISNUMBER(MATCH(Checklist[[#This Row],[Type]], $B$3:$B$22, 0)), Checklist[[#This Row],[Type]] = \"*\")","v":false}]
[null,null,null,"Features","Choropleth Map","FC.MAP05","Map Annotations","Allows users to add custom annotations to the map.","No","Yes",null,null,null,null,{"$f":"IF(COUNTIFS($F$2:F193, F193, $P$2:P193, TRUE)>1,TRUE,FALSE)","v":false},{"$f":"OR(ISNUMBER(MATCH(Checklist[[#This Row],[Type]], $B$3:$B$22, 0)), Checklist[[#This Row],[Type]] = \"*\")","v":false}]
[null,null,null,"Features","Choropleth Map","FC.MAP06","Pan & Zoom","Supports panning and zooming for better exploration of data.","No","Yes",null,null,null,null,{"$f":"IF(COUNTIFS($F$2:F194, F194, $P$2:P194, TRUE)>1,TRUE,FALSE)","v":false},{"$f":"OR(ISNUMBER(MATCH(Checklist[[#This Row],[Type]], $B$3:$B$22, 0)), Checklist[[#This Row],[Type]] = \"*\")","v":false}]
[null,null,null,"Features","Circle Packing","FC.PROP03","Category Labels","Enables the display of labels for categories.","No","Yes",null,null,null,null,{"$f":"IF(COUNTIFS($F$2:F195, F195, $P$2:P195, TRUE)>1,TRUE,FALSE)","v":false},{"$f":"OR(ISNUMBER(MATCH(Checklist[[#This Row],[Type]], $B$3:$B$22, 0)), Checklist[[#This Row],[Type]] = \"*\")","v":false}]
[null,null,null,"Features","Circle Packing","FC.PROP04","Borders Customization","Allows customization of borders for better visual distinction.","No","Yes",null,null,null,null,{"$f":"IF(COUNTIFS($F$2:F196, F196, $P$2:P196, TRUE)>1,TRUE,FALSE)","v":false},{"$f":"OR(ISNUMBER(MATCH(Checklist[[#This Row],[Type]], $B$3:$B$22, 0)), Checklist[[#This Row],[Type]] = \"*\")","v":false}]
[null,null,null,"Features","Circle Packing","FC.PROP05","Pan & Zoom","Supports panning and zooming for better exploration of data.","No","Yes",null,null,null,null,{"$f":"IF(COUNTIFS($F$2:F197, F197, $P$2:P197, TRUE)>1,TRUE,FALSE)","v":false},{"$f":"OR(ISNUMBER(MATCH(Checklist[[#This Row],[Type]], $B$3:$B$22, 0)), Checklist[[#This Row],[Type]] = \"*\")","v":false}]
[null,null,null,"Features","Circle Packing","FC.PROP06","Dynamic Sorting","Supports sorting data points based on specific columns or measures.","No","Yes",null,null,null,null,{"$f":"IF(COUNTIFS($F$2:F198, F198, $P$2:P198, TRUE)>1,TRUE,FALSE)","v":false},{"$f":"OR(ISNUMBER(MATCH(Checklist[[#This Row],[Type]], $B$3:$B$22, 0)), Checklist[[#This Row],[Type]] = \"*\")","v":false}]
[null,null,null,"Features","Circle Packing","FC.PROP07","Multiple Selection with Lasso","Allows users to select multiple data points by drawing a lasso around them.","No","Yes",null,null,null,null,{"$f":"IF(COUNTIFS($F$2:F199, F199, $P$2:P199, TRUE)>1,TRUE,FALSE)","v":false},{"$f":"OR(ISNUMBER(MATCH(Checklist[[#This Row],[Type]], $B$3:$B$22, 0)), Checklist[[#This Row],[Type]] = \"*\")","v":false}]
[null,null,null,"Features","Combo Chart","FC.CART01","Axis Titles","Allows users to add titles to the X and Y axes for better context.","No","Yes",null,null,null,null,{"$f":"IF(COUNTIFS($F$2:F200, F200, $P$2:P200, TRUE)>1,TRUE,FALSE)","v":false},{"$f":"OR(ISNUMBER(MATCH(Checklist[[#This Row],[Type]], $B$3:$B$22, 0)), Checklist[[#This Row],[Type]] = \"*\")","v":false}]
[null,null,null,"Features","Combo Chart","FC.CART02","Axis Customization","Allows customization of the axis labels, tick marks, and scales.","No","Yes",null,null,null,null,{"$f":"IF(COUNTIFS($F$2:F201, F201, $P$2:P201, TRUE)>1,TRUE,FALSE)","v":false},{"$f":"OR(ISNUMBER(MATCH(Checklist[[#This Row],[Type]], $B$3:$B$22, 0)), Checklist[[#This Row],[Type]] = \"*\")","v":false}]
[null,null,null,"Features","Combo Chart","FC.CART04","Grid Lines","Supports grid lines to aid in reading data values.","No","Yes",null,null,null,null,{"$f":"IF(COUNTIFS($F$2:F202, F202, $P$2:P202, TRUE)>1,TRUE,FALSE)","v":false},{"$f":"OR(ISNUMBER(MATCH(Checklist[[#This Row],[Type]], $B$3:$B$22, 0)), Checklist[[#This Row],[Type]] = \"*\")","v":false}]
[null,null,null,"Features","Combo Chart","FC.CART05","Reference Lines","Supports adding reference lines to highlight specific values or thresholds.","No","Yes",null,null,null,null,{"$f":"IF(COUNTIFS($F$2:F203, F203, $P$2:P203, TRUE)>1,TRUE,FALSE)","v":false},{"$f":"OR(ISNUMBER(MATCH(Checklist[[#This Row],[Type]], $B$3:$B$22, 0)), Checklist[[#This Row],[Type]] = \"*\")","v":false}]
[null,null,null,"Features","Combo Chart","FC.CART07","Data Point Markers","Allows users to conditionally format data point markers.","No","Yes",null,null,null,null,{"$f":"IF(COUNTIFS($F$2:F204, F204, $P$2:P204, TRUE)>1,TRUE,FALSE)","v":false},{"$f":"OR(ISNUMBER(MATCH(Checklist[[#This Row],[Type]], $B$3:$B$22, 0)), Checklist[[#This Row],[Type]] = \"*\")","v":false}]
[null,null,null,"Features","Combo Chart","FC.CART08","Trend Lines","Supports adding trend lines to visualize data trends.","No","Yes",null,null,null,null,{"$f":"IF(COUNTIFS($F$2:F205, F205, $P$2:P205, TRUE)>1,TRUE,FALSE)","v":false},{"$f":"OR(ISNUMBER(MATCH(Checklist[[#This Row],[Type]], $B$3:$B$22, 0)), Checklist[[#This Row],[Type]] = \"*\")","v":false}]
[null,null,null,"Features","Combo Chart","FC.CART09","Pan & Zoom","Supports panning and zooming for better exploration of data.","No","Yes",null,null,null,null,{"$f":"IF(COUNTIFS($F$2:F206, F206, $P$2:P206, TRUE)>1,TRUE,FALSE)","v":false},{"$f":"OR(ISNUMBER(MATCH(Checklist[[#This Row],[Type]], $B$3:$B$22, 0)), Checklist[[#This Row],[Type]] = \"*\")","v":false}]
[null,null,null,"Features","Combo Chart","FC.CART10","Dynamic Sorting","Supports sorting data points based on specific columns or measures.","No","Yes",null,null,null,null,{"$f":"IF(COUNTIFS($F$2:F207, F207, $P$2:P207, TRUE)>1,TRUE,FALSE)","v":false},{"$f":"OR(ISNUMBER(MATCH(Checklist[[#This Row],[Type]], $B$3:$B$22, 0)), Checklist[[#This Row],[Type]] = \"*\")","v":false}]
[null,null,null,"Features","Combo Chart","FC.CART11","Custom Annotations","Allows users to add custom annotations based on data or conditions.","No","Yes",null,null,null,null,{"$f":"IF(COUNTIFS($F$2:F208, F208, $P$2:P208, TRUE)>1,TRUE,FALSE)","v":false},{"$f":"OR(ISNUMBER(MATCH(Checklist[[#This Row],[Type]], $B$3:$B$22, 0)), Checklist[[#This Row],[Type]] = \"*\")","v":false}]
[null,null,null,"Features","Combo Chart","FT.COMBO01","Dual Axis Support","Allows for the display of two different scales on the Y-axis for better comparison of data series.","No","Yes",null,null,null,null,{"$f":"IF(COUNTIFS($F$2:F209, F209, $P$2:P209, TRUE)>1,TRUE,FALSE)","v":false},{"$f":"OR(ISNUMBER(MATCH(Checklist[[#This Row],[Type]], $B$3:$B$22, 0)), Checklist[[#This Row],[Type]] = \"*\")","v":false}]
[null,null,null,"Features","Combo Chart","FT.COMBO02","Data Series Customization","Enables customization of individual data series, including different colors and marker styles.","No","Yes",null,null,null,null,{"$f":"IF(COUNTIFS($F$2:F210, F210, $P$2:P210, TRUE)>1,TRUE,FALSE)","v":false},{"$f":"OR(ISNUMBER(MATCH(Checklist[[#This Row],[Type]], $B$3:$B$22, 0)), Checklist[[#This Row],[Type]] = \"*\")","v":false}]
[null,null,null,"Features","Combo Chart","FT.COMBO03","Multiple Orientations","Supports both horizontal and vertical orientations.","No","Yes",null,null,null,null,{"$f":"IF(COUNTIFS($F$2:F211, F211, $P$2:P211, TRUE)>1,TRUE,FALSE)","v":false},{"$f":"OR(ISNUMBER(MATCH(Checklist[[#This Row],[Type]], $B$3:$B$22, 0)), Checklist[[#This Row],[Type]] = \"*\")","v":false}]
[null,null,null,"Features","Combo Chart","FT.COMBO04","Axis Synchronization","Allows for the synchronization of axes to ensure consistent scales and alignment.","No","Yes",null,null,null,null,{"$f":"IF(COUNTIFS($F$2:F212, F212, $P$2:P212, TRUE)>1,TRUE,FALSE)","v":false},{"$f":"OR(ISNUMBER(MATCH(Checklist[[#This Row],[Type]], $B$3:$B$22, 0)), Checklist[[#This Row],[Type]] = \"*\")","v":false}]
[null,null,null,"Features","Dendrogram","FC.HIER01","Node Customization","Allows customization of node size, color, and shape.","No","Yes",null,null,null,null,{"$f":"IF(COUNTIFS($F$2:F213, F213, $P$2:P213, TRUE)>1,TRUE,FALSE)","v":false},{"$f":"OR(ISNUMBER(MATCH(Checklist[[#This Row],[Type]], $B$3:$B$22, 0)), Checklist[[#This Row],[Type]] = \"*\")","v":false}]
[null,null,null,"Features","Dendrogram","FC.HIER01.1","Dynamic Node Customization","Allows customization of node size, color, and shape based on data.","No","Yes",null,null,null,null,{"$f":"IF(COUNTIFS($F$2:F214, F214, $P$2:P214, TRUE)>1,TRUE,FALSE)","v":false},{"$f":"OR(ISNUMBER(MATCH(Checklist[[#This Row],[Type]], $B$3:$B$22, 0)), Checklist[[#This Row],[Type]] = \"*\")","v":false}]
[null,null,null,"Features","Dendrogram","FC.HIER05","Node Clustering","Supports grouping nodes into clusters based on data values or conditions.","No","Yes",null,null,null,null,{"$f":"IF(COUNTIFS($F$2:F215, F215, $P$2:P215, TRUE)>1,TRUE,FALSE)","v":false},{"$f":"OR(ISNUMBER(MATCH(Checklist[[#This Row],[Type]], $B$3:$B$22, 0)), Checklist[[#This Row],[Type]] = \"*\")","v":false}]
[null,null,null,"Features","Dendrogram","FC.HIER06","Expand/Collapse","Supports expanding and collapsing nodes to show or hide branches.","No","Yes",null,null,null,null,{"$f":"IF(COUNTIFS($F$2:F216, F216, $P$2:P216, TRUE)>1,TRUE,FALSE)","v":false},{"$f":"OR(ISNUMBER(MATCH(Checklist[[#This Row],[Type]], $B$3:$B$22, 0)), Checklist[[#This Row],[Type]] = \"*\")","v":false}]
[null,null,null,"Features","Dendrogram","FC.HIER07","Edge Customization","Allows customization of edge thickness, color, and style.","No","Yes",null,null,null,null,{"$f":"IF(COUNTIFS($F$2:F217, F217, $P$2:P217, TRUE)>1,TRUE,FALSE)","v":false},{"$f":"OR(ISNUMBER(MATCH(Checklist[[#This Row],[Type]], $B$3:$B$22, 0)), Checklist[[#This Row],[Type]] = \"*\")","v":false}]
[null,null,null,"Features","Dendrogram","FC.HIER07.1","Dynamic Edge Customization","Allows customization of edge thickness, color, and style based on data.","No","Yes",null,null,null,null,{"$f":"IF(COUNTIFS($F$2:F218, F218, $P$2:P218, TRUE)>1,TRUE,FALSE)","v":false},{"$f":"OR(ISNUMBER(MATCH(Checklist[[#This Row],[Type]], $B$3:$B$22, 0)), Checklist[[#This Row],[Type]] = \"*\")","v":false}]
[null,null,null,"Features","Dendrogram","FC.HIER08","Edge Labels","Enables the display of labels for edges to provide additional context.","No","Yes",null,null,null,null,{"$f":"IF(COUNTIFS($F$2:F219, F219, $P$2:P219, TRUE)>1,TRUE,FALSE)","v":false},{"$f":"OR(ISNUMBER(MATCH(Checklist[[#This Row],[Type]], $B$3:$B$22, 0)), Checklist[[#This Row],[Type]] = \"*\")","v":false}]
[null,null,null,"Features","Density Plot","FC.CART01","Axis Titles","Allows users to add titles to the X and Y axes for better context.","No","Yes",null,null,null,null,{"$f":"IF(COUNTIFS($F$2:F220, F220, $P$2:P220, TRUE)>1,TRUE,FALSE)","v":false},{"$f":"OR(ISNUMBER(MATCH(Checklist[[#This Row],[Type]], $B$3:$B$22, 0)), Checklist[[#This Row],[Type]] = \"*\")","v":false}]
[null,null,null,"Features","Density Plot","FC.CART02","Axis Customization","Allows customization of the axis labels, tick marks, and scales.","No","Yes",null,null,null,null,{"$f":"IF(COUNTIFS($F$2:F221, F221, $P$2:P221, TRUE)>1,TRUE,FALSE)","v":false},{"$f":"OR(ISNUMBER(MATCH(Checklist[[#This Row],[Type]], $B$3:$B$22, 0)), Checklist[[#This Row],[Type]] = \"*\")","v":false}]
[null,null,null,"Features","Density Plot","FC.CART04","Grid Lines","Supports grid lines to aid in reading data values.","No","Yes",null,null,null,null,{"$f":"IF(COUNTIFS($F$2:F222, F222, $P$2:P222, TRUE)>1,TRUE,FALSE)","v":false},{"$f":"OR(ISNUMBER(MATCH(Checklist[[#This Row],[Type]], $B$3:$B$22, 0)), Checklist[[#This Row],[Type]] = \"*\")","v":false}]
[null,null,null,"Features","Density Plot","FC.CART05","Reference Lines","Supports adding reference lines to highlight specific values or thresholds.","No","Yes",null,null,null,null,{"$f":"IF(COUNTIFS($F$2:F223, F223, $P$2:P223, TRUE)>1,TRUE,FALSE)","v":false},{"$f":"OR(ISNUMBER(MATCH(Checklist[[#This Row],[Type]], $B$3:$B$22, 0)), Checklist[[#This Row],[Type]] = \"*\")","v":false}]
[null,null,null,"Features","Density Plot","FC.CART07","Data Point Markers","Allows users to conditionally format data point markers.","No","Yes",null,null,null,null,{"$f":"IF(COUNTIFS($F$2:F224, F224, $P$2:P224, TRUE)>1,TRUE,FALSE)","v":false},{"$f":"OR(ISNUMBER(MATCH(Checklist[[#This Row],[Type]], $B$3:$B$22, 0)), Checklist[[#This Row],[Type]] = \"*\")","v":false}]
[null,null,null,"Features","Density Plot","FC.CART08","Trend Lines","Supports adding trend lines to visualize data trends.","No","Yes",null,null,null,null,{"$f":"IF(COUNTIFS($F$2:F225, F225, $P$2:P225, TRUE)>1,TRUE,FALSE)","v":false},{"$f":"OR(ISNUMBER(MATCH(Checklist[[#This Row],[Type]], $B$3:$B$22, 0)), Checklist[[#This Row],[Type]] = \"*\")","v":false}]
[null,null,null,"Features","Density Plot","FC.CART09","Pan & Zoom","Supports panning and zooming for better exploration of data.","No","Yes",null,null,null,null,{"$f":"IF(COUNTIFS($F$2:F226, F226, $P$2:P226, TRUE)>1,TRUE,FALSE)","v":false},{"$f":"OR(ISNUMBER(MATCH(Checklist[[#This Row],[Type]], $B$3:$B$22, 0)), Checklist[[#This Row],[Type]] = \"*\")","v":false}]
[null,null,null,"Features","Density Plot","FC.CART11","Custom Annotations","Allows users to add custom annotations based on data or conditions.","No","Yes",null,null,null,null,{"$f":"IF(COUNTIFS($F$2:F227, F227, $P$2:P227, TRUE)>1,TRUE,FALSE)","v":false},{"$f":"OR(ISNUMBER(MATCH(Checklist[[#This Row],[Type]], $B$3:$B$22, 0)), Checklist[[#This Row],[Type]] = \"*\")","v":false}]
[null,null,null,"Features","Density Plot","FT.DENS01","Bandwidth Customization","Allows users to adjust the bandwidth for the density estimation.","No","Yes",null,null,null,null,{"$f":"IF(COUNTIFS($F$2:F228, F228, $P$2:P228, TRUE)>1,TRUE,FALSE)","v":false},{"$f":"OR(ISNUMBER(MATCH(Checklist[[#This Row],[Type]], $B$3:$B$22, 0)), Checklist[[#This Row],[Type]] = \"*\")","v":false}]
[null,null,null,"Features","Density Plot","FT.DENS02","Individual Scaling","Enables scaling of individual density plots for better comparison.","No","Yes",null,null,null,null,{"$f":"IF(COUNTIFS($F$2:F229, F229, $P$2:P229, TRUE)>1,TRUE,FALSE)","v":false},{"$f":"OR(ISNUMBER(MATCH(Checklist[[#This Row],[Type]], $B$3:$B$22, 0)), Checklist[[#This Row],[Type]] = \"*\")","v":false}]
[null,null,null,"Features","Density Plot","FT.DENS03","Multiple Distributions","Supports displaying multiple density distributions on the same plot.","No","Yes",null,null,null,null,{"$f":"IF(COUNTIFS($F$2:F230, F230, $P$2:P230, TRUE)>1,TRUE,FALSE)","v":false},{"$f":"OR(ISNUMBER(MATCH(Checklist[[#This Row],[Type]], $B$3:$B$22, 0)), Checklist[[#This Row],[Type]] = \"*\")","v":false}]
[null,null,null,"Features","Density Plot","FT.DENS04","Statistical Lines","Displays statistical lines (mean, median, etc.) on the density plot.","No","Yes",null,null,null,null,{"$f":"IF(COUNTIFS($F$2:F231, F231, $P$2:P231, TRUE)>1,TRUE,FALSE)","v":false},{"$f":"OR(ISNUMBER(MATCH(Checklist[[#This Row],[Type]], $B$3:$B$22, 0)), Checklist[[#This Row],[Type]] = \"*\")","v":false}]
[null,null,null,"Features","Density Plot","FT.DENS05","Jittering","Allows data points to be jittered to avoid overlap and improve visibility.","No","Yes",null,null,null,null,{"$f":"IF(COUNTIFS($F$2:F232, F232, $P$2:P232, TRUE)>1,TRUE,FALSE)","v":false},{"$f":"OR(ISNUMBER(MATCH(Checklist[[#This Row],[Type]], $B$3:$B$22, 0)), Checklist[[#This Row],[Type]] = \"*\")","v":false}]
[null,null,null,"Features","Dot Matrix Chart","FC.PROP03","Category Labels","Enables the display of labels for categories.","No","Yes",null,null,null,null,{"$f":"IF(COUNTIFS($F$2:F233, F233, $P$2:P233, TRUE)>1,TRUE,FALSE)","v":false},{"$f":"OR(ISNUMBER(MATCH(Checklist[[#This Row],[Type]], $B$3:$B$22, 0)), Checklist[[#This Row],[Type]] = \"*\")","v":false}]
[null,null,null,"Features","Dot Matrix Chart","FC.PROP04","Borders Customization","Allows customization of borders for better visual distinction.","No","Yes",null,null,null,null,{"$f":"IF(COUNTIFS($F$2:F234, F234, $P$2:P234, TRUE)>1,TRUE,FALSE)","v":false},{"$f":"OR(ISNUMBER(MATCH(Checklist[[#This Row],[Type]], $B$3:$B$22, 0)), Checklist[[#This Row],[Type]] = \"*\")","v":false}]
[null,null,null,"Features","Dot Matrix Chart","FC.PROP05","Pan & Zoom","Supports panning and zooming for better exploration of data.","No","Yes",null,null,null,null,{"$f":"IF(COUNTIFS($F$2:F235, F235, $P$2:P235, TRUE)>1,TRUE,FALSE)","v":false},{"$f":"OR(ISNUMBER(MATCH(Checklist[[#This Row],[Type]], $B$3:$B$22, 0)), Checklist[[#This Row],[Type]] = \"*\")","v":false}]
[null,null,null,"Features","Dot Matrix Chart","FC.PROP06","Dynamic Sorting","Supports sorting data points based on specific columns or measures.","No","Yes",null,null,null,null,{"$f":"IF(COUNTIFS($F$2:F236, F236, $P$2:P236, TRUE)>1,TRUE,FALSE)","v":false},{"$f":"OR(ISNUMBER(MATCH(Checklist[[#This Row],[Type]], $B$3:$B$22, 0)), Checklist[[#This Row],[Type]] = \"*\")","v":false}]
[null,null,null,"Features","Dot Matrix Chart","FC.PROP07","Multiple Selection with Lasso","Allows users to select multiple data points by drawing a lasso around them.","No","Yes",null,null,null,null,{"$f":"IF(COUNTIFS($F$2:F237, F237, $P$2:P237, TRUE)>1,TRUE,FALSE)","v":false},{"$f":"OR(ISNUMBER(MATCH(Checklist[[#This Row],[Type]], $B$3:$B$22, 0)), Checklist[[#This Row],[Type]] = \"*\")","v":false}]
[null,null,null,"Features","Dot Matrix Chart","FT.DOTMATR01","Data Density Control","Allows users to adjust the density of dots displayed for better clarity.","No","Yes",null,null,null,null,{"$f":"IF(COUNTIFS($F$2:F238, F238, $P$2:P238, TRUE)>1,TRUE,FALSE)","v":false},{"$f":"OR(ISNUMBER(MATCH(Checklist[[#This Row],[Type]], $B$3:$B$22, 0)), Checklist[[#This Row],[Type]] = \"*\")","v":false}]
[null,null,null,"Features","Dot Matrix Chart","FT.DOTMATR02","Custom Dot Size","Enables customization of dot sizes based on data values for enhanced visual impact.","No","Yes",null,null,null,null,{"$f":"IF(COUNTIFS($F$2:F239, F239, $P$2:P239, TRUE)>1,TRUE,FALSE)","v":false},{"$f":"OR(ISNUMBER(MATCH(Checklist[[#This Row],[Type]], $B$3:$B$22, 0)), Checklist[[#This Row],[Type]] = \"*\")","v":false}]
[null,null,null,"Features","Dot Plot","FC.CART01","Axis Titles","Allows users to add titles to the X and Y axes for better context.","No","Yes",null,null,null,null,{"$f":"IF(COUNTIFS($F$2:F240, F240, $P$2:P240, TRUE)>1,TRUE,FALSE)","v":false},{"$f":"OR(ISNUMBER(MATCH(Checklist[[#This Row],[Type]], $B$3:$B$22, 0)), Checklist[[#This Row],[Type]] = \"*\")","v":false}]
[null,null,null,"Features","Dot Plot","FC.CART02","Axis Customization","Allows customization of the axis labels, tick marks, and scales.","No","Yes",null,null,null,null,{"$f":"IF(COUNTIFS($F$2:F241, F241, $P$2:P241, TRUE)>1,TRUE,FALSE)","v":false},{"$f":"OR(ISNUMBER(MATCH(Checklist[[#This Row],[Type]], $B$3:$B$22, 0)), Checklist[[#This Row],[Type]] = \"*\")","v":false}]
[null,null,null,"Features","Dot Plot","FC.CART04","Grid Lines","Supports grid lines to aid in reading data values.","No","Yes",null,null,null,null,{"$f":"IF(COUNTIFS($F$2:F242, F242, $P$2:P242, TRUE)>1,TRUE,FALSE)","v":false},{"$f":"OR(ISNUMBER(MATCH(Checklist[[#This Row],[Type]], $B$3:$B$22, 0)), Checklist[[#This Row],[Type]] = \"*\")","v":false}]
[null,null,null,"Features","Dot Plot","FC.CART05","Reference Lines","Supports adding reference lines to highlight specific values or thresholds.","No","Yes",null,null,null,null,{"$f":"IF(COUNTIFS($F$2:F243, F243, $P$2:P243, TRUE)>1,TRUE,FALSE)","v":false},{"$f":"OR(ISNUMBER(MATCH(Checklist[[#This Row],[Type]], $B$3:$B$22, 0)), Checklist[[#This Row],[Type]] = \"*\")","v":false}]
[null,null,null,"Features","Dot Plot","FC.CART07","Data Point Markers","Allows users to conditionally format data point markers.","No","Yes",null,null,null,null,{"$f":"IF(COUNTIFS($F$2:F244, F244, $P$2:P244, TRUE)>1,TRUE,FALSE)","v":false},{"$f":"OR(ISNUMBER(MATCH(Checklist[[#This Row],[Type]], $B$3:$B$22, 0)), Checklist[[#This Row],[Type]] = \"*\")","v":false}]
[null,null,null,"Features","Dot Plot","FC.CART08","Trend Lines","Supports adding trend lines to visualize data trends.","No","Yes",null,null,null,null,{"$f":"IF(COUNTIFS($F$2:F245, F245, $P$2:P245, TRUE)>1,TRUE,FALSE)","v":false},{"$f":"OR(ISNUMBER(MATCH(Checklist[[#This Row],[Type]], $B$3:$B$22, 0)), Checklist[[#This Row],[Type]] = \"*\")","v":false}]
[null,null,null,"Features","Dot Plot","FC.CART09","Pan & Zoom","Supports panning and zooming for better exploration of data.","No","Yes",null,null,null,null,{"$f":"IF(COUNTIFS($F$2:F246, F246, $P$2:P246, TRUE)>1,TRUE,FALSE)","v":false},{"$f":"OR(ISNUMBER(MATCH(Checklist[[#This Row],[Type]], $B$3:$B$22, 0)), Checklist[[#This Row],[Type]] = \"*\")","v":false}]
[null,null,null,"Features","Dot Plot","FT.DOT01","Custom Dot Size","Enables variation in dot size based on a specific measure to enhance visual impact.","No","Yes",null,null,null,null,{"$f":"IF(COUNTIFS($F$2:F247, F247, $P$2:P247, TRUE)>1,TRUE,FALSE)","v":false},{"$f":"OR(ISNUMBER(MATCH(Checklist[[#This Row],[Type]], $B$3:$B$22, 0)), Checklist[[#This Row],[Type]] = \"*\")","v":false}]
[null,null,null,"Features","Dot Plot","FT.DOT02","Jittering","Allows data points to be jittered to avoid overlap and improve visibility.","No","Yes",null,null,null,null,{"$f":"IF(COUNTIFS($F$2:F248, F248, $P$2:P248, TRUE)>1,TRUE,FALSE)","v":false},{"$f":"OR(ISNUMBER(MATCH(Checklist[[#This Row],[Type]], $B$3:$B$22, 0)), Checklist[[#This Row],[Type]] = \"*\")","v":false}]
[null,null,null,"Features","Dot Plot","FT.DOT3","Clustering","Groups nearby data points into clusters for better visualization of density.","No","Yes",null,null,null,null,{"$f":"IF(COUNTIFS($F$2:F249, F249, $P$2:P249, TRUE)>1,TRUE,FALSE)","v":false},{"$f":"OR(ISNUMBER(MATCH(Checklist[[#This Row],[Type]], $B$3:$B$22, 0)), Checklist[[#This Row],[Type]] = \"*\")","v":false}]
[null,null,null,"Features","Dumbbell Chart","FC.CART01","Axis Titles","Allows users to add titles to the X and Y axes for better context.","No","Yes",null,null,null,null,{"$f":"IF(COUNTIFS($F$2:F250, F250, $P$2:P250, TRUE)>1,TRUE,FALSE)","v":false},{"$f":"OR(ISNUMBER(MATCH(Checklist[[#This Row],[Type]], $B$3:$B$22, 0)), Checklist[[#This Row],[Type]] = \"*\")","v":false}]
[null,null,null,"Features","Dumbbell Chart","FC.CART02","Axis Customization","Allows customization of the axis labels, tick marks, and scales.","No","Yes",null,null,null,null,{"$f":"IF(COUNTIFS($F$2:F251, F251, $P$2:P251, TRUE)>1,TRUE,FALSE)","v":false},{"$f":"OR(ISNUMBER(MATCH(Checklist[[#This Row],[Type]], $B$3:$B$22, 0)), Checklist[[#This Row],[Type]] = \"*\")","v":false}]
[null,null,null,"Features","Dumbbell Chart","FC.CART04","Grid Lines","Supports grid lines to aid in reading data values.","No","Yes",null,null,null,null,{"$f":"IF(COUNTIFS($F$2:F252, F252, $P$2:P252, TRUE)>1,TRUE,FALSE)","v":false},{"$f":"OR(ISNUMBER(MATCH(Checklist[[#This Row],[Type]], $B$3:$B$22, 0)), Checklist[[#This Row],[Type]] = \"*\")","v":false}]
[null,null,null,"Features","Dumbbell Chart","FC.CART05","Reference Lines","Supports adding reference lines to highlight specific values or thresholds.","No","Yes",null,null,null,null,{"$f":"IF(COUNTIFS($F$2:F253, F253, $P$2:P253, TRUE)>1,TRUE,FALSE)","v":false},{"$f":"OR(ISNUMBER(MATCH(Checklist[[#This Row],[Type]], $B$3:$B$22, 0)), Checklist[[#This Row],[Type]] = \"*\")","v":false}]
[null,null,null,"Features","Dumbbell Chart","FC.CART07","Data Point Markers","Allows users to conditionally format data point markers.","No","Yes",null,null,null,null,{"$f":"IF(COUNTIFS($F$2:F254, F254, $P$2:P254, TRUE)>1,TRUE,FALSE)","v":false},{"$f":"OR(ISNUMBER(MATCH(Checklist[[#This Row],[Type]], $B$3:$B$22, 0)), Checklist[[#This Row],[Type]] = \"*\")","v":false}]
[null,null,null,"Features","Dumbbell Chart","FC.CART09","Pan & Zoom","Supports panning and zooming for better exploration of data.","No","Yes",null,null,null,null,{"$f":"IF(COUNTIFS($F$2:F255, F255, $P$2:P255, TRUE)>1,TRUE,FALSE)","v":false},{"$f":"OR(ISNUMBER(MATCH(Checklist[[#This Row],[Type]], $B$3:$B$22, 0)), Checklist[[#This Row],[Type]] = \"*\")","v":false}]
[null,null,null,"Features","Dumbbell Chart","FC.CART11","Custom Annotations","Allows users to add custom annotations based on data or conditions.","No","Yes",null,null,null,null,{"$f":"IF(COUNTIFS($F$2:F256, F256, $P$2:P256, TRUE)>1,TRUE,FALSE)","v":false},{"$f":"OR(ISNUMBER(MATCH(Checklist[[#This Row],[Type]], $B$3:$B$22, 0)), Checklist[[#This Row],[Type]] = \"*\")","v":false}]
[null,null,null,"Features","Dumbbell Chart","FT.DUMB01","Multiple Orientations","Supports both horizontal and vertical orientations.","No","Yes",null,null,null,null,{"$f":"IF(COUNTIFS($F$2:F257, F257, $P$2:P257, TRUE)>1,TRUE,FALSE)","v":false},{"$f":"OR(ISNUMBER(MATCH(Checklist[[#This Row],[Type]], $B$3:$B$22, 0)), Checklist[[#This Row],[Type]] = \"*\")","v":false}]
[null,null,null,"Features","Fan Chart","FC.CART01","Axis Titles","Allows users to add titles to the X and Y axes for better context.","No","Yes",null,null,null,null,{"$f":"IF(COUNTIFS($F$2:F258, F258, $P$2:P258, TRUE)>1,TRUE,FALSE)","v":false},{"$f":"OR(ISNUMBER(MATCH(Checklist[[#This Row],[Type]], $B$3:$B$22, 0)), Checklist[[#This Row],[Type]] = \"*\")","v":false}]
[null,null,null,"Features","Fan Chart","FC.CART02","Axis Customization","Allows customization of the axis labels, tick marks, and scales.","No","Yes",null,null,null,null,{"$f":"IF(COUNTIFS($F$2:F259, F259, $P$2:P259, TRUE)>1,TRUE,FALSE)","v":false},{"$f":"OR(ISNUMBER(MATCH(Checklist[[#This Row],[Type]], $B$3:$B$22, 0)), Checklist[[#This Row],[Type]] = \"*\")","v":false}]
[null,null,null,"Features","Fan Chart","FC.CART04","Grid Lines","Supports grid lines to aid in reading data values.","No","Yes",null,null,null,null,{"$f":"IF(COUNTIFS($F$2:F260, F260, $P$2:P260, TRUE)>1,TRUE,FALSE)","v":false},{"$f":"OR(ISNUMBER(MATCH(Checklist[[#This Row],[Type]], $B$3:$B$22, 0)), Checklist[[#This Row],[Type]] = \"*\")","v":false}]
[null,null,null,"Features","Fan Chart","FC.CART05","Reference Lines","Supports adding reference lines to highlight specific values or thresholds.","No","Yes",null,null,null,null,{"$f":"IF(COUNTIFS($F$2:F261, F261, $P$2:P261, TRUE)>1,TRUE,FALSE)","v":false},{"$f":"OR(ISNUMBER(MATCH(Checklist[[#This Row],[Type]], $B$3:$B$22, 0)), Checklist[[#This Row],[Type]] = \"*\")","v":false}]
[null,null,null,"Features","Fan Chart","FC.CART07","Data Point Markers","Allows users to conditionally format data point markers.","No","Yes",null,null,null,null,{"$f":"IF(COUNTIFS($F$2:F262, F262, $P$2:P262, TRUE)>1,TRUE,FALSE)","v":false},{"$f":"OR(ISNUMBER(MATCH(Checklist[[#This Row],[Type]], $B$3:$B$22, 0)), Checklist[[#This Row],[Type]] = \"*\")","v":false}]
[null,null,null,"Features","Fan Chart","FC.CART08","Trend Lines","Supports adding trend lines to visualize data trends.","No","Yes",null,null,null,null,{"$f":"IF(COUNTIFS($F$2:F263, F263, $P$2:P263, TRUE)>1,TRUE,FALSE)","v":false},{"$f":"OR(ISNUMBER(MATCH(Checklist[[#This Row],[Type]], $B$3:$B$22, 0)), Checklist[[#This Row],[Type]] = \"*\")","v":false}]
[null,null,null,"Features","Fan Chart","FC.CART09","Pan & Zoom","Supports panning and zooming for better exploration of data.","No","Yes",null,null,null,null,{"$f":"IF(COUNTIFS($F$2:F264, F264, $P$2:P264, TRUE)>1,TRUE,FALSE)","v":false},{"$f":"OR(ISNUMBER(MATCH(Checklist[[#This Row],[Type]], $B$3:$B$22, 0)), Checklist[[#This Row],[Type]] = \"*\")","v":false}]
[null,null,null,"Features","Fan Chart","FC.CART10","Dynamic Sorting","Supports sorting data points based on specific columns or measures.","No","Yes",null,null,null,null,{"$f":"IF(COUNTIFS($F$2:F265, F265, $P$2:P265, TRUE)>1,TRUE,FALSE)","v":false},{"$f":"OR(ISNUMBER(MATCH(Checklist[[#This Row],[Type]], $B$3:$B$22, 0)), Checklist[[#This Row],[Type]] = \"*\")","v":false}]
[null,null,null,"Features","Fan Chart","FC.CART11","Custom Annotations","Allows users to add custom annotations based on data or conditions.","No","Yes",null,null,null,null,{"$f":"IF(COUNTIFS($F$2:F266, F266, $P$2:P266, TRUE)>1,TRUE,FALSE)","v":false},{"$f":"OR(ISNUMBER(MATCH(Checklist[[#This Row],[Type]], $B$3:$B$22, 0)), Checklist[[#This Row],[Type]] = \"*\")","v":false}]
[null,null,null,"Features","Fan Chart","FT.FAN01","Area Coloring","Allow users to customize the coloring of the forecast area.","No","Yes",null,null,null,null,{"$f":"IF(COUNTIFS($F$2:F267, F267, $P$2:P267, TRUE)>1,TRUE,FALSE)","v":false},{"$f":"OR(ISNUMBER(MATCH(Checklist[[#This Row],[Type]], $B$3:$B$22, 0)), Checklist[[#This Row],[Type]] = \"*\")","v":false}]
[null,null,null,"Features","Text Filter","FC.FILTER01","Current Selection Display","Shows the current selection of filters applied to the data.","No","Yes",null,null,null,null,{"$f":"IF(COUNTIFS($F$2:F268, F268, $P$2:P268, TRUE)>1,TRUE,FALSE)","v":false},{"$f":"OR(ISNUMBER(MATCH(Checklist[[#This Row],[Type]], $B$3:$B$22, 0)), Checklist[[#This Row],[Type]] = \"*\")","v":false}]
[null,null,null,"Features","Text Filter","FC.FILTER02","Default Selection","Allows setting a default selection for filters.","No","Yes",null,null,null,null,{"$f":"IF(COUNTIFS($F$2:F269, F269, $P$2:P269, TRUE)>1,TRUE,FALSE)","v":false},{"$f":"OR(ISNUMBER(MATCH(Checklist[[#This Row],[Type]], $B$3:$B$22, 0)), Checklist[[#This Row],[Type]] = \"*\")","v":false}]
[null,null,null,"Features","Text Filter","FC.FILTER03","Select All","Includes a 'Select All' option to quickly select all filter options.","No","Yes",null,null,null,null,{"$f":"IF(COUNTIFS($F$2:F270, F270, $P$2:P270, TRUE)>1,TRUE,FALSE)","v":false},{"$f":"OR(ISNUMBER(MATCH(Checklist[[#This Row],[Type]], $B$3:$B$22, 0)), Checklist[[#This Row],[Type]] = \"*\")","v":false}]
[null,null,null,"Features","Text Filter","FC.FILTER04","Clear Button","Includes a clear button to reset the filter.","No","Yes",null,null,null,null,{"$f":"IF(COUNTIFS($F$2:F271, F271, $P$2:P271, TRUE)>1,TRUE,FALSE)","v":false},{"$f":"OR(ISNUMBER(MATCH(Checklist[[#This Row],[Type]], $B$3:$B$22, 0)), Checklist[[#This Row],[Type]] = \"*\")","v":false}]
[null,null,null,"Features","Text Filter","FT.TFILTER01","Text auto-complete","Provides auto-complete suggestions as users type in the text filter.","No","Yes",null,null,null,null,{"$f":"IF(COUNTIFS($F$2:F272, F272, $P$2:P272, TRUE)>1,TRUE,FALSE)","v":false},{"$f":"OR(ISNUMBER(MATCH(Checklist[[#This Row],[Type]], $B$3:$B$22, 0)), Checklist[[#This Row],[Type]] = \"*\")","v":false}]
[null,null,null,"Features","Text Filter","FT.TFILTER02","Operators Support","Supports operators such as 'AND', 'OR', 'NOT' for advanced text filtering.","No","Yes",null,null,null,null,{"$f":"IF(COUNTIFS($F$2:F273, F273, $P$2:P273, TRUE)>1,TRUE,FALSE)","v":false},{"$f":"OR(ISNUMBER(MATCH(Checklist[[#This Row],[Type]], $B$3:$B$22, 0)), Checklist[[#This Row],[Type]] = \"*\")","v":false}]
[null,null,null,"Features","Text Filter","FT.TFILTER03","Fuzzy Search","Supports fuzzy search to find approximate matches for the entered text (e.g. 'appl?' for 'apple').","No","Yes",null,null,null,null,{"$f":"IF(COUNTIFS($F$2:F274, F274, $P$2:P274, TRUE)>1,TRUE,FALSE)","v":false},{"$f":"OR(ISNUMBER(MATCH(Checklist[[#This Row],[Type]], $B$3:$B$22, 0)), Checklist[[#This Row],[Type]] = \"*\")","v":false}]
[null,null,null,"Features","Text Filter","FT.TFILTER04","Logical Range","Allows users to define logical ranges for text filtering (e.g. '< 50').","No","Yes",null,null,null,null,{"$f":"IF(COUNTIFS($F$2:F275, F275, $P$2:P275, TRUE)>1,TRUE,FALSE)","v":false},{"$f":"OR(ISNUMBER(MATCH(Checklist[[#This Row],[Type]], $B$3:$B$22, 0)), Checklist[[#This Row],[Type]] = \"*\")","v":false}]
[null,null,null,"Features","List Filter","FC.FILTER01","Current Selection Display","Shows the current selection of filters applied to the data.","No","Yes",null,null,null,null,{"$f":"IF(COUNTIFS($F$2:F276, F276, $P$2:P276, TRUE)>1,TRUE,FALSE)","v":false},{"$f":"OR(ISNUMBER(MATCH(Checklist[[#This Row],[Type]], $B$3:$B$22, 0)), Checklist[[#This Row],[Type]] = \"*\")","v":false}]
[null,null,null,"Features","List Filter","FC.FILTER02","Default Selection","Allows setting a default selection for filters.","No","Yes",null,null,null,null,{"$f":"IF(COUNTIFS($F$2:F277, F277, $P$2:P277, TRUE)>1,TRUE,FALSE)","v":false},{"$f":"OR(ISNUMBER(MATCH(Checklist[[#This Row],[Type]], $B$3:$B$22, 0)), Checklist[[#This Row],[Type]] = \"*\")","v":false}]
[null,null,null,"Features","List Filter","FC.FILTER03","Select All","Includes a 'Select All' option to quickly select all filter options.","No","Yes",null,null,null,null,{"$f":"IF(COUNTIFS($F$2:F278, F278, $P$2:P278, TRUE)>1,TRUE,FALSE)","v":false},{"$f":"OR(ISNUMBER(MATCH(Checklist[[#This Row],[Type]], $B$3:$B$22, 0)), Checklist[[#This Row],[Type]] = \"*\")","v":false}]
[null,null,null,"Features","List Filter","FC.FILTER04","Clear Button","Includes a clear button to reset the filter.","No","Yes",null,null,null,null,{"$f":"IF(COUNTIFS($F$2:F279, F279, $P$2:P279, TRUE)>1,TRUE,FALSE)","v":false},{"$f":"OR(ISNUMBER(MATCH(Checklist[[#This Row],[Type]], $B$3:$B$22, 0)), Checklist[[#This Row],[Type]] = \"*\")","v":false}]
[null,null,null,"Features","List Filter","FT.LFILTER01","Hierarchical Selection","Supports hierarchical visualization of filter options with multiple fields.","No","Yes",null,null,null,null,{"$f":"IF(COUNTIFS($F$2:F280, F280, $P$2:P280, TRUE)>1,TRUE,FALSE)","v":false},{"$f":"OR(ISNUMBER(MATCH(Checklist[[#This Row],[Type]], $B$3:$B$22, 0)), Checklist[[#This Row],[Type]] = \"*\")","v":false}]
[null,null,null,"Features","List Filter","FT.LFILTER02","Popup","Allow to display filter options in a popup window for better visibility and selection.","No","Yes",null,null,null,null,{"$f":"IF(COUNTIFS($F$2:F281, F281, $P$2:P281, TRUE)>1,TRUE,FALSE)","v":false},{"$f":"OR(ISNUMBER(MATCH(Checklist[[#This Row],[Type]], $B$3:$B$22, 0)), Checklist[[#This Row],[Type]] = \"*\")","v":false}]
[null,null,null,"Features","Date Filter","FC.FILTER01","Current Selection Display","Shows the current selection of filters applied to the data.","No","Yes",null,null,null,null,{"$f":"IF(COUNTIFS($F$2:F282, F282, $P$2:P282, TRUE)>1,TRUE,FALSE)","v":false},{"$f":"OR(ISNUMBER(MATCH(Checklist[[#This Row],[Type]], $B$3:$B$22, 0)), Checklist[[#This Row],[Type]] = \"*\")","v":false}]
[null,null,null,"Features","Date Filter","FC.FILTER02","Default Selection","Allows setting a default selection for filters.","No","Yes",null,null,null,null,{"$f":"IF(COUNTIFS($F$2:F283, F283, $P$2:P283, TRUE)>1,TRUE,FALSE)","v":false},{"$f":"OR(ISNUMBER(MATCH(Checklist[[#This Row],[Type]], $B$3:$B$22, 0)), Checklist[[#This Row],[Type]] = \"*\")","v":false}]
[null,null,null,"Features","Date Filter","FC.FILTER03","Select All","Includes a 'Select All' option to quickly select all filter options.","No","Yes",null,null,null,null,{"$f":"IF(COUNTIFS($F$2:F284, F284, $P$2:P284, TRUE)>1,TRUE,FALSE)","v":false},{"$f":"OR(ISNUMBER(MATCH(Checklist[[#This Row],[Type]], $B$3:$B$22, 0)), Checklist[[#This Row],[Type]] = \"*\")","v":false}]
[null,null,null,"Features","Date Filter","FC.FILTER04","Clear Button","Includes a clear button to reset the filter.","No","Yes",null,null,null,null,{"$f":"IF(COUNTIFS($F$2:F285, F285, $P$2:P285, TRUE)>1,TRUE,FALSE)","v":false},{"$f":"OR(ISNUMBER(MATCH(Checklist[[#This Row],[Type]], $B$3:$B$22, 0)), Checklist[[#This Row],[Type]] = \"*\")","v":false}]
[null,null,null,"Features","Date Filter","FT.DFILTER01","Today","Includes a 'Today' button to quickly select the current date.","No","Yes",null,null,null,null,{"$f":"IF(COUNTIFS($F$2:F286, F286, $P$2:P286, TRUE)>1,TRUE,FALSE)","v":false},{"$f":"OR(ISNUMBER(MATCH(Checklist[[#This Row],[Type]], $B$3:$B$22, 0)), Checklist[[#This Row],[Type]] = \"*\")","v":false}]
[null,null,null,"Features","Date Filter","FT.DFILTER02","Custom Date Format","Supports custom date formats and localization.","No","Yes",null,null,null,null,{"$f":"IF(COUNTIFS($F$2:F287, F287, $P$2:P287, TRUE)>1,TRUE,FALSE)","v":false},{"$f":"OR(ISNUMBER(MATCH(Checklist[[#This Row],[Type]], $B$3:$B$22, 0)), Checklist[[#This Row],[Type]] = \"*\")","v":false}]
[null,null,null,"Features","Date Filter","FT.DFILTER03","Partial Selection","Allows users to select partial date ranges (e.g. only weekends) or exclude dates.","No","Yes",null,null,null,null,{"$f":"IF(COUNTIFS($F$2:F288, F288, $P$2:P288, TRUE)>1,TRUE,FALSE)","v":false},{"$f":"OR(ISNUMBER(MATCH(Checklist[[#This Row],[Type]], $B$3:$B$22, 0)), Checklist[[#This Row],[Type]] = \"*\")","v":false}]
[null,null,null,"Features","Date Filter","FT.DFILTER04","Multiple Intervals","Allows users to select partial date ranges (e.g. only weekends).","No","Yes",null,null,null,null,{"$f":"IF(COUNTIFS($F$2:F289, F289, $P$2:P289, TRUE)>1,TRUE,FALSE)","v":false},{"$f":"OR(ISNUMBER(MATCH(Checklist[[#This Row],[Type]], $B$3:$B$22, 0)), Checklist[[#This Row],[Type]] = \"*\")","v":false}]
[null,null,null,"Features","Date Filter","FT.DFILTER05","Popup","Allow to display filter options in a popup window for better visibility and selection.","No","Yes",null,null,null,null,{"$f":"IF(COUNTIFS($F$2:F290, F290, $P$2:P290, TRUE)>1,TRUE,FALSE)","v":false},{"$f":"OR(ISNUMBER(MATCH(Checklist[[#This Row],[Type]], $B$3:$B$22, 0)), Checklist[[#This Row],[Type]] = \"*\")","v":false}]
[null,null,null,"Features","Date Filter","FT.DFILTER06","Groups Selection","Allows users to group dates by year, month, day, etc., for easier selection.","No","Yes",null,null,null,null,{"$f":"IF(COUNTIFS($F$2:F291, F291, $P$2:P291, TRUE)>1,TRUE,FALSE)","v":false},{"$f":"OR(ISNUMBER(MATCH(Checklist[[#This Row],[Type]], $B$3:$B$22, 0)), Checklist[[#This Row],[Type]] = \"*\")","v":false}]
[null,null,null,"Features","Date Filter","FT.DFILTER07","Timeline Selection","Supports selecting date ranges directly on a timeline for better precision.","No","Yes",null,null,null,null,{"$f":"IF(COUNTIFS($F$2:F292, F292, $P$2:P292, TRUE)>1,TRUE,FALSE)","v":false},{"$f":"OR(ISNUMBER(MATCH(Checklist[[#This Row],[Type]], $B$3:$B$22, 0)), Checklist[[#This Row],[Type]] = \"*\")","v":false}]
[null,null,null,"Features","Control Filter","FC.FILTER01","Current Selection Display","Shows the current selection of filters applied to the data.","No","Yes",null,null,null,null,{"$f":"IF(COUNTIFS($F$2:F293, F293, $P$2:P293, TRUE)>1,TRUE,FALSE)","v":false},{"$f":"OR(ISNUMBER(MATCH(Checklist[[#This Row],[Type]], $B$3:$B$22, 0)), Checklist[[#This Row],[Type]] = \"*\")","v":false}]
[null,null,null,"Features","Control Filter","FC.FILTER02","Default Selection","Allows setting a default selection for filters.","No","Yes",null,null,null,null,{"$f":"IF(COUNTIFS($F$2:F294, F294, $P$2:P294, TRUE)>1,TRUE,FALSE)","v":false},{"$f":"OR(ISNUMBER(MATCH(Checklist[[#This Row],[Type]], $B$3:$B$22, 0)), Checklist[[#This Row],[Type]] = \"*\")","v":false}]
[null,null,null,"Features","Flow Chart","FC.FLOW01","Labels on Flow Lines/Stages","Provides additional information about transitions.","No","Yes",null,null,null,null,{"$f":"IF(COUNTIFS($F$2:F295, F295, $P$2:P295, TRUE)>1,TRUE,FALSE)","v":false},{"$f":"OR(ISNUMBER(MATCH(Checklist[[#This Row],[Type]], $B$3:$B$22, 0)), Checklist[[#This Row],[Type]] = \"*\")","v":false}]
[null,null,null,"Features","Flow Chart","FC.FLOW03","Swimlanes","Allows to divide the chart into sections to represent different actors or departments.","No","Yes",null,null,null,null,{"$f":"IF(COUNTIFS($F$2:F296, F296, $P$2:P296, TRUE)>1,TRUE,FALSE)","v":false},{"$f":"OR(ISNUMBER(MATCH(Checklist[[#This Row],[Type]], $B$3:$B$22, 0)), Checklist[[#This Row],[Type]] = \"*\")","v":false}]
[null,null,null,"Features","Flow Chart","FC.FLOW04","Numbering Steps","Supports numbering steps to provide a clear sequence.","No","Yes",null,null,null,null,{"$f":"IF(COUNTIFS($F$2:F297, F297, $P$2:P297, TRUE)>1,TRUE,FALSE)","v":false},{"$f":"OR(ISNUMBER(MATCH(Checklist[[#This Row],[Type]], $B$3:$B$22, 0)), Checklist[[#This Row],[Type]] = \"*\")","v":false}]
[null,null,null,"Features","Flow Chart","FC.FLOW05","Background Grid","Allow to display a grid to align elements neatly.","No","Yes",null,null,null,null,{"$f":"IF(COUNTIFS($F$2:F298, F298, $P$2:P298, TRUE)>1,TRUE,FALSE)","v":false},{"$f":"OR(ISNUMBER(MATCH(Checklist[[#This Row],[Type]], $B$3:$B$22, 0)), Checklist[[#This Row],[Type]] = \"*\")","v":false}]
[null,null,null,"Features","Flow Chart","FC.FLOW06","Pan & Zoom","Supports panning and zooming for better exploration of data.","No","Yes",null,null,null,null,{"$f":"IF(COUNTIFS($F$2:F299, F299, $P$2:P299, TRUE)>1,TRUE,FALSE)","v":false},{"$f":"OR(ISNUMBER(MATCH(Checklist[[#This Row],[Type]], $B$3:$B$22, 0)), Checklist[[#This Row],[Type]] = \"*\")","v":false}]
[null,null,null,"Features","Flow Map","FC.MAP01","Map Styles","Provides options for customizing map styles and themes. E.g: Light, Dark, Streets, Satellite, etc.","No","Yes",null,null,null,null,{"$f":"IF(COUNTIFS($F$2:F300, F300, $P$2:P300, TRUE)>1,TRUE,FALSE)","v":false},{"$f":"OR(ISNUMBER(MATCH(Checklist[[#This Row],[Type]], $B$3:$B$22, 0)), Checklist[[#This Row],[Type]] = \"*\")","v":false}]
[null,null,null,"Features","Flow Map","FC.MAP02","Map Services Integration","Allows integration with map services for detailed mapping capabilities.","No","Yes",null,null,null,null,{"$f":"IF(COUNTIFS($F$2:F301, F301, $P$2:P301, TRUE)>1,TRUE,FALSE)","v":false},{"$f":"OR(ISNUMBER(MATCH(Checklist[[#This Row],[Type]], $B$3:$B$22, 0)), Checklist[[#This Row],[Type]] = \"*\")","v":false}]
[null,null,null,"Features","Flow Map","FC.MAP02.1","Offline Maps","Supports offline maps for disconnected environments.","No","Yes",null,null,null,null,{"$f":"IF(COUNTIFS($F$2:F302, F302, $P$2:P302, TRUE)>1,TRUE,FALSE)","v":false},{"$f":"OR(ISNUMBER(MATCH(Checklist[[#This Row],[Type]], $B$3:$B$22, 0)), Checklist[[#This Row],[Type]] = \"*\")","v":false}]
[null,null,null,"Features","Flow Map","FC.MAP03","Location Data Integration","Supports integration with coordinates (e.g. latitude, longitude) and categorical location data (e.g. city name, state name).","No","Yes",null,null,null,null,{"$f":"IF(COUNTIFS($F$2:F303, F303, $P$2:P303, TRUE)>1,TRUE,FALSE)","v":false},{"$f":"OR(ISNUMBER(MATCH(Checklist[[#This Row],[Type]], $B$3:$B$22, 0)), Checklist[[#This Row],[Type]] = \"*\")","v":false}]
[null,null,null,"Features","Flow Map","FC.MAP03.1","Manual Mapping","Supports manual mapping of categorical location data.","No","Yes",null,null,null,null,{"$f":"IF(COUNTIFS($F$2:F304, F304, $P$2:P304, TRUE)>1,TRUE,FALSE)","v":false},{"$f":"OR(ISNUMBER(MATCH(Checklist[[#This Row],[Type]], $B$3:$B$22, 0)), Checklist[[#This Row],[Type]] = \"*\")","v":false}]
[null,null,null,"Features","Flow Map","FC.MAP04","Jittering","Allows data points to be jittered to avoid overlap and improve visibility.","No","Yes",null,null,null,null,{"$f":"IF(COUNTIFS($F$2:F305, F305, $P$2:P305, TRUE)>1,TRUE,FALSE)","v":false},{"$f":"OR(ISNUMBER(MATCH(Checklist[[#This Row],[Type]], $B$3:$B$22, 0)), Checklist[[#This Row],[Type]] = \"*\")","v":false}]
[null,null,null,"Features","Flow Map","FC.MAP05","Map Annotations","Allows users to add custom annotations to the map.","No","Yes",null,null,null,null,{"$f":"IF(COUNTIFS($F$2:F306, F306, $P$2:P306, TRUE)>1,TRUE,FALSE)","v":false},{"$f":"OR(ISNUMBER(MATCH(Checklist[[#This Row],[Type]], $B$3:$B$22, 0)), Checklist[[#This Row],[Type]] = \"*\")","v":false}]
[null,null,null,"Features","Flow Map","FC.MAP06","Pan & Zoom","Supports panning and zooming for better exploration of data.","No","Yes",null,null,null,null,{"$f":"IF(COUNTIFS($F$2:F307, F307, $P$2:P307, TRUE)>1,TRUE,FALSE)","v":false},{"$f":"OR(ISNUMBER(MATCH(Checklist[[#This Row],[Type]], $B$3:$B$22, 0)), Checklist[[#This Row],[Type]] = \"*\")","v":false}]
[null,null,null,"Features","Flow Map","FC.MAP08","Custom Markers","Allows users to add custom map markers for additional context.","No","Yes",null,null,null,null,{"$f":"IF(COUNTIFS($F$2:F308, F308, $P$2:P308, TRUE)>1,TRUE,FALSE)","v":false},{"$f":"OR(ISNUMBER(MATCH(Checklist[[#This Row],[Type]], $B$3:$B$22, 0)), Checklist[[#This Row],[Type]] = \"*\")","v":false}]
[null,null,null,"Features","Flow Map","FT.FMAP01","Path Highlighting","Allows users to highlight specific paths or flows within the map for better visibility.","No","Yes",null,null,null,null,{"$f":"IF(COUNTIFS($F$2:F309, F309, $P$2:P309, TRUE)>1,TRUE,FALSE)","v":false},{"$f":"OR(ISNUMBER(MATCH(Checklist[[#This Row],[Type]], $B$3:$B$22, 0)), Checklist[[#This Row],[Type]] = \"*\")","v":false}]
[null,null,null,"Features","Flow Map","FT.FMAP02","Flow Direction","Visualizes flow direction with arrows or color gradients.","No","Yes",null,null,null,null,{"$f":"IF(COUNTIFS($F$2:F310, F310, $P$2:P310, TRUE)>1,TRUE,FALSE)","v":false},{"$f":"OR(ISNUMBER(MATCH(Checklist[[#This Row],[Type]], $B$3:$B$22, 0)), Checklist[[#This Row],[Type]] = \"*\")","v":false}]
[null,null,null,"Features","Flow Map","FT.FMAP03","Flow Density","Visualizes flow density with varying line thickness or color intensity.","No","Yes",null,null,null,null,{"$f":"IF(COUNTIFS($F$2:F311, F311, $P$2:P311, TRUE)>1,TRUE,FALSE)","v":false},{"$f":"OR(ISNUMBER(MATCH(Checklist[[#This Row],[Type]], $B$3:$B$22, 0)), Checklist[[#This Row],[Type]] = \"*\")","v":false}]
[null,null,null,"Features","Flow Map","FT.FMAP04","Origin-Destination Labels","Displays labels for origin and destination points to provide context.","No","Yes",null,null,null,null,{"$f":"IF(COUNTIFS($F$2:F312, F312, $P$2:P312, TRUE)>1,TRUE,FALSE)","v":false},{"$f":"OR(ISNUMBER(MATCH(Checklist[[#This Row],[Type]], $B$3:$B$22, 0)), Checklist[[#This Row],[Type]] = \"*\")","v":false}]
[null,null,null,"Features","Flow Map","FT.FMAP05","Multiple Flows","Supports displaying multiple flows or paths on the same map.","No","Yes",null,null,null,null,{"$f":"IF(COUNTIFS($F$2:F313, F313, $P$2:P313, TRUE)>1,TRUE,FALSE)","v":false},{"$f":"OR(ISNUMBER(MATCH(Checklist[[#This Row],[Type]], $B$3:$B$22, 0)), Checklist[[#This Row],[Type]] = \"*\")","v":false}]
[null,null,null,"Features","Funnel Chart","FC.FLOW01","Labels on Flow Lines/Stages","Provides additional information about transitions.","No","Yes",null,null,null,null,{"$f":"IF(COUNTIFS($F$2:F314, F314, $P$2:P314, TRUE)>1,TRUE,FALSE)","v":false},{"$f":"OR(ISNUMBER(MATCH(Checklist[[#This Row],[Type]], $B$3:$B$22, 0)), Checklist[[#This Row],[Type]] = \"*\")","v":false}]
[null,null,null,"Features","Funnel Chart","FC.FLOW03","Swimlanes","Allows to divide the chart into sections to represent different actors or departments.","No","Yes",null,null,null,null,{"$f":"IF(COUNTIFS($F$2:F315, F315, $P$2:P315, TRUE)>1,TRUE,FALSE)","v":false},{"$f":"OR(ISNUMBER(MATCH(Checklist[[#This Row],[Type]], $B$3:$B$22, 0)), Checklist[[#This Row],[Type]] = \"*\")","v":false}]
[null,null,null,"Features","Funnel Chart","FC.FLOW05","Background Grid","Allow to display a grid to align elements neatly.","No","Yes",null,null,null,null,{"$f":"IF(COUNTIFS($F$2:F316, F316, $P$2:P316, TRUE)>1,TRUE,FALSE)","v":false},{"$f":"OR(ISNUMBER(MATCH(Checklist[[#This Row],[Type]], $B$3:$B$22, 0)), Checklist[[#This Row],[Type]] = \"*\")","v":false}]
[null,null,null,"Features","Funnel Chart","FC.FLOW06","Pan & Zoom","Supports panning and zooming for better exploration of data.","No","Yes",null,null,null,null,{"$f":"IF(COUNTIFS($F$2:F317, F317, $P$2:P317, TRUE)>1,TRUE,FALSE)","v":false},{"$f":"OR(ISNUMBER(MATCH(Checklist[[#This Row],[Type]], $B$3:$B$22, 0)), Checklist[[#This Row],[Type]] = \"*\")","v":false}]
[null,null,null,"Features","Funnel Chart","FT.FUN01","Percentage of Total","Displays the percentage of the total for each stage, helping users understand the conversion rates.","No","Yes",null,null,null,null,{"$f":"IF(COUNTIFS($F$2:F318, F318, $P$2:P318, TRUE)>1,TRUE,FALSE)","v":false},{"$f":"OR(ISNUMBER(MATCH(Checklist[[#This Row],[Type]], $B$3:$B$22, 0)), Checklist[[#This Row],[Type]] = \"*\")","v":false}]
[null,null,null,"Features","Funnel Chart","FT.FUN02","Custom Shape","Allows users to customize the shape of the funnel chart.","No","Yes",null,null,null,null,{"$f":"IF(COUNTIFS($F$2:F319, F319, $P$2:P319, TRUE)>1,TRUE,FALSE)","v":false},{"$f":"OR(ISNUMBER(MATCH(Checklist[[#This Row],[Type]], $B$3:$B$22, 0)), Checklist[[#This Row],[Type]] = \"*\")","v":false}]
[null,null,null,"Features","Funnel Chart","FT.FUN03","Multiple Orientations","Supports both horizontal and vertical orientations.","No","Yes",null,null,null,null,{"$f":"IF(COUNTIFS($F$2:F320, F320, $P$2:P320, TRUE)>1,TRUE,FALSE)","v":false},{"$f":"OR(ISNUMBER(MATCH(Checklist[[#This Row],[Type]], $B$3:$B$22, 0)), Checklist[[#This Row],[Type]] = \"*\")","v":false}]
[null,null,null,"Features","Gantt Chart","FC.TIME01","Axis Customization","Allows customization of the axis labels, tick marks, and scales.","No","Yes",null,null,null,null,{"$f":"IF(COUNTIFS($F$2:F321, F321, $P$2:P321, TRUE)>1,TRUE,FALSE)","v":false},{"$f":"OR(ISNUMBER(MATCH(Checklist[[#This Row],[Type]], $B$3:$B$22, 0)), Checklist[[#This Row],[Type]] = \"*\")","v":false}]
[null,null,null,"Features","Gantt Chart","FC.TIME03","Grid Lines","Supports grid lines to aid in reading data values.","No","Yes",null,null,null,null,{"$f":"IF(COUNTIFS($F$2:F322, F322, $P$2:P322, TRUE)>1,TRUE,FALSE)","v":false},{"$f":"OR(ISNUMBER(MATCH(Checklist[[#This Row],[Type]], $B$3:$B$22, 0)), Checklist[[#This Row],[Type]] = \"*\")","v":false}]
[null,null,null,"Features","Gantt Chart","FT.GANTT01","Task Dependencies","Allows users to visualize dependencies between tasks in the Gantt chart.","No","Yes",null,null,null,null,{"$f":"IF(COUNTIFS($F$2:F323, F323, $P$2:P323, TRUE)>1,TRUE,FALSE)","v":false},{"$f":"OR(ISNUMBER(MATCH(Checklist[[#This Row],[Type]], $B$3:$B$22, 0)), Checklist[[#This Row],[Type]] = \"*\")","v":false}]
[null,null,null,"Features","Gantt Chart","FT.GANTT02","Milestones","Supports the addition of milestone markers to indicate important deadlines.","No","Yes",null,null,null,null,{"$f":"IF(COUNTIFS($F$2:F324, F324, $P$2:P324, TRUE)>1,TRUE,FALSE)","v":false},{"$f":"OR(ISNUMBER(MATCH(Checklist[[#This Row],[Type]], $B$3:$B$22, 0)), Checklist[[#This Row],[Type]] = \"*\")","v":false}]
[null,null,null,"Features","Gantt Chart","FT.GANTT03","Timeline Customization","Allows users to customize the timeline format and intervals.","No","Yes",null,null,null,null,{"$f":"IF(COUNTIFS($F$2:F325, F325, $P$2:P325, TRUE)>1,TRUE,FALSE)","v":false},{"$f":"OR(ISNUMBER(MATCH(Checklist[[#This Row],[Type]], $B$3:$B$22, 0)), Checklist[[#This Row],[Type]] = \"*\")","v":false}]
[null,null,null,"Features","Gantt Chart","FT.GANTT04","Expand/Collapse","Supports expand/collapse functionality for better organization of tasks.","No","Yes",null,null,null,null,{"$f":"IF(COUNTIFS($F$2:F326, F326, $P$2:P326, TRUE)>1,TRUE,FALSE)","v":false},{"$f":"OR(ISNUMBER(MATCH(Checklist[[#This Row],[Type]], $B$3:$B$22, 0)), Checklist[[#This Row],[Type]] = \"*\")","v":false}]
[null,null,null,"Features","Gauge","FC.SINGLE01","Contextual Label","Supports displaying a label to provide context or summary information.","No","Yes",null,null,null,null,{"$f":"IF(COUNTIFS($F$2:F327, F327, $P$2:P327, TRUE)>1,TRUE,FALSE)","v":false},{"$f":"OR(ISNUMBER(MATCH(Checklist[[#This Row],[Type]], $B$3:$B$22, 0)), Checklist[[#This Row],[Type]] = \"*\")","v":false}]
[null,null,null,"Features","Gauge","FC.SINGLE02","Advanced Formatting","Supports advanced formatting options for the visual elements.","No","Yes",null,null,null,null,{"$f":"IF(COUNTIFS($F$2:F328, F328, $P$2:P328, TRUE)>1,TRUE,FALSE)","v":false},{"$f":"OR(ISNUMBER(MATCH(Checklist[[#This Row],[Type]], $B$3:$B$22, 0)), Checklist[[#This Row],[Type]] = \"*\")","v":false}]
[null,null,null,"Features","Gauge","FT.GAUGE01","Target Value Indicator","Displays a target value alongside the gauge for comparison.","No","Yes",null,null,null,null,{"$f":"IF(COUNTIFS($F$2:F329, F329, $P$2:P329, TRUE)>1,TRUE,FALSE)","v":false},{"$f":"OR(ISNUMBER(MATCH(Checklist[[#This Row],[Type]], $B$3:$B$22, 0)), Checklist[[#This Row],[Type]] = \"*\")","v":false}]
[null,null,null,"Features","Gauge","FT.GAUGE02","Range Colors","Allows customization of color ranges to represent different thresholds.","No","Yes",null,null,null,null,{"$f":"IF(COUNTIFS($F$2:F330, F330, $P$2:P330, TRUE)>1,TRUE,FALSE)","v":false},{"$f":"OR(ISNUMBER(MATCH(Checklist[[#This Row],[Type]], $B$3:$B$22, 0)), Checklist[[#This Row],[Type]] = \"*\")","v":false}]
[null,null,null,"Features","Heatmap","FC.TABLE01","Column Sorting","Allows users to sort columns based on specific criteria.","No","Yes",null,null,null,null,{"$f":"IF(COUNTIFS($F$2:F331, F331, $P$2:P331, TRUE)>1,TRUE,FALSE)","v":false},{"$f":"OR(ISNUMBER(MATCH(Checklist[[#This Row],[Type]], $B$3:$B$22, 0)), Checklist[[#This Row],[Type]] = \"*\")","v":false}]
[null,null,null,"Features","Heatmap","FC.TABLE03","Row Totals","Supports displaying totals for rows.","No","Yes",null,null,null,null,{"$f":"IF(COUNTIFS($F$2:F332, F332, $P$2:P332, TRUE)>1,TRUE,FALSE)","v":false},{"$f":"OR(ISNUMBER(MATCH(Checklist[[#This Row],[Type]], $B$3:$B$22, 0)), Checklist[[#This Row],[Type]] = \"*\")","v":false}]
[null,null,null,"Features","Heatmap","FC.TABLE04","Row Subtotals","Supports displaying subtotals for rows.","No","Yes",null,null,null,null,{"$f":"IF(COUNTIFS($F$2:F333, F333, $P$2:P333, TRUE)>1,TRUE,FALSE)","v":false},{"$f":"OR(ISNUMBER(MATCH(Checklist[[#This Row],[Type]], $B$3:$B$22, 0)), Checklist[[#This Row],[Type]] = \"*\")","v":false}]
[null,null,null,"Features","Heatmap","FC.TABLE05","Row Grouping","Allows users to group rows based on specific criteria.","No","Yes",null,null,null,null,{"$f":"IF(COUNTIFS($F$2:F334, F334, $P$2:P334, TRUE)>1,TRUE,FALSE)","v":false},{"$f":"OR(ISNUMBER(MATCH(Checklist[[#This Row],[Type]], $B$3:$B$22, 0)), Checklist[[#This Row],[Type]] = \"*\")","v":false}]
[null,null,null,"Features","Heatmap","FT.HEAT01","Color Gradient","Supports color gradients to represent data density or intensity effectively.","No","Yes",null,null,null,null,{"$f":"IF(COUNTIFS($F$2:F335, F335, $P$2:P335, TRUE)>1,TRUE,FALSE)","v":false},{"$f":"OR(ISNUMBER(MATCH(Checklist[[#This Row],[Type]], $B$3:$B$22, 0)), Checklist[[#This Row],[Type]] = \"*\")","v":false}]
[null,null,null,"Features","Heatmap","FT.HEAT02","Expand/Collapse","Supports expand/collapse functionality for better organization of data.","No","Yes",null,null,null,null,{"$f":"IF(COUNTIFS($F$2:F336, F336, $P$2:P336, TRUE)>1,TRUE,FALSE)","v":false},{"$f":"OR(ISNUMBER(MATCH(Checklist[[#This Row],[Type]], $B$3:$B$22, 0)), Checklist[[#This Row],[Type]] = \"*\")","v":false}]
[null,null,null,"Features","Heatmap","FT.HEAT03","Clustering","Groups nearby data points into clusters for better visualization of density.","No","Yes",null,null,null,null,{"$f":"IF(COUNTIFS($F$2:F337, F337, $P$2:P337, TRUE)>1,TRUE,FALSE)","v":false},{"$f":"OR(ISNUMBER(MATCH(Checklist[[#This Row],[Type]], $B$3:$B$22, 0)), Checklist[[#This Row],[Type]] = \"*\")","v":false}]
[null,null,null,"Features","Hexbin Map","FC.MAP03","Location Data Integration","Supports integration with coordinates (e.g. latitude, longitude) and categorical location data (e.g. city name, state name).","No","Yes",null,null,null,null,{"$f":"IF(COUNTIFS($F$2:F338, F338, $P$2:P338, TRUE)>1,TRUE,FALSE)","v":false},{"$f":"OR(ISNUMBER(MATCH(Checklist[[#This Row],[Type]], $B$3:$B$22, 0)), Checklist[[#This Row],[Type]] = \"*\")","v":false}]
[null,null,null,"Features","Hexbin Map","FC.MAP03.1","Manual Mapping","Supports manual mapping of categorical location data.","No","Yes",null,null,null,null,{"$f":"IF(COUNTIFS($F$2:F339, F339, $P$2:P339, TRUE)>1,TRUE,FALSE)","v":false},{"$f":"OR(ISNUMBER(MATCH(Checklist[[#This Row],[Type]], $B$3:$B$22, 0)), Checklist[[#This Row],[Type]] = \"*\")","v":false}]
[null,null,null,"Features","Hexbin Map","FC.MAP06","Pan & Zoom","Supports panning and zooming for better exploration of data.","No","Yes",null,null,null,null,{"$f":"IF(COUNTIFS($F$2:F340, F340, $P$2:P340, TRUE)>1,TRUE,FALSE)","v":false},{"$f":"OR(ISNUMBER(MATCH(Checklist[[#This Row],[Type]], $B$3:$B$22, 0)), Checklist[[#This Row],[Type]] = \"*\")","v":false}]
[null,null,null,"Features","Hexbin Map","FT.HMAP01","Hexagon Size Adjustment","Allows users to adjust the size of hexagons for better visualization of data density.","No","Yes",null,null,null,null,{"$f":"IF(COUNTIFS($F$2:F341, F341, $P$2:P341, TRUE)>1,TRUE,FALSE)","v":false},{"$f":"OR(ISNUMBER(MATCH(Checklist[[#This Row],[Type]], $B$3:$B$22, 0)), Checklist[[#This Row],[Type]] = \"*\")","v":false}]
[null,null,null,"Features","Histogram","FC.CART01","Axis Titles","Allows users to add titles to the X and Y axes for better context.","No","Yes",null,null,null,null,{"$f":"IF(COUNTIFS($F$2:F342, F342, $P$2:P342, TRUE)>1,TRUE,FALSE)","v":false},{"$f":"OR(ISNUMBER(MATCH(Checklist[[#This Row],[Type]], $B$3:$B$22, 0)), Checklist[[#This Row],[Type]] = \"*\")","v":false}]
[null,null,null,"Features","Histogram","FC.CART02","Axis Customization","Allows customization of the axis labels, tick marks, and scales.","No","Yes",null,null,null,null,{"$f":"IF(COUNTIFS($F$2:F343, F343, $P$2:P343, TRUE)>1,TRUE,FALSE)","v":false},{"$f":"OR(ISNUMBER(MATCH(Checklist[[#This Row],[Type]], $B$3:$B$22, 0)), Checklist[[#This Row],[Type]] = \"*\")","v":false}]
[null,null,null,"Features","Histogram","FC.CART04","Grid Lines","Supports grid lines to aid in reading data values.","No","Yes",null,null,null,null,{"$f":"IF(COUNTIFS($F$2:F344, F344, $P$2:P344, TRUE)>1,TRUE,FALSE)","v":false},{"$f":"OR(ISNUMBER(MATCH(Checklist[[#This Row],[Type]], $B$3:$B$22, 0)), Checklist[[#This Row],[Type]] = \"*\")","v":false}]
[null,null,null,"Features","Histogram","FC.CART05","Reference Lines","Supports adding reference lines to highlight specific values or thresholds.","No","Yes",null,null,null,null,{"$f":"IF(COUNTIFS($F$2:F345, F345, $P$2:P345, TRUE)>1,TRUE,FALSE)","v":false},{"$f":"OR(ISNUMBER(MATCH(Checklist[[#This Row],[Type]], $B$3:$B$22, 0)), Checklist[[#This Row],[Type]] = \"*\")","v":false}]
[null,null,null,"Features","Histogram","FC.CART07","Data Point Markers","Allows users to conditionally format data point markers.","No","Yes",null,null,null,null,{"$f":"IF(COUNTIFS($F$2:F346, F346, $P$2:P346, TRUE)>1,TRUE,FALSE)","v":false},{"$f":"OR(ISNUMBER(MATCH(Checklist[[#This Row],[Type]], $B$3:$B$22, 0)), Checklist[[#This Row],[Type]] = \"*\")","v":false}]
[null,null,null,"Features","Histogram","FC.CART08","Trend Lines","Supports adding trend lines to visualize data trends.","No","Yes",null,null,null,null,{"$f":"IF(COUNTIFS($F$2:F347, F347, $P$2:P347, TRUE)>1,TRUE,FALSE)","v":false},{"$f":"OR(ISNUMBER(MATCH(Checklist[[#This Row],[Type]], $B$3:$B$22, 0)), Checklist[[#This Row],[Type]] = \"*\")","v":false}]
[null,null,null,"Features","Histogram","FC.CART09","Pan & Zoom","Supports panning and zooming for better exploration of data.","No","Yes",null,null,null,null,{"$f":"IF(COUNTIFS($F$2:F348, F348, $P$2:P348, TRUE)>1,TRUE,FALSE)","v":false},{"$f":"OR(ISNUMBER(MATCH(Checklist[[#This Row],[Type]], $B$3:$B$22, 0)), Checklist[[#This Row],[Type]] = \"*\")","v":false}]
[null,null,null,"Features","Histogram","FC.CART11","Custom Annotations","Allows users to add custom annotations based on data or conditions.","No","Yes",null,null,null,null,{"$f":"IF(COUNTIFS($F$2:F349, F349, $P$2:P349, TRUE)>1,TRUE,FALSE)","v":false},{"$f":"OR(ISNUMBER(MATCH(Checklist[[#This Row],[Type]], $B$3:$B$22, 0)), Checklist[[#This Row],[Type]] = \"*\")","v":false}]
[null,null,null,"Features","Histogram","FT.HIST01","Bin Size Adjustment","Allows users to customize the size of bins for better data representation.","No","Yes",null,null,null,null,{"$f":"IF(COUNTIFS($F$2:F350, F350, $P$2:P350, TRUE)>1,TRUE,FALSE)","v":false},{"$f":"OR(ISNUMBER(MATCH(Checklist[[#This Row],[Type]], $B$3:$B$22, 0)), Checklist[[#This Row],[Type]] = \"*\")","v":false}]
[null,null,null,"Features","Histogram","FT.HIST02","Cumulative Frequency","Enables the display of cumulative frequency distribution alongside the histogram.","No","Yes",null,null,null,null,{"$f":"IF(COUNTIFS($F$2:F351, F351, $P$2:P351, TRUE)>1,TRUE,FALSE)","v":false},{"$f":"OR(ISNUMBER(MATCH(Checklist[[#This Row],[Type]], $B$3:$B$22, 0)), Checklist[[#This Row],[Type]] = \"*\")","v":false}]
[null,null,null,"Features","Histogram","FT.HIST03","Jittering","Allows data points to be jittered to avoid overlap and improve visibility.","No","Yes",null,null,null,null,{"$f":"IF(COUNTIFS($F$2:F352, F352, $P$2:P352, TRUE)>1,TRUE,FALSE)","v":false},{"$f":"OR(ISNUMBER(MATCH(Checklist[[#This Row],[Type]], $B$3:$B$22, 0)), Checklist[[#This Row],[Type]] = \"*\")","v":false}]
[null,null,null,"Features","Histogram","FT.HIST04","Statistical Lines","Displays statistical lines (mean, median, etc.)","No","Yes",null,null,null,null,{"$f":"IF(COUNTIFS($F$2:F353, F353, $P$2:P353, TRUE)>1,TRUE,FALSE)","v":false},{"$f":"OR(ISNUMBER(MATCH(Checklist[[#This Row],[Type]], $B$3:$B$22, 0)), Checklist[[#This Row],[Type]] = \"*\")","v":false}]
[null,null,null,"Features","Infographic","FT.INFO01","Custom Icons","Allows the use of custom icons for better visual representation of data.","No","Yes",null,null,null,null,{"$f":"IF(COUNTIFS($F$2:F354, F354, $P$2:P354, TRUE)>1,TRUE,FALSE)","v":false},{"$f":"OR(ISNUMBER(MATCH(Checklist[[#This Row],[Type]], $B$3:$B$22, 0)), Checklist[[#This Row],[Type]] = \"*\")","v":false}]
[null,null,null,"Features","Infographic","FT.INFO02","Infographic Templates","Provides pre-designed templates for creating infographics quickly.","No","Yes",null,null,null,null,{"$f":"IF(COUNTIFS($F$2:F355, F355, $P$2:P355, TRUE)>1,TRUE,FALSE)","v":false},{"$f":"OR(ISNUMBER(MATCH(Checklist[[#This Row],[Type]], $B$3:$B$22, 0)), Checklist[[#This Row],[Type]] = \"*\")","v":false}]
[null,null,null,"Features","Isopleth Map","FC.MAP01","Map Styles","Provides options for customizing map styles and themes. E.g: Light, Dark, Streets, Satellite, etc.","No","Yes",null,null,null,null,{"$f":"IF(COUNTIFS($F$2:F356, F356, $P$2:P356, TRUE)>1,TRUE,FALSE)","v":false},{"$f":"OR(ISNUMBER(MATCH(Checklist[[#This Row],[Type]], $B$3:$B$22, 0)), Checklist[[#This Row],[Type]] = \"*\")","v":false}]
[null,null,null,"Features","Isopleth Map","FC.MAP02","Map Services Integration","Allows integration with map services for detailed mapping capabilities.","No","Yes",null,null,null,null,{"$f":"IF(COUNTIFS($F$2:F357, F357, $P$2:P357, TRUE)>1,TRUE,FALSE)","v":false},{"$f":"OR(ISNUMBER(MATCH(Checklist[[#This Row],[Type]], $B$3:$B$22, 0)), Checklist[[#This Row],[Type]] = \"*\")","v":false}]
[null,null,null,"Features","Isopleth Map","FC.MAP02.1","Offline Maps","Supports offline maps for disconnected environments.","No","Yes",null,null,null,null,{"$f":"IF(COUNTIFS($F$2:F358, F358, $P$2:P358, TRUE)>1,TRUE,FALSE)","v":false},{"$f":"OR(ISNUMBER(MATCH(Checklist[[#This Row],[Type]], $B$3:$B$22, 0)), Checklist[[#This Row],[Type]] = \"*\")","v":false}]
[null,null,null,"Features","Isopleth Map","FC.MAP03","Location Data Integration","Supports integration with coordinates (e.g. latitude, longitude) and categorical location data (e.g. city name, state name).","No","Yes",null,null,null,null,{"$f":"IF(COUNTIFS($F$2:F359, F359, $P$2:P359, TRUE)>1,TRUE,FALSE)","v":false},{"$f":"OR(ISNUMBER(MATCH(Checklist[[#This Row],[Type]], $B$3:$B$22, 0)), Checklist[[#This Row],[Type]] = \"*\")","v":false}]
[null,null,null,"Features","Isopleth Map","FC.MAP03.1","Manual Mapping","Supports manual mapping of categorical location data.","No","Yes",null,null,null,null,{"$f":"IF(COUNTIFS($F$2:F360, F360, $P$2:P360, TRUE)>1,TRUE,FALSE)","v":false},{"$f":"OR(ISNUMBER(MATCH(Checklist[[#This Row],[Type]], $B$3:$B$22, 0)), Checklist[[#This Row],[Type]] = \"*\")","v":false}]
[null,null,null,"Features","Isopleth Map","FC.MAP04","Jittering","Allows data points to be jittered to avoid overlap and improve visibility.","No","Yes",null,null,null,null,{"$f":"IF(COUNTIFS($F$2:F361, F361, $P$2:P361, TRUE)>1,TRUE,FALSE)","v":false},{"$f":"OR(ISNUMBER(MATCH(Checklist[[#This Row],[Type]], $B$3:$B$22, 0)), Checklist[[#This Row],[Type]] = \"*\")","v":false}]
[null,null,null,"Features","Isopleth Map","FC.MAP05","Map Annotations","Allows users to add custom annotations to the map.","No","Yes",null,null,null,null,{"$f":"IF(COUNTIFS($F$2:F362, F362, $P$2:P362, TRUE)>1,TRUE,FALSE)","v":false},{"$f":"OR(ISNUMBER(MATCH(Checklist[[#This Row],[Type]], $B$3:$B$22, 0)), Checklist[[#This Row],[Type]] = \"*\")","v":false}]
[null,null,null,"Features","Isopleth Map","FC.MAP06","Pan & Zoom","Supports panning and zooming for better exploration of data.","No","Yes",null,null,null,null,{"$f":"IF(COUNTIFS($F$2:F363, F363, $P$2:P363, TRUE)>1,TRUE,FALSE)","v":false},{"$f":"OR(ISNUMBER(MATCH(Checklist[[#This Row],[Type]], $B$3:$B$22, 0)), Checklist[[#This Row],[Type]] = \"*\")","v":false}]
[null,null,null,"Features","Isopleth Map","FT.MISO01","Color Gradient","Supports color gradients to represent varying values across regions.","No","Yes",null,null,null,null,{"$f":"IF(COUNTIFS($F$2:F364, F364, $P$2:P364, TRUE)>1,TRUE,FALSE)","v":false},{"$f":"OR(ISNUMBER(MATCH(Checklist[[#This Row],[Type]], $B$3:$B$22, 0)), Checklist[[#This Row],[Type]] = \"*\")","v":false}]
[null,null,null,"Features","KPI","FC.SINGLE01","Contextual Label","Supports displaying a label to provide context or summary information.","No","Yes",null,null,null,null,{"$f":"IF(COUNTIFS($F$2:F365, F365, $P$2:P365, TRUE)>1,TRUE,FALSE)","v":false},{"$f":"OR(ISNUMBER(MATCH(Checklist[[#This Row],[Type]], $B$3:$B$22, 0)), Checklist[[#This Row],[Type]] = \"*\")","v":false}]
[null,null,null,"Features","KPI","FC.SINGLE02","Advanced Formatting","Supports advanced formatting options for the visual elements.","No","Yes",null,null,null,null,{"$f":"IF(COUNTIFS($F$2:F366, F366, $P$2:P366, TRUE)>1,TRUE,FALSE)","v":false},{"$f":"OR(ISNUMBER(MATCH(Checklist[[#This Row],[Type]], $B$3:$B$22, 0)), Checklist[[#This Row],[Type]] = \"*\")","v":false}]
[null,null,null,"Features","KPI","FT.KPI01","Target Value","Displays a target value alongside the actual value for comparison.","No","Yes",null,null,null,null,{"$f":"IF(COUNTIFS($F$2:F367, F367, $P$2:P367, TRUE)>1,TRUE,FALSE)","v":false},{"$f":"OR(ISNUMBER(MATCH(Checklist[[#This Row],[Type]], $B$3:$B$22, 0)), Checklist[[#This Row],[Type]] = \"*\")","v":false}]
[null,null,null,"Features","KPI","FT.KPI02","Trend Indicator","Shows an indicator (up/down arrow) to represent the trend compared to a previous period.","No","Yes",null,null,null,null,{"$f":"IF(COUNTIFS($F$2:F368, F368, $P$2:P368, TRUE)>1,TRUE,FALSE)","v":false},{"$f":"OR(ISNUMBER(MATCH(Checklist[[#This Row],[Type]], $B$3:$B$22, 0)), Checklist[[#This Row],[Type]] = \"*\")","v":false}]
[null,null,null,"Features","KPI","FT.KPI03","Sparklines","Supports the display of sparklines to show trends over time.","No","Yes",null,null,null,null,{"$f":"IF(COUNTIFS($F$2:F369, F369, $P$2:P369, TRUE)>1,TRUE,FALSE)","v":false},{"$f":"OR(ISNUMBER(MATCH(Checklist[[#This Row],[Type]], $B$3:$B$22, 0)), Checklist[[#This Row],[Type]] = \"*\")","v":false}]
[null,null,null,"Features","KPI","FT.KPI04","Multiple Measures","Supports displaying multiple measures in the same KPI.","No","Yes",null,null,null,null,{"$f":"IF(COUNTIFS($F$2:F370, F370, $P$2:P370, TRUE)>1,TRUE,FALSE)","v":false},{"$f":"OR(ISNUMBER(MATCH(Checklist[[#This Row],[Type]], $B$3:$B$22, 0)), Checklist[[#This Row],[Type]] = \"*\")","v":false}]
[null,null,null,"Features","Joy Plot","FC.NOAXIS01","Grid Lines","Supports grid lines to aid in reading data values.","No","Yes",null,null,null,null,{"$f":"IF(COUNTIFS($F$2:F371, F371, $P$2:P371, TRUE)>1,TRUE,FALSE)","v":false},{"$f":"OR(ISNUMBER(MATCH(Checklist[[#This Row],[Type]], $B$3:$B$22, 0)), Checklist[[#This Row],[Type]] = \"*\")","v":false}]
[null,null,null,"Features","Joy Plot","FC.NOAXIS02","Reference Lines","Supports adding reference lines to highlight specific values or thresholds.","No","Yes",null,null,null,null,{"$f":"IF(COUNTIFS($F$2:F372, F372, $P$2:P372, TRUE)>1,TRUE,FALSE)","v":false},{"$f":"OR(ISNUMBER(MATCH(Checklist[[#This Row],[Type]], $B$3:$B$22, 0)), Checklist[[#This Row],[Type]] = \"*\")","v":false}]
[null,null,null,"Features","Joy Plot","FT.JOY01","Stroke Customization","Allows customization of the stroke style and color.","No","Yes",null,null,null,null,{"$f":"IF(COUNTIFS($F$2:F373, F373, $P$2:P373, TRUE)>1,TRUE,FALSE)","v":false},{"$f":"OR(ISNUMBER(MATCH(Checklist[[#This Row],[Type]], $B$3:$B$22, 0)), Checklist[[#This Row],[Type]] = \"*\")","v":false}]
[null,null,null,"Features","Joy Plot","FT.JOY02","Curves Smoothing","Supports smoothing curves for better visualization (stepped, linear, etc.)","No","Yes",null,null,null,null,{"$f":"IF(COUNTIFS($F$2:F374, F374, $P$2:P374, TRUE)>1,TRUE,FALSE)","v":false},{"$f":"OR(ISNUMBER(MATCH(Checklist[[#This Row],[Type]], $B$3:$B$22, 0)), Checklist[[#This Row],[Type]] = \"*\")","v":false}]
[null,null,null,"Features","Likert Scale Chart","FC.CART01","Axis Titles","Allows users to add titles to the X and Y axes for better context.","No","Yes",null,null,null,null,{"$f":"IF(COUNTIFS($F$2:F375, F375, $P$2:P375, TRUE)>1,TRUE,FALSE)","v":false},{"$f":"OR(ISNUMBER(MATCH(Checklist[[#This Row],[Type]], $B$3:$B$22, 0)), Checklist[[#This Row],[Type]] = \"*\")","v":false}]
[null,null,null,"Features","Likert Scale Chart","FC.CART02","Axis Customization","Allows customization of the axis labels, tick marks, and scales.","No","Yes",null,null,null,null,{"$f":"IF(COUNTIFS($F$2:F376, F376, $P$2:P376, TRUE)>1,TRUE,FALSE)","v":false},{"$f":"OR(ISNUMBER(MATCH(Checklist[[#This Row],[Type]], $B$3:$B$22, 0)), Checklist[[#This Row],[Type]] = \"*\")","v":false}]
[null,null,null,"Features","Likert Scale Chart","FC.CART04","Grid Lines","Supports grid lines to aid in reading data values.","No","Yes",null,null,null,null,{"$f":"IF(COUNTIFS($F$2:F377, F377, $P$2:P377, TRUE)>1,TRUE,FALSE)","v":false},{"$f":"OR(ISNUMBER(MATCH(Checklist[[#This Row],[Type]], $B$3:$B$22, 0)), Checklist[[#This Row],[Type]] = \"*\")","v":false}]
[null,null,null,"Features","Likert Scale Chart","FC.CART10","Dynamic Sorting","Supports sorting data points based on specific columns or measures.","No","Yes",null,null,null,null,{"$f":"IF(COUNTIFS($F$2:F378, F378, $P$2:P378, TRUE)>1,TRUE,FALSE)","v":false},{"$f":"OR(ISNUMBER(MATCH(Checklist[[#This Row],[Type]], $B$3:$B$22, 0)), Checklist[[#This Row],[Type]] = \"*\")","v":false}]
[null,null,null,"Features","Likert Scale Chart","FT.LIK01","Custom Response Labels","Allows customization of response labels for better clarity in survey results.","No","Yes",null,null,null,null,{"$f":"IF(COUNTIFS($F$2:F379, F379, $P$2:P379, TRUE)>1,TRUE,FALSE)","v":false},{"$f":"OR(ISNUMBER(MATCH(Checklist[[#This Row],[Type]], $B$3:$B$22, 0)), Checklist[[#This Row],[Type]] = \"*\")","v":false}]
[null,null,null,"Features","Likert Scale Chart","FT.LIK02","Diverging Color Scale","Supports a diverging color scale to represent positive and negative responses distinctly.","No","Yes",null,null,null,null,{"$f":"IF(COUNTIFS($F$2:F380, F380, $P$2:P380, TRUE)>1,TRUE,FALSE)","v":false},{"$f":"OR(ISNUMBER(MATCH(Checklist[[#This Row],[Type]], $B$3:$B$22, 0)), Checklist[[#This Row],[Type]] = \"*\")","v":false}]
[null,null,null,"Features","Line Chart","FC.CART01","Axis Titles","Allows users to add titles to the X and Y axes for better context.","No","Yes",null,null,null,null,{"$f":"IF(COUNTIFS($F$2:F381, F381, $P$2:P381, TRUE)>1,TRUE,FALSE)","v":false},{"$f":"OR(ISNUMBER(MATCH(Checklist[[#This Row],[Type]], $B$3:$B$22, 0)), Checklist[[#This Row],[Type]] = \"*\")","v":false}]
[null,null,null,"Features","Line Chart","FC.CART02","Axis Customization","Allows customization of the axis labels, tick marks, and scales.","No","Yes",null,null,null,null,{"$f":"IF(COUNTIFS($F$2:F382, F382, $P$2:P382, TRUE)>1,TRUE,FALSE)","v":false},{"$f":"OR(ISNUMBER(MATCH(Checklist[[#This Row],[Type]], $B$3:$B$22, 0)), Checklist[[#This Row],[Type]] = \"*\")","v":false}]
[null,null,null,"Features","Line Chart","FC.CART04","Grid Lines","Supports grid lines to aid in reading data values.","No","Yes",null,null,null,null,{"$f":"IF(COUNTIFS($F$2:F383, F383, $P$2:P383, TRUE)>1,TRUE,FALSE)","v":false},{"$f":"OR(ISNUMBER(MATCH(Checklist[[#This Row],[Type]], $B$3:$B$22, 0)), Checklist[[#This Row],[Type]] = \"*\")","v":false}]
[null,null,null,"Features","Line Chart","FC.CART05","Reference Lines","Supports adding reference lines to highlight specific values or thresholds.","No","Yes",null,null,null,null,{"$f":"IF(COUNTIFS($F$2:F384, F384, $P$2:P384, TRUE)>1,TRUE,FALSE)","v":false},{"$f":"OR(ISNUMBER(MATCH(Checklist[[#This Row],[Type]], $B$3:$B$22, 0)), Checklist[[#This Row],[Type]] = \"*\")","v":false}]
[null,null,null,"Features","Line Chart","FC.CART07","Data Point Markers","Allows users to conditionally format data point markers.","No","Yes",null,null,null,null,{"$f":"IF(COUNTIFS($F$2:F385, F385, $P$2:P385, TRUE)>1,TRUE,FALSE)","v":false},{"$f":"OR(ISNUMBER(MATCH(Checklist[[#This Row],[Type]], $B$3:$B$22, 0)), Checklist[[#This Row],[Type]] = \"*\")","v":false}]
[null,null,null,"Features","Line Chart","FC.CART08","Trend Lines","Supports adding trend lines to visualize data trends.","No","Yes",null,null,null,null,{"$f":"IF(COUNTIFS($F$2:F386, F386, $P$2:P386, TRUE)>1,TRUE,FALSE)","v":false},{"$f":"OR(ISNUMBER(MATCH(Checklist[[#This Row],[Type]], $B$3:$B$22, 0)), Checklist[[#This Row],[Type]] = \"*\")","v":false}]
[null,null,null,"Features","Line Chart","FC.CART09","Pan & Zoom","Supports panning and zooming for better exploration of data.","No","Yes",null,null,null,null,{"$f":"IF(COUNTIFS($F$2:F387, F387, $P$2:P387, TRUE)>1,TRUE,FALSE)","v":false},{"$f":"OR(ISNUMBER(MATCH(Checklist[[#This Row],[Type]], $B$3:$B$22, 0)), Checklist[[#This Row],[Type]] = \"*\")","v":false}]
[null,null,null,"Features","Line Chart","FC.CART10","Dynamic Sorting","Supports sorting data points based on specific columns or measures.","No","Yes",null,null,null,null,{"$f":"IF(COUNTIFS($F$2:F388, F388, $P$2:P388, TRUE)>1,TRUE,FALSE)","v":false},{"$f":"OR(ISNUMBER(MATCH(Checklist[[#This Row],[Type]], $B$3:$B$22, 0)), Checklist[[#This Row],[Type]] = \"*\")","v":false}]
[null,null,null,"Features","Line Chart","FC.CART11","Custom Annotations","Allows users to add custom annotations based on data or conditions.","No","Yes",null,null,null,null,{"$f":"IF(COUNTIFS($F$2:F389, F389, $P$2:P389, TRUE)>1,TRUE,FALSE)","v":false},{"$f":"OR(ISNUMBER(MATCH(Checklist[[#This Row],[Type]], $B$3:$B$22, 0)), Checklist[[#This Row],[Type]] = \"*\")","v":false}]
[null,null,null,"Features","Line Chart","FT.LINE01","Line Styling","Allows customization of line color and thickness.","No","Yes",null,null,null,null,{"$f":"IF(COUNTIFS($F$2:F390, F390, $P$2:P390, TRUE)>1,TRUE,FALSE)","v":false},{"$f":"OR(ISNUMBER(MATCH(Checklist[[#This Row],[Type]], $B$3:$B$22, 0)), Checklist[[#This Row],[Type]] = \"*\")","v":false}]
[null,null,null,"Features","Line Chart","FT.LINE02","Line Smoothing","Supports smoothing lines for better visualization (stepped, linear, etc.)","No","Yes",null,null,null,null,{"$f":"IF(COUNTIFS($F$2:F391, F391, $P$2:P391, TRUE)>1,TRUE,FALSE)","v":false},{"$f":"OR(ISNUMBER(MATCH(Checklist[[#This Row],[Type]], $B$3:$B$22, 0)), Checklist[[#This Row],[Type]] = \"*\")","v":false}]
[null,null,null,"Features","Lollipop Chart","FC.CART01","Axis Titles","Allows users to add titles to the X and Y axes for better context.","No","Yes",null,null,null,null,{"$f":"IF(COUNTIFS($F$2:F392, F392, $P$2:P392, TRUE)>1,TRUE,FALSE)","v":false},{"$f":"OR(ISNUMBER(MATCH(Checklist[[#This Row],[Type]], $B$3:$B$22, 0)), Checklist[[#This Row],[Type]] = \"*\")","v":false}]
[null,null,null,"Features","Lollipop Chart","FC.CART02","Axis Customization","Allows customization of the axis labels, tick marks, and scales.","No","Yes",null,null,null,null,{"$f":"IF(COUNTIFS($F$2:F393, F393, $P$2:P393, TRUE)>1,TRUE,FALSE)","v":false},{"$f":"OR(ISNUMBER(MATCH(Checklist[[#This Row],[Type]], $B$3:$B$22, 0)), Checklist[[#This Row],[Type]] = \"*\")","v":false}]
[null,null,null,"Features","Lollipop Chart","FC.CART04","Grid Lines","Supports grid lines to aid in reading data values.","No","Yes",null,null,null,null,{"$f":"IF(COUNTIFS($F$2:F394, F394, $P$2:P394, TRUE)>1,TRUE,FALSE)","v":false},{"$f":"OR(ISNUMBER(MATCH(Checklist[[#This Row],[Type]], $B$3:$B$22, 0)), Checklist[[#This Row],[Type]] = \"*\")","v":false}]
[null,null,null,"Features","Lollipop Chart","FC.CART05","Reference Lines","Supports adding reference lines to highlight specific values or thresholds.","No","Yes",null,null,null,null,{"$f":"IF(COUNTIFS($F$2:F395, F395, $P$2:P395, TRUE)>1,TRUE,FALSE)","v":false},{"$f":"OR(ISNUMBER(MATCH(Checklist[[#This Row],[Type]], $B$3:$B$22, 0)), Checklist[[#This Row],[Type]] = \"*\")","v":false}]
[null,null,null,"Features","Lollipop Chart","FC.CART07","Data Point Markers","Allows users to conditionally format data point markers.","No","Yes",null,null,null,null,{"$f":"IF(COUNTIFS($F$2:F396, F396, $P$2:P396, TRUE)>1,TRUE,FALSE)","v":false},{"$f":"OR(ISNUMBER(MATCH(Checklist[[#This Row],[Type]], $B$3:$B$22, 0)), Checklist[[#This Row],[Type]] = \"*\")","v":false}]
[null,null,null,"Features","Lollipop Chart","FC.CART09","Pan & Zoom","Supports panning and zooming for better exploration of data.","No","Yes",null,null,null,null,{"$f":"IF(COUNTIFS($F$2:F397, F397, $P$2:P397, TRUE)>1,TRUE,FALSE)","v":false},{"$f":"OR(ISNUMBER(MATCH(Checklist[[#This Row],[Type]], $B$3:$B$22, 0)), Checklist[[#This Row],[Type]] = \"*\")","v":false}]
[null,null,null,"Features","Lollipop Chart","FC.CART11","Custom Annotations","Allows users to add custom annotations based on data or conditions.","No","Yes",null,null,null,null,{"$f":"IF(COUNTIFS($F$2:F398, F398, $P$2:P398, TRUE)>1,TRUE,FALSE)","v":false},{"$f":"OR(ISNUMBER(MATCH(Checklist[[#This Row],[Type]], $B$3:$B$22, 0)), Checklist[[#This Row],[Type]] = \"*\")","v":false}]
[null,null,null,"Features","Lollipop Chart","FT.LOLL01","Multiple Orientations","Supports both horizontal and vertical orientations.","No","Yes",null,null,null,null,{"$f":"IF(COUNTIFS($F$2:F399, F399, $P$2:P399, TRUE)>1,TRUE,FALSE)","v":false},{"$f":"OR(ISNUMBER(MATCH(Checklist[[#This Row],[Type]], $B$3:$B$22, 0)), Checklist[[#This Row],[Type]] = \"*\")","v":false}]
[null,null,null,"Features","Marimekko Chart","FC.CART01","Axis Titles","Allows users to add titles to the X and Y axes for better context.","No","Yes",null,null,null,null,{"$f":"IF(COUNTIFS($F$2:F400, F400, $P$2:P400, TRUE)>1,TRUE,FALSE)","v":false},{"$f":"OR(ISNUMBER(MATCH(Checklist[[#This Row],[Type]], $B$3:$B$22, 0)), Checklist[[#This Row],[Type]] = \"*\")","v":false}]
[null,null,null,"Features","Marimekko Chart","FC.CART02","Axis Customization","Allows customization of the axis labels, tick marks, and scales.","No","Yes",null,null,null,null,{"$f":"IF(COUNTIFS($F$2:F401, F401, $P$2:P401, TRUE)>1,TRUE,FALSE)","v":false},{"$f":"OR(ISNUMBER(MATCH(Checklist[[#This Row],[Type]], $B$3:$B$22, 0)), Checklist[[#This Row],[Type]] = \"*\")","v":false}]
[null,null,null,"Features","Marimekko Chart","FC.CART10","Dynamic Sorting","Supports sorting data points based on specific columns or measures.","No","Yes",null,null,null,null,{"$f":"IF(COUNTIFS($F$2:F402, F402, $P$2:P402, TRUE)>1,TRUE,FALSE)","v":false},{"$f":"OR(ISNUMBER(MATCH(Checklist[[#This Row],[Type]], $B$3:$B$22, 0)), Checklist[[#This Row],[Type]] = \"*\")","v":false}]
[null,null,null,"Features","Marimekko Chart","FT.MAR01","Segment Labels","Allows the display of labels on segments for better clarity and understanding.","No","Yes",null,null,null,null,{"$f":"IF(COUNTIFS($F$2:F403, F403, $P$2:P403, TRUE)>1,TRUE,FALSE)","v":false},{"$f":"OR(ISNUMBER(MATCH(Checklist[[#This Row],[Type]], $B$3:$B$22, 0)), Checklist[[#This Row],[Type]] = \"*\")","v":false}]
[null,null,null,"Features","Marimekko Chart","FT.MAR02","Multiple Orientations","Supports both horizontal and vertical orientations.","No","Yes",null,null,null,null,{"$f":"IF(COUNTIFS($F$2:F404, F404, $P$2:P404, TRUE)>1,TRUE,FALSE)","v":false},{"$f":"OR(ISNUMBER(MATCH(Checklist[[#This Row],[Type]], $B$3:$B$22, 0)), Checklist[[#This Row],[Type]] = \"*\")","v":false}]
[null,null,null,"Features","Marimekko Chart","FT.MAR03","Absolute or Percentage Values","Allows users to switch between absolute and percentage values for better comparison.","No","Yes",null,null,null,null,{"$f":"IF(COUNTIFS($F$2:F405, F405, $P$2:P405, TRUE)>1,TRUE,FALSE)","v":false},{"$f":"OR(ISNUMBER(MATCH(Checklist[[#This Row],[Type]], $B$3:$B$22, 0)), Checklist[[#This Row],[Type]] = \"*\")","v":false}]
[null,null,null,"Features","Matrix","FC.TABLE01","Column Sorting","Allows users to sort columns based on specific criteria.","No","Yes",null,null,null,null,{"$f":"IF(COUNTIFS($F$2:F406, F406, $P$2:P406, TRUE)>1,TRUE,FALSE)","v":false},{"$f":"OR(ISNUMBER(MATCH(Checklist[[#This Row],[Type]], $B$3:$B$22, 0)), Checklist[[#This Row],[Type]] = \"*\")","v":false}]
[null,null,null,"Features","Matrix","FC.TABLE02","Column Grouping","Allows users to group columns.","No","Yes",null,null,null,null,{"$f":"IF(COUNTIFS($F$2:F407, F407, $P$2:P407, TRUE)>1,TRUE,FALSE)","v":false},{"$f":"OR(ISNUMBER(MATCH(Checklist[[#This Row],[Type]], $B$3:$B$22, 0)), Checklist[[#This Row],[Type]] = \"*\")","v":false}]
[null,null,null,"Features","Matrix","FC.TABLE03","Row Totals","Supports displaying totals for rows.","No","Yes",null,null,null,null,{"$f":"IF(COUNTIFS($F$2:F408, F408, $P$2:P408, TRUE)>1,TRUE,FALSE)","v":false},{"$f":"OR(ISNUMBER(MATCH(Checklist[[#This Row],[Type]], $B$3:$B$22, 0)), Checklist[[#This Row],[Type]] = \"*\")","v":false}]
[null,null,null,"Features","Matrix","FC.TABLE04","Row Subtotals","Supports displaying subtotals for rows.","No","Yes",null,null,null,null,{"$f":"IF(COUNTIFS($F$2:F409, F409, $P$2:P409, TRUE)>1,TRUE,FALSE)","v":false},{"$f":"OR(ISNUMBER(MATCH(Checklist[[#This Row],[Type]], $B$3:$B$22, 0)), Checklist[[#This Row],[Type]] = \"*\")","v":false}]
[null,null,null,"Features","Matrix","FC.TABLE05","Row Grouping","Allows users to group rows based on specific criteria.","No","Yes",null,null,null,null,{"$f":"IF(COUNTIFS($F$2:F410, F410, $P$2:P410, TRUE)>1,TRUE,FALSE)","v":false},{"$f":"OR(ISNUMBER(MATCH(Checklist[[#This Row],[Type]], $B$3:$B$22, 0)), Checklist[[#This Row],[Type]] = \"*\")","v":false}]
[null,null,null,"Features","Matrix","FT.MATR01","Expand/Collapse","Supports expand/collapse functionality for better organization of data.","No","Yes",null,null,null,null,{"$f":"IF(COUNTIFS($F$2:F411, F411, $P$2:P411, TRUE)>1,TRUE,FALSE)","v":false},{"$f":"OR(ISNUMBER(MATCH(Checklist[[#This Row],[Type]], $B$3:$B$22, 0)), Checklist[[#This Row],[Type]] = \"*\")","v":false}]
[null,null,null,"Features","Mind Map","FC.HIER01","Node Customization","Allows customization of node size, color, and shape.","No","Yes",null,null,null,null,{"$f":"IF(COUNTIFS($F$2:F412, F412, $P$2:P412, TRUE)>1,TRUE,FALSE)","v":false},{"$f":"OR(ISNUMBER(MATCH(Checklist[[#This Row],[Type]], $B$3:$B$22, 0)), Checklist[[#This Row],[Type]] = \"*\")","v":false}]
[null,null,null,"Features","Mind Map","FC.HIER01.1","Dynamic Node Customization","Allows customization of node size, color, and shape based on data.","No","Yes",null,null,null,null,{"$f":"IF(COUNTIFS($F$2:F413, F413, $P$2:P413, TRUE)>1,TRUE,FALSE)","v":false},{"$f":"OR(ISNUMBER(MATCH(Checklist[[#This Row],[Type]], $B$3:$B$22, 0)), Checklist[[#This Row],[Type]] = \"*\")","v":false}]
[null,null,null,"Features","Mind Map","FC.HIER04","Node Positioning","Allows users to customize node positioning for better layout control.","No","Yes",null,null,null,null,{"$f":"IF(COUNTIFS($F$2:F414, F414, $P$2:P414, TRUE)>1,TRUE,FALSE)","v":false},{"$f":"OR(ISNUMBER(MATCH(Checklist[[#This Row],[Type]], $B$3:$B$22, 0)), Checklist[[#This Row],[Type]] = \"*\")","v":false}]
[null,null,null,"Features","Mind Map","FC.HIER05","Node Clustering","Supports grouping nodes into clusters based on data values or conditions.","No","Yes",null,null,null,null,{"$f":"IF(COUNTIFS($F$2:F415, F415, $P$2:P415, TRUE)>1,TRUE,FALSE)","v":false},{"$f":"OR(ISNUMBER(MATCH(Checklist[[#This Row],[Type]], $B$3:$B$22, 0)), Checklist[[#This Row],[Type]] = \"*\")","v":false}]
[null,null,null,"Features","Mind Map","FC.HIER06","Expand/Collapse","Supports expanding and collapsing nodes to show or hide branches.","No","Yes",null,null,null,null,{"$f":"IF(COUNTIFS($F$2:F416, F416, $P$2:P416, TRUE)>1,TRUE,FALSE)","v":false},{"$f":"OR(ISNUMBER(MATCH(Checklist[[#This Row],[Type]], $B$3:$B$22, 0)), Checklist[[#This Row],[Type]] = \"*\")","v":false}]
[null,null,null,"Features","Mind Map","FC.HIER07","Edge Customization","Allows customization of edge thickness, color, and style.","No","Yes",null,null,null,null,{"$f":"IF(COUNTIFS($F$2:F417, F417, $P$2:P417, TRUE)>1,TRUE,FALSE)","v":false},{"$f":"OR(ISNUMBER(MATCH(Checklist[[#This Row],[Type]], $B$3:$B$22, 0)), Checklist[[#This Row],[Type]] = \"*\")","v":false}]
[null,null,null,"Features","Mind Map","FC.HIER07.1","Dynamic Edge Customization","Allows customization of edge thickness, color, and style based on data.","No","Yes",null,null,null,null,{"$f":"IF(COUNTIFS($F$2:F418, F418, $P$2:P418, TRUE)>1,TRUE,FALSE)","v":false},{"$f":"OR(ISNUMBER(MATCH(Checklist[[#This Row],[Type]], $B$3:$B$22, 0)), Checklist[[#This Row],[Type]] = \"*\")","v":false}]
[null,null,null,"Features","Mind Map","FC.HIER08","Edge Labels","Enables the display of labels for edges to provide additional context.","No","Yes",null,null,null,null,{"$f":"IF(COUNTIFS($F$2:F419, F419, $P$2:P419, TRUE)>1,TRUE,FALSE)","v":false},{"$f":"OR(ISNUMBER(MATCH(Checklist[[#This Row],[Type]], $B$3:$B$22, 0)), Checklist[[#This Row],[Type]] = \"*\")","v":false}]
[null,null,null,"Features","Mind Map","FC.HIER09","Breadcrumb Navigation","Supports breadcrumbs to navigate through hierarchical levels.","No","Yes",null,null,null,null,{"$f":"IF(COUNTIFS($F$2:F420, F420, $P$2:P420, TRUE)>1,TRUE,FALSE)","v":false},{"$f":"OR(ISNUMBER(MATCH(Checklist[[#This Row],[Type]], $B$3:$B$22, 0)), Checklist[[#This Row],[Type]] = \"*\")","v":false}]
[null,null,null,"Features","Narrative","FT.NARR01","Dynamic Text Boxes","Allows for the inclusion of dynamic text that updates based on filters or selections.","No","Yes",null,null,null,null,{"$f":"IF(COUNTIFS($F$2:F421, F421, $P$2:P421, TRUE)>1,TRUE,FALSE)","v":false},{"$f":"OR(ISNUMBER(MATCH(Checklist[[#This Row],[Type]], $B$3:$B$22, 0)), Checklist[[#This Row],[Type]] = \"*\")","v":false}]
[null,null,null,"Features","Narrative","FT.NARR02","Image Support","Enables the inclusion of images or icons to enhance storytelling within the narrative.","No","Yes",null,null,null,null,{"$f":"IF(COUNTIFS($F$2:F422, F422, $P$2:P422, TRUE)>1,TRUE,FALSE)","v":false},{"$f":"OR(ISNUMBER(MATCH(Checklist[[#This Row],[Type]], $B$3:$B$22, 0)), Checklist[[#This Row],[Type]] = \"*\")","v":false}]
[null,null,null,"Features","Network Diagram","FC.NET01","Node Customization","Allows customization of node size, color, and shape.","No","Yes",null,null,null,null,{"$f":"IF(COUNTIFS($F$2:F423, F423, $P$2:P423, TRUE)>1,TRUE,FALSE)","v":false},{"$f":"OR(ISNUMBER(MATCH(Checklist[[#This Row],[Type]], $B$3:$B$22, 0)), Checklist[[#This Row],[Type]] = \"*\")","v":false}]
[null,null,null,"Features","Network Diagram","FC.NET01.1","Dynamic Node Customization","Allows customization of node size, color, and shape based on data.","No","Yes",null,null,null,null,{"$f":"IF(COUNTIFS($F$2:F424, F424, $P$2:P424, TRUE)>1,TRUE,FALSE)","v":false},{"$f":"OR(ISNUMBER(MATCH(Checklist[[#This Row],[Type]], $B$3:$B$22, 0)), Checklist[[#This Row],[Type]] = \"*\")","v":false}]
[null,null,null,"Features","Network Diagram","FC.NET02","Edge Customization","Allows customization of edge thickness, color, and style.","No","Yes",null,null,null,null,{"$f":"IF(COUNTIFS($F$2:F425, F425, $P$2:P425, TRUE)>1,TRUE,FALSE)","v":false},{"$f":"OR(ISNUMBER(MATCH(Checklist[[#This Row],[Type]], $B$3:$B$22, 0)), Checklist[[#This Row],[Type]] = \"*\")","v":false}]
[null,null,null,"Features","Network Diagram","FC.NET02.1","Dynamic Edge Customization","Allows customization of node size, color, and shape based on data.","No","Yes",null,null,null,null,{"$f":"IF(COUNTIFS($F$2:F426, F426, $P$2:P426, TRUE)>1,TRUE,FALSE)","v":false},{"$f":"OR(ISNUMBER(MATCH(Checklist[[#This Row],[Type]], $B$3:$B$22, 0)), Checklist[[#This Row],[Type]] = \"*\")","v":false}]
[null,null,null,"Features","Network Diagram","FC.NET03","Node Labels","Enables the display of labels for nodes to provide additional context.","No","Yes",null,null,null,null,{"$f":"IF(COUNTIFS($F$2:F427, F427, $P$2:P427, TRUE)>1,TRUE,FALSE)","v":false},{"$f":"OR(ISNUMBER(MATCH(Checklist[[#This Row],[Type]], $B$3:$B$22, 0)), Checklist[[#This Row],[Type]] = \"*\")","v":false}]
[null,null,null,"Features","Network Diagram","FC.NET04","Edge Labels","Enables the display of labels for edges to provide additional context.","No","Yes",null,null,null,null,{"$f":"IF(COUNTIFS($F$2:F428, F428, $P$2:P428, TRUE)>1,TRUE,FALSE)","v":false},{"$f":"OR(ISNUMBER(MATCH(Checklist[[#This Row],[Type]], $B$3:$B$22, 0)), Checklist[[#This Row],[Type]] = \"*\")","v":false}]
[null,null,null,"Features","Network Diagram","FC.NET05","Edge Bundling","Supports edge bundling to reduce visual clutter and improve readability.","No","Yes",null,null,null,null,{"$f":"IF(COUNTIFS($F$2:F429, F429, $P$2:P429, TRUE)>1,TRUE,FALSE)","v":false},{"$f":"OR(ISNUMBER(MATCH(Checklist[[#This Row],[Type]], $B$3:$B$22, 0)), Checklist[[#This Row],[Type]] = \"*\")","v":false}]
[null,null,null,"Features","Network Diagram","FC.NET06","Node Positioning","Allows users to customize node positioning for better layout control.","No","Yes",null,null,null,null,{"$f":"IF(COUNTIFS($F$2:F430, F430, $P$2:P430, TRUE)>1,TRUE,FALSE)","v":false},{"$f":"OR(ISNUMBER(MATCH(Checklist[[#This Row],[Type]], $B$3:$B$22, 0)), Checklist[[#This Row],[Type]] = \"*\")","v":false}]
[null,null,null,"Features","Network Diagram","FC.NET07","Node Clustering","Supports grouping nodes into clusters based on data values or conditions.","No","Yes",null,null,null,null,{"$f":"IF(COUNTIFS($F$2:F431, F431, $P$2:P431, TRUE)>1,TRUE,FALSE)","v":false},{"$f":"OR(ISNUMBER(MATCH(Checklist[[#This Row],[Type]], $B$3:$B$22, 0)), Checklist[[#This Row],[Type]] = \"*\")","v":false}]
[null,null,null,"Features","Network Diagram","FC.NET08","Expand/Collapse","Supports expanding and collapsing nodes to show or hide branches.","No","Yes",null,null,null,null,{"$f":"IF(COUNTIFS($F$2:F432, F432, $P$2:P432, TRUE)>1,TRUE,FALSE)","v":false},{"$f":"OR(ISNUMBER(MATCH(Checklist[[#This Row],[Type]], $B$3:$B$22, 0)), Checklist[[#This Row],[Type]] = \"*\")","v":false}]
[null,null,null,"Features","Network Diagram","FC.NET09","Directional Arrows","Supports directional arrows to indicate the flow of relationships.","No","Yes",null,null,null,null,{"$f":"IF(COUNTIFS($F$2:F433, F433, $P$2:P433, TRUE)>1,TRUE,FALSE)","v":false},{"$f":"OR(ISNUMBER(MATCH(Checklist[[#This Row],[Type]], $B$3:$B$22, 0)), Checklist[[#This Row],[Type]] = \"*\")","v":false}]
[null,null,null,"Features","Network Diagram","FC.NET10","Jittering","Allows data points to be jittered to avoid overlap and improve visibility.","No","Yes",null,null,null,null,{"$f":"IF(COUNTIFS($F$2:F434, F434, $P$2:P434, TRUE)>1,TRUE,FALSE)","v":false},{"$f":"OR(ISNUMBER(MATCH(Checklist[[#This Row],[Type]], $B$3:$B$22, 0)), Checklist[[#This Row],[Type]] = \"*\")","v":false}]
[null,null,null,"Features","Org Chart","FC.HIER01","Node Customization","Allows customization of node size, color, and shape.","No","Yes",null,null,null,null,{"$f":"IF(COUNTIFS($F$2:F435, F435, $P$2:P435, TRUE)>1,TRUE,FALSE)","v":false},{"$f":"OR(ISNUMBER(MATCH(Checklist[[#This Row],[Type]], $B$3:$B$22, 0)), Checklist[[#This Row],[Type]] = \"*\")","v":false}]
[null,null,null,"Features","Org Chart","FC.HIER01.1","Dynamic Node Customization","Allows customization of node size, color, and shape based on data.","No","Yes",null,null,null,null,{"$f":"IF(COUNTIFS($F$2:F436, F436, $P$2:P436, TRUE)>1,TRUE,FALSE)","v":false},{"$f":"OR(ISNUMBER(MATCH(Checklist[[#This Row],[Type]], $B$3:$B$22, 0)), Checklist[[#This Row],[Type]] = \"*\")","v":false}]
[null,null,null,"Features","Org Chart","FC.HIER04","Node Positioning","Allows users to customize node positioning for better layout control.","No","Yes",null,null,null,null,{"$f":"IF(COUNTIFS($F$2:F437, F437, $P$2:P437, TRUE)>1,TRUE,FALSE)","v":false},{"$f":"OR(ISNUMBER(MATCH(Checklist[[#This Row],[Type]], $B$3:$B$22, 0)), Checklist[[#This Row],[Type]] = \"*\")","v":false}]
[null,null,null,"Features","Org Chart","FC.HIER05","Node Clustering","Supports grouping nodes into clusters based on data values or conditions.","No","Yes",null,null,null,null,{"$f":"IF(COUNTIFS($F$2:F438, F438, $P$2:P438, TRUE)>1,TRUE,FALSE)","v":false},{"$f":"OR(ISNUMBER(MATCH(Checklist[[#This Row],[Type]], $B$3:$B$22, 0)), Checklist[[#This Row],[Type]] = \"*\")","v":false}]
[null,null,null,"Features","Org Chart","FC.HIER06","Expand/Collapse","Supports expanding and collapsing nodes to show or hide branches.","No","Yes",null,null,null,null,{"$f":"IF(COUNTIFS($F$2:F439, F439, $P$2:P439, TRUE)>1,TRUE,FALSE)","v":false},{"$f":"OR(ISNUMBER(MATCH(Checklist[[#This Row],[Type]], $B$3:$B$22, 0)), Checklist[[#This Row],[Type]] = \"*\")","v":false}]
[null,null,null,"Features","Org Chart","FC.HIER07","Edge Customization","Allows customization of edge thickness, color, and style.","No","Yes",null,null,null,null,{"$f":"IF(COUNTIFS($F$2:F440, F440, $P$2:P440, TRUE)>1,TRUE,FALSE)","v":false},{"$f":"OR(ISNUMBER(MATCH(Checklist[[#This Row],[Type]], $B$3:$B$22, 0)), Checklist[[#This Row],[Type]] = \"*\")","v":false}]
[null,null,null,"Features","Org Chart","FC.HIER07.1","Dynamic Edge Customization","Allows customization of edge thickness, color, and style based on data.","No","Yes",null,null,null,null,{"$f":"IF(COUNTIFS($F$2:F441, F441, $P$2:P441, TRUE)>1,TRUE,FALSE)","v":false},{"$f":"OR(ISNUMBER(MATCH(Checklist[[#This Row],[Type]], $B$3:$B$22, 0)), Checklist[[#This Row],[Type]] = \"*\")","v":false}]
[null,null,null,"Features","Org Chart","FC.HIER08","Edge Labels","Enables the display of labels for edges to provide additional context.","No","Yes",null,null,null,null,{"$f":"IF(COUNTIFS($F$2:F442, F442, $P$2:P442, TRUE)>1,TRUE,FALSE)","v":false},{"$f":"OR(ISNUMBER(MATCH(Checklist[[#This Row],[Type]], $B$3:$B$22, 0)), Checklist[[#This Row],[Type]] = \"*\")","v":false}]
[null,null,null,"Features","Org Chart","FC.HIER09","Breadcrumb Navigation","Supports breadcrumbs to navigate through hierarchical levels.","No","Yes",null,null,null,null,{"$f":"IF(COUNTIFS($F$2:F443, F443, $P$2:P443, TRUE)>1,TRUE,FALSE)","v":false},{"$f":"OR(ISNUMBER(MATCH(Checklist[[#This Row],[Type]], $B$3:$B$22, 0)), Checklist[[#This Row],[Type]] = \"*\")","v":false}]
[null,null,null,"Features","Parallel Coordinates Plot","FC.NET02","Edge Customization","Allows customization of edge thickness, color, and style.","No","Yes",null,null,null,null,{"$f":"IF(COUNTIFS($F$2:F444, F444, $P$2:P444, TRUE)>1,TRUE,FALSE)","v":false},{"$f":"OR(ISNUMBER(MATCH(Checklist[[#This Row],[Type]], $B$3:$B$22, 0)), Checklist[[#This Row],[Type]] = \"*\")","v":false}]
[null,null,null,"Features","Parallel Coordinates Plot","FC.NET02.1","Dynamic Edge Customization","Allows customization of node size, color, and shape based on data.","No","Yes",null,null,null,null,{"$f":"IF(COUNTIFS($F$2:F445, F445, $P$2:P445, TRUE)>1,TRUE,FALSE)","v":false},{"$f":"OR(ISNUMBER(MATCH(Checklist[[#This Row],[Type]], $B$3:$B$22, 0)), Checklist[[#This Row],[Type]] = \"*\")","v":false}]
[null,null,null,"Features","Parallel Coordinates Plot","FC.NET05","Edge Bundling","Supports edge bundling to reduce visual clutter and improve readability.","No","Yes",null,null,null,null,{"$f":"IF(COUNTIFS($F$2:F446, F446, $P$2:P446, TRUE)>1,TRUE,FALSE)","v":false},{"$f":"OR(ISNUMBER(MATCH(Checklist[[#This Row],[Type]], $B$3:$B$22, 0)), Checklist[[#This Row],[Type]] = \"*\")","v":false}]
[null,null,null,"Features","Parallel Coordinates Plot","FC.NET09","Directional Arrows","Supports directional arrows to indicate the flow of relationships.","No","Yes",null,null,null,null,{"$f":"IF(COUNTIFS($F$2:F447, F447, $P$2:P447, TRUE)>1,TRUE,FALSE)","v":false},{"$f":"OR(ISNUMBER(MATCH(Checklist[[#This Row],[Type]], $B$3:$B$22, 0)), Checklist[[#This Row],[Type]] = \"*\")","v":false}]
[null,null,null,"Features","Parallel Coordinates Plot","FC.NET10","Jittering","Allows data points to be jittered to avoid overlap and improve visibility.","No","Yes",null,null,null,null,{"$f":"IF(COUNTIFS($F$2:F448, F448, $P$2:P448, TRUE)>1,TRUE,FALSE)","v":false},{"$f":"OR(ISNUMBER(MATCH(Checklist[[#This Row],[Type]], $B$3:$B$22, 0)), Checklist[[#This Row],[Type]] = \"*\")","v":false}]
[null,null,null,"Features","Parallel Coordinates Plot","FT.PARCOORD01","Axis Scaling","Allows each axis to be independently scaled to enhance data visualization.","No","Yes",null,null,null,null,{"$f":"IF(COUNTIFS($F$2:F449, F449, $P$2:P449, TRUE)>1,TRUE,FALSE)","v":false},{"$f":"OR(ISNUMBER(MATCH(Checklist[[#This Row],[Type]], $B$3:$B$22, 0)), Checklist[[#This Row],[Type]] = \"*\")","v":false}]
[null,null,null,"Features","Parallel Coordinates Plot","FT.PARCOORD02","Axis Customization","Supports customization of axis appearance, including labels and tick marks.","No","Yes",null,null,null,null,{"$f":"IF(COUNTIFS($F$2:F450, F450, $P$2:P450, TRUE)>1,TRUE,FALSE)","v":false},{"$f":"OR(ISNUMBER(MATCH(Checklist[[#This Row],[Type]], $B$3:$B$22, 0)), Checklist[[#This Row],[Type]] = \"*\")","v":false}]
[null,null,null,"Features","Pareto Chart","FC.CART01","Axis Titles","Allows users to add titles to the X and Y axes for better context.","No","Yes",null,null,null,null,{"$f":"IF(COUNTIFS($F$2:F451, F451, $P$2:P451, TRUE)>1,TRUE,FALSE)","v":false},{"$f":"OR(ISNUMBER(MATCH(Checklist[[#This Row],[Type]], $B$3:$B$22, 0)), Checklist[[#This Row],[Type]] = \"*\")","v":false}]
[null,null,null,"Features","Pareto Chart","FC.CART02","Axis Customization","Allows customization of the axis labels, tick marks, and scales.","No","Yes",null,null,null,null,{"$f":"IF(COUNTIFS($F$2:F452, F452, $P$2:P452, TRUE)>1,TRUE,FALSE)","v":false},{"$f":"OR(ISNUMBER(MATCH(Checklist[[#This Row],[Type]], $B$3:$B$22, 0)), Checklist[[#This Row],[Type]] = \"*\")","v":false}]
[null,null,null,"Features","Pareto Chart","FC.CART04","Grid Lines","Supports grid lines to aid in reading data values.","No","Yes",null,null,null,null,{"$f":"IF(COUNTIFS($F$2:F453, F453, $P$2:P453, TRUE)>1,TRUE,FALSE)","v":false},{"$f":"OR(ISNUMBER(MATCH(Checklist[[#This Row],[Type]], $B$3:$B$22, 0)), Checklist[[#This Row],[Type]] = \"*\")","v":false}]
[null,null,null,"Features","Pareto Chart","FC.CART07","Data Point Markers","Allows users to conditionally format data point markers.","No","Yes",null,null,null,null,{"$f":"IF(COUNTIFS($F$2:F454, F454, $P$2:P454, TRUE)>1,TRUE,FALSE)","v":false},{"$f":"OR(ISNUMBER(MATCH(Checklist[[#This Row],[Type]], $B$3:$B$22, 0)), Checklist[[#This Row],[Type]] = \"*\")","v":false}]
[null,null,null,"Features","Pareto Chart","FC.CART09","Pan & Zoom","Supports panning and zooming for better exploration of data.","No","Yes",null,null,null,null,{"$f":"IF(COUNTIFS($F$2:F455, F455, $P$2:P455, TRUE)>1,TRUE,FALSE)","v":false},{"$f":"OR(ISNUMBER(MATCH(Checklist[[#This Row],[Type]], $B$3:$B$22, 0)), Checklist[[#This Row],[Type]] = \"*\")","v":false}]
[null,null,null,"Features","Pareto Chart","FC.CART11","Custom Annotations","Allows users to add custom annotations based on data or conditions.","No","Yes",null,null,null,null,{"$f":"IF(COUNTIFS($F$2:F456, F456, $P$2:P456, TRUE)>1,TRUE,FALSE)","v":false},{"$f":"OR(ISNUMBER(MATCH(Checklist[[#This Row],[Type]], $B$3:$B$22, 0)), Checklist[[#This Row],[Type]] = \"*\")","v":false}]
[null,null,null,"Features","Pareto Chart","FT.PARETO01","Threshold Coloring","Ability to color bars higher or lower than a dynamic threshold.","No","Yes",null,null,null,null,{"$f":"IF(COUNTIFS($F$2:F457, F457, $P$2:P457, TRUE)>1,TRUE,FALSE)","v":false},{"$f":"OR(ISNUMBER(MATCH(Checklist[[#This Row],[Type]], $B$3:$B$22, 0)), Checklist[[#This Row],[Type]] = \"*\")","v":false}]
[null,null,null,"Features","Pictogram Chart","FC.CART01","Axis Titles","Allows users to add titles to the X and Y axes for better context.","No","Yes",null,null,null,null,{"$f":"IF(COUNTIFS($F$2:F458, F458, $P$2:P458, TRUE)>1,TRUE,FALSE)","v":false},{"$f":"OR(ISNUMBER(MATCH(Checklist[[#This Row],[Type]], $B$3:$B$22, 0)), Checklist[[#This Row],[Type]] = \"*\")","v":false}]
[null,null,null,"Features","Pictogram Chart","FC.CART02","Axis Customization","Allows customization of the axis labels, tick marks, and scales.","No","Yes",null,null,null,null,{"$f":"IF(COUNTIFS($F$2:F459, F459, $P$2:P459, TRUE)>1,TRUE,FALSE)","v":false},{"$f":"OR(ISNUMBER(MATCH(Checklist[[#This Row],[Type]], $B$3:$B$22, 0)), Checklist[[#This Row],[Type]] = \"*\")","v":false}]
[null,null,null,"Features","Pictogram Chart","FC.CART04","Grid Lines","Supports grid lines to aid in reading data values.","No","Yes",null,null,null,null,{"$f":"IF(COUNTIFS($F$2:F460, F460, $P$2:P460, TRUE)>1,TRUE,FALSE)","v":false},{"$f":"OR(ISNUMBER(MATCH(Checklist[[#This Row],[Type]], $B$3:$B$22, 0)), Checklist[[#This Row],[Type]] = \"*\")","v":false}]
[null,null,null,"Features","Pictogram Chart","FC.CART07","Data Point Markers","Allows users to conditionally format data point markers.","No","Yes",null,null,null,null,{"$f":"IF(COUNTIFS($F$2:F461, F461, $P$2:P461, TRUE)>1,TRUE,FALSE)","v":false},{"$f":"OR(ISNUMBER(MATCH(Checklist[[#This Row],[Type]], $B$3:$B$22, 0)), Checklist[[#This Row],[Type]] = \"*\")","v":false}]
[null,null,null,"Features","Pictogram Chart","FC.CART09","Pan & Zoom","Supports panning and zooming for better exploration of data.","No","Yes",null,null,null,null,{"$f":"IF(COUNTIFS($F$2:F462, F462, $P$2:P462, TRUE)>1,TRUE,FALSE)","v":false},{"$f":"OR(ISNUMBER(MATCH(Checklist[[#This Row],[Type]], $B$3:$B$22, 0)), Checklist[[#This Row],[Type]] = \"*\")","v":false}]
[null,null,null,"Features","Pictogram Chart","FC.CART10","Dynamic Sorting","Supports sorting data points based on specific columns or measures.","No","Yes",null,null,null,null,{"$f":"IF(COUNTIFS($F$2:F463, F463, $P$2:P463, TRUE)>1,TRUE,FALSE)","v":false},{"$f":"OR(ISNUMBER(MATCH(Checklist[[#This Row],[Type]], $B$3:$B$22, 0)), Checklist[[#This Row],[Type]] = \"*\")","v":false}]
[null,null,null,"Features","Pictogram Chart","FC.CART11","Custom Annotations","Allows users to add custom annotations based on data or conditions.","No","Yes",null,null,null,null,{"$f":"IF(COUNTIFS($F$2:F464, F464, $P$2:P464, TRUE)>1,TRUE,FALSE)","v":false},{"$f":"OR(ISNUMBER(MATCH(Checklist[[#This Row],[Type]], $B$3:$B$22, 0)), Checklist[[#This Row],[Type]] = \"*\")","v":false}]
[null,null,null,"Features","Pictogram Chart","FC.PROP07","Multiple Selection with Lasso","Allows users to select multiple data points by drawing a lasso around them.","No","Yes",null,null,null,null,{"$f":"IF(COUNTIFS($F$2:F465, F465, $P$2:P465, TRUE)>1,TRUE,FALSE)","v":false},{"$f":"OR(ISNUMBER(MATCH(Checklist[[#This Row],[Type]], $B$3:$B$22, 0)), Checklist[[#This Row],[Type]] = \"*\")","v":false}]
[null,null,null,"Features","Pictogram Chart","FT.PIC01","Custom Icons","Allows the use of custom icons to represent data points visually.","No","Yes",null,null,null,null,{"$f":"IF(COUNTIFS($F$2:F466, F466, $P$2:P466, TRUE)>1,TRUE,FALSE)","v":false},{"$f":"OR(ISNUMBER(MATCH(Checklist[[#This Row],[Type]], $B$3:$B$22, 0)), Checklist[[#This Row],[Type]] = \"*\")","v":false}]
[null,null,null,"Features","Pie/Donut Chart","FC.POLAR03","Grid Lines","Supports grid lines to aid in reading data values.","No","Yes",null,null,null,null,{"$f":"IF(COUNTIFS($F$2:F467, F467, $P$2:P467, TRUE)>1,TRUE,FALSE)","v":false},{"$f":"OR(ISNUMBER(MATCH(Checklist[[#This Row],[Type]], $B$3:$B$22, 0)), Checklist[[#This Row],[Type]] = \"*\")","v":false}]
[null,null,null,"Features","Pie/Donut Chart","FC.POLAR05","Category Labels","Enables the display of labels for categories.","No","Yes",null,null,null,null,{"$f":"IF(COUNTIFS($F$2:F468, F468, $P$2:P468, TRUE)>1,TRUE,FALSE)","v":false},{"$f":"OR(ISNUMBER(MATCH(Checklist[[#This Row],[Type]], $B$3:$B$22, 0)), Checklist[[#This Row],[Type]] = \"*\")","v":false}]
[null,null,null,"Features","Pie/Donut Chart","FC.POLAR06","Custom Grouping","Allows users to group data points or categories based on specific criteria to avoid displaying too much data.","No","Yes",null,null,null,null,{"$f":"IF(COUNTIFS($F$2:F469, F469, $P$2:P469, TRUE)>1,TRUE,FALSE)","v":false},{"$f":"OR(ISNUMBER(MATCH(Checklist[[#This Row],[Type]], $B$3:$B$22, 0)), Checklist[[#This Row],[Type]] = \"*\")","v":false}]
[null,null,null,"Features","Pie/Donut Chart","FC.POLAR07","Exploded Views","Separating segments slightly to emphasize them.","No","Yes",null,null,null,null,{"$f":"IF(COUNTIFS($F$2:F470, F470, $P$2:P470, TRUE)>1,TRUE,FALSE)","v":false},{"$f":"OR(ISNUMBER(MATCH(Checklist[[#This Row],[Type]], $B$3:$B$22, 0)), Checklist[[#This Row],[Type]] = \"*\")","v":false}]
[null,null,null,"Features","Pie/Donut Chart","FC.POLAR08","Custom Annotations","Allows users to add custom annotations based on data or conditions.","No","Yes",null,null,null,null,{"$f":"IF(COUNTIFS($F$2:F471, F471, $P$2:P471, TRUE)>1,TRUE,FALSE)","v":false},{"$f":"OR(ISNUMBER(MATCH(Checklist[[#This Row],[Type]], $B$3:$B$22, 0)), Checklist[[#This Row],[Type]] = \"*\")","v":false}]
[null,null,null,"Features","Pie/Donut Chart","FC.POLAR09","3D Effects","Supports 3D effects to enhance the visual appearance.","No","Yes",null,null,null,null,{"$f":"IF(COUNTIFS($F$2:F472, F472, $P$2:P472, TRUE)>1,TRUE,FALSE)","v":false},{"$f":"OR(ISNUMBER(MATCH(Checklist[[#This Row],[Type]], $B$3:$B$22, 0)), Checklist[[#This Row],[Type]] = \"*\")","v":false}]
[null,null,null,"Features","Pie/Donut Chart","FT.PIE01","Inside/Outside Labels","Allows users to display labels inside or outside the pie chart for better readability.","No","Yes",null,null,null,null,{"$f":"IF(COUNTIFS($F$2:F473, F473, $P$2:P473, TRUE)>1,TRUE,FALSE)","v":false},{"$f":"OR(ISNUMBER(MATCH(Checklist[[#This Row],[Type]], $B$3:$B$22, 0)), Checklist[[#This Row],[Type]] = \"*\")","v":false}]
[null,null,null,"Features","Pie/Donut Chart","FT.PIE02","Multiple Pies","Supports displaying multiple pie charts for comparison.","No","Yes",null,null,null,null,{"$f":"IF(COUNTIFS($F$2:F474, F474, $P$2:P474, TRUE)>1,TRUE,FALSE)","v":false},{"$f":"OR(ISNUMBER(MATCH(Checklist[[#This Row],[Type]], $B$3:$B$22, 0)), Checklist[[#This Row],[Type]] = \"*\")","v":false}]
[null,null,null,"Features","Pie/Donut Chart","FT.PIE03","Percentage Display","Shows percentage values for each segment of the chart, enhancing understanding of proportions.","No","Yes",null,null,null,null,{"$f":"IF(COUNTIFS($F$2:F475, F475, $P$2:P475, TRUE)>1,TRUE,FALSE)","v":false},{"$f":"OR(ISNUMBER(MATCH(Checklist[[#This Row],[Type]], $B$3:$B$22, 0)), Checklist[[#This Row],[Type]] = \"*\")","v":false}]
[null,null,null,"Features","Point & Figure Chart","FC.CART01","Axis Titles","Allows users to add titles to the X and Y axes for better context.","No","Yes",null,null,null,null,{"$f":"IF(COUNTIFS($F$2:F476, F476, $P$2:P476, TRUE)>1,TRUE,FALSE)","v":false},{"$f":"OR(ISNUMBER(MATCH(Checklist[[#This Row],[Type]], $B$3:$B$22, 0)), Checklist[[#This Row],[Type]] = \"*\")","v":false}]
[null,null,null,"Features","Point & Figure Chart","FC.CART02","Axis Customization","Allows customization of the axis labels, tick marks, and scales.","No","Yes",null,null,null,null,{"$f":"IF(COUNTIFS($F$2:F477, F477, $P$2:P477, TRUE)>1,TRUE,FALSE)","v":false},{"$f":"OR(ISNUMBER(MATCH(Checklist[[#This Row],[Type]], $B$3:$B$22, 0)), Checklist[[#This Row],[Type]] = \"*\")","v":false}]
[null,null,null,"Features","Point & Figure Chart","FC.CART04","Grid Lines","Supports grid lines to aid in reading data values.","No","Yes",null,null,null,null,{"$f":"IF(COUNTIFS($F$2:F478, F478, $P$2:P478, TRUE)>1,TRUE,FALSE)","v":false},{"$f":"OR(ISNUMBER(MATCH(Checklist[[#This Row],[Type]], $B$3:$B$22, 0)), Checklist[[#This Row],[Type]] = \"*\")","v":false}]
[null,null,null,"Features","Point & Figure Chart","FC.CART05","Reference Lines","Supports adding reference lines to highlight specific values or thresholds.","No","Yes",null,null,null,null,{"$f":"IF(COUNTIFS($F$2:F479, F479, $P$2:P479, TRUE)>1,TRUE,FALSE)","v":false},{"$f":"OR(ISNUMBER(MATCH(Checklist[[#This Row],[Type]], $B$3:$B$22, 0)), Checklist[[#This Row],[Type]] = \"*\")","v":false}]
[null,null,null,"Features","Point & Figure Chart","FC.CART07","Data Point Markers","Allows users to conditionally format data point markers.","No","Yes",null,null,null,null,{"$f":"IF(COUNTIFS($F$2:F480, F480, $P$2:P480, TRUE)>1,TRUE,FALSE)","v":false},{"$f":"OR(ISNUMBER(MATCH(Checklist[[#This Row],[Type]], $B$3:$B$22, 0)), Checklist[[#This Row],[Type]] = \"*\")","v":false}]
[null,null,null,"Features","Point & Figure Chart","FC.CART08","Trend Lines","Supports adding trend lines to visualize data trends.","No","Yes",null,null,null,null,{"$f":"IF(COUNTIFS($F$2:F481, F481, $P$2:P481, TRUE)>1,TRUE,FALSE)","v":false},{"$f":"OR(ISNUMBER(MATCH(Checklist[[#This Row],[Type]], $B$3:$B$22, 0)), Checklist[[#This Row],[Type]] = \"*\")","v":false}]
[null,null,null,"Features","Point & Figure Chart","FC.CART09","Pan & Zoom","Supports panning and zooming for better exploration of data.","No","Yes",null,null,null,null,{"$f":"IF(COUNTIFS($F$2:F482, F482, $P$2:P482, TRUE)>1,TRUE,FALSE)","v":false},{"$f":"OR(ISNUMBER(MATCH(Checklist[[#This Row],[Type]], $B$3:$B$22, 0)), Checklist[[#This Row],[Type]] = \"*\")","v":false}]
[null,null,null,"Features","Point & Figure Chart","FC.CART10","Dynamic Sorting","Supports sorting data points based on specific columns or measures.","No","Yes",null,null,null,null,{"$f":"IF(COUNTIFS($F$2:F483, F483, $P$2:P483, TRUE)>1,TRUE,FALSE)","v":false},{"$f":"OR(ISNUMBER(MATCH(Checklist[[#This Row],[Type]], $B$3:$B$22, 0)), Checklist[[#This Row],[Type]] = \"*\")","v":false}]
[null,null,null,"Features","Point & Figure Chart","FC.CART11","Custom Annotations","Allows users to add custom annotations based on data or conditions.","No","Yes",null,null,null,null,{"$f":"IF(COUNTIFS($F$2:F484, F484, $P$2:P484, TRUE)>1,TRUE,FALSE)","v":false},{"$f":"OR(ISNUMBER(MATCH(Checklist[[#This Row],[Type]], $B$3:$B$22, 0)), Checklist[[#This Row],[Type]] = \"*\")","v":false}]
[null,null,null,"Features","Point & Figure Chart","FT.PF01","Box Size Setting","Allows users to define the box size for the Point & Figure chart, influencing the granularity of price movements.","No","Yes",null,null,null,null,{"$f":"IF(COUNTIFS($F$2:F485, F485, $P$2:P485, TRUE)>1,TRUE,FALSE)","v":false},{"$f":"OR(ISNUMBER(MATCH(Checklist[[#This Row],[Type]], $B$3:$B$22, 0)), Checklist[[#This Row],[Type]] = \"*\")","v":false}]
[null,null,null,"Features","Polar Area Chart","FC.POLAR03","Grid Lines","Supports grid lines to aid in reading data values.","No","Yes",null,null,null,null,{"$f":"IF(COUNTIFS($F$2:F486, F486, $P$2:P486, TRUE)>1,TRUE,FALSE)","v":false},{"$f":"OR(ISNUMBER(MATCH(Checklist[[#This Row],[Type]], $B$3:$B$22, 0)), Checklist[[#This Row],[Type]] = \"*\")","v":false}]
[null,null,null,"Features","Polar Area Chart","FC.POLAR05","Category Labels","Enables the display of labels for categories.","No","Yes",null,null,null,null,{"$f":"IF(COUNTIFS($F$2:F487, F487, $P$2:P487, TRUE)>1,TRUE,FALSE)","v":false},{"$f":"OR(ISNUMBER(MATCH(Checklist[[#This Row],[Type]], $B$3:$B$22, 0)), Checklist[[#This Row],[Type]] = \"*\")","v":false}]
[null,null,null,"Features","Polar Area Chart","FC.POLAR06","Custom Grouping","Allows users to group data points or categories based on specific criteria to avoid displaying too much data.","No","Yes",null,null,null,null,{"$f":"IF(COUNTIFS($F$2:F488, F488, $P$2:P488, TRUE)>1,TRUE,FALSE)","v":false},{"$f":"OR(ISNUMBER(MATCH(Checklist[[#This Row],[Type]], $B$3:$B$22, 0)), Checklist[[#This Row],[Type]] = \"*\")","v":false}]
[null,null,null,"Features","Polar Area Chart","FC.POLAR07","Exploded Views","Separating segments slightly to emphasize them.","No","Yes",null,null,null,null,{"$f":"IF(COUNTIFS($F$2:F489, F489, $P$2:P489, TRUE)>1,TRUE,FALSE)","v":false},{"$f":"OR(ISNUMBER(MATCH(Checklist[[#This Row],[Type]], $B$3:$B$22, 0)), Checklist[[#This Row],[Type]] = \"*\")","v":false}]
[null,null,null,"Features","Polar Area Chart","FC.POLAR08","Custom Annotations","Allows users to add custom annotations based on data or conditions.","No","Yes",null,null,null,null,{"$f":"IF(COUNTIFS($F$2:F490, F490, $P$2:P490, TRUE)>1,TRUE,FALSE)","v":false},{"$f":"OR(ISNUMBER(MATCH(Checklist[[#This Row],[Type]], $B$3:$B$22, 0)), Checklist[[#This Row],[Type]] = \"*\")","v":false}]
[null,null,null,"Features","Polar Area Chart","FC.POLAR09","3D Effects","Supports 3D effects to enhance the visual appearance.","No","Yes",null,null,null,null,{"$f":"IF(COUNTIFS($F$2:F491, F491, $P$2:P491, TRUE)>1,TRUE,FALSE)","v":false},{"$f":"OR(ISNUMBER(MATCH(Checklist[[#This Row],[Type]], $B$3:$B$22, 0)), Checklist[[#This Row],[Type]] = \"*\")","v":false}]
[null,null,null,"Features","Polar Area Chart","FT.POLAR01","Radial Axis Customization","Allows customization of the radial axis, including scales and labels for better clarity.","No","Yes",null,null,null,null,{"$f":"IF(COUNTIFS($F$2:F492, F492, $P$2:P492, TRUE)>1,TRUE,FALSE)","v":false},{"$f":"OR(ISNUMBER(MATCH(Checklist[[#This Row],[Type]], $B$3:$B$22, 0)), Checklist[[#This Row],[Type]] = \"*\")","v":false}]
[null,null,null,"Features","Population Pyramid","FC.CART01","Axis Titles","Allows users to add titles to the X and Y axes for better context.","No","Yes",null,null,null,null,{"$f":"IF(COUNTIFS($F$2:F493, F493, $P$2:P493, TRUE)>1,TRUE,FALSE)","v":false},{"$f":"OR(ISNUMBER(MATCH(Checklist[[#This Row],[Type]], $B$3:$B$22, 0)), Checklist[[#This Row],[Type]] = \"*\")","v":false}]
[null,null,null,"Features","Population Pyramid","FC.CART02","Axis Customization","Allows customization of the axis labels, tick marks, and scales.","No","Yes",null,null,null,null,{"$f":"IF(COUNTIFS($F$2:F494, F494, $P$2:P494, TRUE)>1,TRUE,FALSE)","v":false},{"$f":"OR(ISNUMBER(MATCH(Checklist[[#This Row],[Type]], $B$3:$B$22, 0)), Checklist[[#This Row],[Type]] = \"*\")","v":false}]
[null,null,null,"Features","Population Pyramid","FC.CART04","Grid Lines","Supports grid lines to aid in reading data values.","No","Yes",null,null,null,null,{"$f":"IF(COUNTIFS($F$2:F495, F495, $P$2:P495, TRUE)>1,TRUE,FALSE)","v":false},{"$f":"OR(ISNUMBER(MATCH(Checklist[[#This Row],[Type]], $B$3:$B$22, 0)), Checklist[[#This Row],[Type]] = \"*\")","v":false}]
[null,null,null,"Features","Population Pyramid","FC.CART05","Reference Lines","Supports adding reference lines to highlight specific values or thresholds.","No","Yes",null,null,null,null,{"$f":"IF(COUNTIFS($F$2:F496, F496, $P$2:P496, TRUE)>1,TRUE,FALSE)","v":false},{"$f":"OR(ISNUMBER(MATCH(Checklist[[#This Row],[Type]], $B$3:$B$22, 0)), Checklist[[#This Row],[Type]] = \"*\")","v":false}]
[null,null,null,"Features","Population Pyramid","FC.CART07","Data Point Markers","Allows users to conditionally format data point markers.","No","Yes",null,null,null,null,{"$f":"IF(COUNTIFS($F$2:F497, F497, $P$2:P497, TRUE)>1,TRUE,FALSE)","v":false},{"$f":"OR(ISNUMBER(MATCH(Checklist[[#This Row],[Type]], $B$3:$B$22, 0)), Checklist[[#This Row],[Type]] = \"*\")","v":false}]
[null,null,null,"Features","Proportional Area Chart","FC.PROP03","Category Labels","Enables the display of labels for categories.","No","Yes",null,null,null,null,{"$f":"IF(COUNTIFS($F$2:F498, F498, $P$2:P498, TRUE)>1,TRUE,FALSE)","v":false},{"$f":"OR(ISNUMBER(MATCH(Checklist[[#This Row],[Type]], $B$3:$B$22, 0)), Checklist[[#This Row],[Type]] = \"*\")","v":false}]
[null,null,null,"Features","Proportional Area Chart","FC.PROP04","Borders Customization","Allows customization of borders for better visual distinction.","No","Yes",null,null,null,null,{"$f":"IF(COUNTIFS($F$2:F499, F499, $P$2:P499, TRUE)>1,TRUE,FALSE)","v":false},{"$f":"OR(ISNUMBER(MATCH(Checklist[[#This Row],[Type]], $B$3:$B$22, 0)), Checklist[[#This Row],[Type]] = \"*\")","v":false}]
[null,null,null,"Features","Proportional Area Chart","FC.PROP05","Pan & Zoom","Supports panning and zooming for better exploration of data.","No","Yes",null,null,null,null,{"$f":"IF(COUNTIFS($F$2:F500, F500, $P$2:P500, TRUE)>1,TRUE,FALSE)","v":false},{"$f":"OR(ISNUMBER(MATCH(Checklist[[#This Row],[Type]], $B$3:$B$22, 0)), Checklist[[#This Row],[Type]] = \"*\")","v":false}]
[null,null,null,"Features","Proportional Area Chart","FC.PROP06","Dynamic Sorting","Supports sorting data points based on specific columns or measures.","No","Yes",null,null,null,null,{"$f":"IF(COUNTIFS($F$2:F501, F501, $P$2:P501, TRUE)>1,TRUE,FALSE)","v":false},{"$f":"OR(ISNUMBER(MATCH(Checklist[[#This Row],[Type]], $B$3:$B$22, 0)), Checklist[[#This Row],[Type]] = \"*\")","v":false}]
[null,null,null,"Features","Proportional Area Chart","FC.PROP07","Multiple Selection with Lasso","Allows users to select multiple data points by drawing a lasso around them.","No","Yes",null,null,null,null,{"$f":"IF(COUNTIFS($F$2:F502, F502, $P$2:P502, TRUE)>1,TRUE,FALSE)","v":false},{"$f":"OR(ISNUMBER(MATCH(Checklist[[#This Row],[Type]], $B$3:$B$22, 0)), Checklist[[#This Row],[Type]] = \"*\")","v":false}]
[null,null,null,"Features","Proportional Area Chart","FT.PROPAREA01","Area Sizing Options","Provides options for adjusting how areas are sized based on data values.","No","Yes",null,null,null,null,{"$f":"IF(COUNTIFS($F$2:F503, F503, $P$2:P503, TRUE)>1,TRUE,FALSE)","v":false},{"$f":"OR(ISNUMBER(MATCH(Checklist[[#This Row],[Type]], $B$3:$B$22, 0)), Checklist[[#This Row],[Type]] = \"*\")","v":false}]
[null,null,null,"Features","Proportional Area Chart","FT.PROPAREA02","Jittering","Allows data points to be jittered to avoid overlap and improve visibility.","No","Yes",null,null,null,null,{"$f":"IF(COUNTIFS($F$2:F504, F504, $P$2:P504, TRUE)>1,TRUE,FALSE)","v":false},{"$f":"OR(ISNUMBER(MATCH(Checklist[[#This Row],[Type]], $B$3:$B$22, 0)), Checklist[[#This Row],[Type]] = \"*\")","v":false}]
[null,null,null,"Features","Pyramid Chart","FC.PROP03","Category Labels","Enables the display of labels for categories.","No","Yes",null,null,null,null,{"$f":"IF(COUNTIFS($F$2:F505, F505, $P$2:P505, TRUE)>1,TRUE,FALSE)","v":false},{"$f":"OR(ISNUMBER(MATCH(Checklist[[#This Row],[Type]], $B$3:$B$22, 0)), Checklist[[#This Row],[Type]] = \"*\")","v":false}]
[null,null,null,"Features","Pyramid Chart","FC.PROP04","Borders Customization","Allows customization of borders for better visual distinction.","No","Yes",null,null,null,null,{"$f":"IF(COUNTIFS($F$2:F506, F506, $P$2:P506, TRUE)>1,TRUE,FALSE)","v":false},{"$f":"OR(ISNUMBER(MATCH(Checklist[[#This Row],[Type]], $B$3:$B$22, 0)), Checklist[[#This Row],[Type]] = \"*\")","v":false}]
[null,null,null,"Features","Pyramid Chart","FC.PROP05","Pan & Zoom","Supports panning and zooming for better exploration of data.","No","Yes",null,null,null,null,{"$f":"IF(COUNTIFS($F$2:F507, F507, $P$2:P507, TRUE)>1,TRUE,FALSE)","v":false},{"$f":"OR(ISNUMBER(MATCH(Checklist[[#This Row],[Type]], $B$3:$B$22, 0)), Checklist[[#This Row],[Type]] = \"*\")","v":false}]
[null,null,null,"Features","Pyramid Chart","FC.PROP06","Dynamic Sorting","Supports sorting data points based on specific columns or measures.","No","Yes",null,null,null,null,{"$f":"IF(COUNTIFS($F$2:F508, F508, $P$2:P508, TRUE)>1,TRUE,FALSE)","v":false},{"$f":"OR(ISNUMBER(MATCH(Checklist[[#This Row],[Type]], $B$3:$B$22, 0)), Checklist[[#This Row],[Type]] = \"*\")","v":false}]
[null,null,null,"Features","Pyramid Chart","FC.PROP07","Multiple Selection with Lasso","Allows users to select multiple data points by drawing a lasso around them.","No","Yes",null,null,null,null,{"$f":"IF(COUNTIFS($F$2:F509, F509, $P$2:P509, TRUE)>1,TRUE,FALSE)","v":false},{"$f":"OR(ISNUMBER(MATCH(Checklist[[#This Row],[Type]], $B$3:$B$22, 0)), Checklist[[#This Row],[Type]] = \"*\")","v":false}]
[null,null,null,"Features","Radar Chart","FC.POLAR03","Grid Lines","Supports grid lines to aid in reading data values.","No","Yes",null,null,null,null,{"$f":"IF(COUNTIFS($F$2:F510, F510, $P$2:P510, TRUE)>1,TRUE,FALSE)","v":false},{"$f":"OR(ISNUMBER(MATCH(Checklist[[#This Row],[Type]], $B$3:$B$22, 0)), Checklist[[#This Row],[Type]] = \"*\")","v":false}]
[null,null,null,"Features","Radar Chart","FC.POLAR05","Category Labels","Enables the display of labels for categories.","No","Yes",null,null,null,null,{"$f":"IF(COUNTIFS($F$2:F511, F511, $P$2:P511, TRUE)>1,TRUE,FALSE)","v":false},{"$f":"OR(ISNUMBER(MATCH(Checklist[[#This Row],[Type]], $B$3:$B$22, 0)), Checklist[[#This Row],[Type]] = \"*\")","v":false}]
[null,null,null,"Features","Radar Chart","FC.POLAR06","Custom Grouping","Allows users to group data points or categories based on specific criteria to avoid displaying too much data.","No","Yes",null,null,null,null,{"$f":"IF(COUNTIFS($F$2:F512, F512, $P$2:P512, TRUE)>1,TRUE,FALSE)","v":false},{"$f":"OR(ISNUMBER(MATCH(Checklist[[#This Row],[Type]], $B$3:$B$22, 0)), Checklist[[#This Row],[Type]] = \"*\")","v":false}]
[null,null,null,"Features","Radar Chart","FC.POLAR08","Custom Annotations","Allows users to add custom annotations based on data or conditions.","No","Yes",null,null,null,null,{"$f":"IF(COUNTIFS($F$2:F513, F513, $P$2:P513, TRUE)>1,TRUE,FALSE)","v":false},{"$f":"OR(ISNUMBER(MATCH(Checklist[[#This Row],[Type]], $B$3:$B$22, 0)), Checklist[[#This Row],[Type]] = \"*\")","v":false}]
[null,null,null,"Features","Radar Chart","FC.POLAR09","3D Effects","Supports 3D effects to enhance the visual appearance.","No","Yes",null,null,null,null,{"$f":"IF(COUNTIFS($F$2:F514, F514, $P$2:P514, TRUE)>1,TRUE,FALSE)","v":false},{"$f":"OR(ISNUMBER(MATCH(Checklist[[#This Row],[Type]], $B$3:$B$22, 0)), Checklist[[#This Row],[Type]] = \"*\")","v":false}]
[null,null,null,"Features","Radial Bar Chart","FC.POLAR03","Grid Lines","Supports grid lines to aid in reading data values.","No","Yes",null,null,null,null,{"$f":"IF(COUNTIFS($F$2:F515, F515, $P$2:P515, TRUE)>1,TRUE,FALSE)","v":false},{"$f":"OR(ISNUMBER(MATCH(Checklist[[#This Row],[Type]], $B$3:$B$22, 0)), Checklist[[#This Row],[Type]] = \"*\")","v":false}]
[null,null,null,"Features","Radial Bar Chart","FC.POLAR05","Category Labels","Enables the display of labels for categories.","No","Yes",null,null,null,null,{"$f":"IF(COUNTIFS($F$2:F516, F516, $P$2:P516, TRUE)>1,TRUE,FALSE)","v":false},{"$f":"OR(ISNUMBER(MATCH(Checklist[[#This Row],[Type]], $B$3:$B$22, 0)), Checklist[[#This Row],[Type]] = \"*\")","v":false}]
[null,null,null,"Features","Radial Bar Chart","FC.POLAR06","Custom Grouping","Allows users to group data points or categories based on specific criteria to avoid displaying too much data.","No","Yes",null,null,null,null,{"$f":"IF(COUNTIFS($F$2:F517, F517, $P$2:P517, TRUE)>1,TRUE,FALSE)","v":false},{"$f":"OR(ISNUMBER(MATCH(Checklist[[#This Row],[Type]], $B$3:$B$22, 0)), Checklist[[#This Row],[Type]] = \"*\")","v":false}]
[null,null,null,"Features","Radial Bar Chart","FC.POLAR08","Custom Annotations","Allows users to add custom annotations based on data or conditions.","No","Yes",null,null,null,null,{"$f":"IF(COUNTIFS($F$2:F518, F518, $P$2:P518, TRUE)>1,TRUE,FALSE)","v":false},{"$f":"OR(ISNUMBER(MATCH(Checklist[[#This Row],[Type]], $B$3:$B$22, 0)), Checklist[[#This Row],[Type]] = \"*\")","v":false}]
[null,null,null,"Features","Radial Bar Chart","FC.POLAR09","3D Effects","Supports 3D effects to enhance the visual appearance.","No","Yes",null,null,null,null,{"$f":"IF(COUNTIFS($F$2:F519, F519, $P$2:P519, TRUE)>1,TRUE,FALSE)","v":false},{"$f":"OR(ISNUMBER(MATCH(Checklist[[#This Row],[Type]], $B$3:$B$22, 0)), Checklist[[#This Row],[Type]] = \"*\")","v":false}]
[null,null,null,"Features","Ribbon Chart","FC.CART01","Axis Titles","Allows users to add titles to the X and Y axes for better context.","No","Yes",null,null,null,null,{"$f":"IF(COUNTIFS($F$2:F520, F520, $P$2:P520, TRUE)>1,TRUE,FALSE)","v":false},{"$f":"OR(ISNUMBER(MATCH(Checklist[[#This Row],[Type]], $B$3:$B$22, 0)), Checklist[[#This Row],[Type]] = \"*\")","v":false}]
[null,null,null,"Features","Ribbon Chart","FC.CART02","Axis Customization","Allows customization of the axis labels, tick marks, and scales.","No","Yes",null,null,null,null,{"$f":"IF(COUNTIFS($F$2:F521, F521, $P$2:P521, TRUE)>1,TRUE,FALSE)","v":false},{"$f":"OR(ISNUMBER(MATCH(Checklist[[#This Row],[Type]], $B$3:$B$22, 0)), Checklist[[#This Row],[Type]] = \"*\")","v":false}]
[null,null,null,"Features","Ribbon Chart","FC.CART04","Grid Lines","Supports grid lines to aid in reading data values.","No","Yes",null,null,null,null,{"$f":"IF(COUNTIFS($F$2:F522, F522, $P$2:P522, TRUE)>1,TRUE,FALSE)","v":false},{"$f":"OR(ISNUMBER(MATCH(Checklist[[#This Row],[Type]], $B$3:$B$22, 0)), Checklist[[#This Row],[Type]] = \"*\")","v":false}]
[null,null,null,"Features","Ribbon Chart","FC.CART05","Reference Lines","Supports adding reference lines to highlight specific values or thresholds.","No","Yes",null,null,null,null,{"$f":"IF(COUNTIFS($F$2:F523, F523, $P$2:P523, TRUE)>1,TRUE,FALSE)","v":false},{"$f":"OR(ISNUMBER(MATCH(Checklist[[#This Row],[Type]], $B$3:$B$22, 0)), Checklist[[#This Row],[Type]] = \"*\")","v":false}]
[null,null,null,"Features","Ribbon Chart","FC.CART08","Trend Lines","Supports adding trend lines to visualize data trends.","No","Yes",null,null,null,null,{"$f":"IF(COUNTIFS($F$2:F524, F524, $P$2:P524, TRUE)>1,TRUE,FALSE)","v":false},{"$f":"OR(ISNUMBER(MATCH(Checklist[[#This Row],[Type]], $B$3:$B$22, 0)), Checklist[[#This Row],[Type]] = \"*\")","v":false}]
[null,null,null,"Features","Ribbon Chart","FC.CART09","Pan & Zoom","Supports panning and zooming for better exploration of data.","No","Yes",null,null,null,null,{"$f":"IF(COUNTIFS($F$2:F525, F525, $P$2:P525, TRUE)>1,TRUE,FALSE)","v":false},{"$f":"OR(ISNUMBER(MATCH(Checklist[[#This Row],[Type]], $B$3:$B$22, 0)), Checklist[[#This Row],[Type]] = \"*\")","v":false}]
[null,null,null,"Features","Ribbon Chart","FC.CART10","Dynamic Sorting","Supports sorting data points based on specific columns or measures.","No","Yes",null,null,null,null,{"$f":"IF(COUNTIFS($F$2:F526, F526, $P$2:P526, TRUE)>1,TRUE,FALSE)","v":false},{"$f":"OR(ISNUMBER(MATCH(Checklist[[#This Row],[Type]], $B$3:$B$22, 0)), Checklist[[#This Row],[Type]] = \"*\")","v":false}]
[null,null,null,"Features","Ribbon Chart","FC.CART11","Custom Annotations","Allows users to add custom annotations based on data or conditions.","No","Yes",null,null,null,null,{"$f":"IF(COUNTIFS($F$2:F527, F527, $P$2:P527, TRUE)>1,TRUE,FALSE)","v":false},{"$f":"OR(ISNUMBER(MATCH(Checklist[[#This Row],[Type]], $B$3:$B$22, 0)), Checklist[[#This Row],[Type]] = \"*\")","v":false}]
[null,null,null,"Features","Ribbon Chart","FT.RIBBON01","Multiple Orientations","Supports both horizontal and vertical orientations.","No","Yes",null,null,null,null,{"$f":"IF(COUNTIFS($F$2:F528, F528, $P$2:P528, TRUE)>1,TRUE,FALSE)","v":false},{"$f":"OR(ISNUMBER(MATCH(Checklist[[#This Row],[Type]], $B$3:$B$22, 0)), Checklist[[#This Row],[Type]] = \"*\")","v":false}]
[null,null,null,"Features","Sankey Diagram","FC.NET01","Node Customization","Allows customization of node size, color, and shape.","No","Yes",null,null,null,null,{"$f":"IF(COUNTIFS($F$2:F529, F529, $P$2:P529, TRUE)>1,TRUE,FALSE)","v":false},{"$f":"OR(ISNUMBER(MATCH(Checklist[[#This Row],[Type]], $B$3:$B$22, 0)), Checklist[[#This Row],[Type]] = \"*\")","v":false}]
[null,null,null,"Features","Sankey Diagram","FC.NET01.1","Dynamic Node Customization","Allows customization of node size, color, and shape based on data.","No","Yes",null,null,null,null,{"$f":"IF(COUNTIFS($F$2:F530, F530, $P$2:P530, TRUE)>1,TRUE,FALSE)","v":false},{"$f":"OR(ISNUMBER(MATCH(Checklist[[#This Row],[Type]], $B$3:$B$22, 0)), Checklist[[#This Row],[Type]] = \"*\")","v":false}]
[null,null,null,"Features","Sankey Diagram","FC.NET02","Edge Customization","Allows customization of edge thickness, color, and style.","No","Yes",null,null,null,null,{"$f":"IF(COUNTIFS($F$2:F531, F531, $P$2:P531, TRUE)>1,TRUE,FALSE)","v":false},{"$f":"OR(ISNUMBER(MATCH(Checklist[[#This Row],[Type]], $B$3:$B$22, 0)), Checklist[[#This Row],[Type]] = \"*\")","v":false}]
[null,null,null,"Features","Sankey Diagram","FC.NET02.1","Dynamic Edge Customization","Allows customization of node size, color, and shape based on data.","No","Yes",null,null,null,null,{"$f":"IF(COUNTIFS($F$2:F532, F532, $P$2:P532, TRUE)>1,TRUE,FALSE)","v":false},{"$f":"OR(ISNUMBER(MATCH(Checklist[[#This Row],[Type]], $B$3:$B$22, 0)), Checklist[[#This Row],[Type]] = \"*\")","v":false}]
[null,null,null,"Features","Sankey Diagram","FC.NET03","Node Labels","Enables the display of labels for nodes to provide additional context.","No","Yes",null,null,null,null,{"$f":"IF(COUNTIFS($F$2:F533, F533, $P$2:P533, TRUE)>1,TRUE,FALSE)","v":false},{"$f":"OR(ISNUMBER(MATCH(Checklist[[#This Row],[Type]], $B$3:$B$22, 0)), Checklist[[#This Row],[Type]] = \"*\")","v":false}]
[null,null,null,"Features","Sankey Diagram","FC.NET04","Edge Labels","Enables the display of labels for edges to provide additional context.","No","Yes",null,null,null,null,{"$f":"IF(COUNTIFS($F$2:F534, F534, $P$2:P534, TRUE)>1,TRUE,FALSE)","v":false},{"$f":"OR(ISNUMBER(MATCH(Checklist[[#This Row],[Type]], $B$3:$B$22, 0)), Checklist[[#This Row],[Type]] = \"*\")","v":false}]
[null,null,null,"Features","Sankey Diagram","FC.NET05","Edge Bundling","Supports edge bundling to reduce visual clutter and improve readability.","No","Yes",null,null,null,null,{"$f":"IF(COUNTIFS($F$2:F535, F535, $P$2:P535, TRUE)>1,TRUE,FALSE)","v":false},{"$f":"OR(ISNUMBER(MATCH(Checklist[[#This Row],[Type]], $B$3:$B$22, 0)), Checklist[[#This Row],[Type]] = \"*\")","v":false}]
[null,null,null,"Features","Sankey Diagram","FC.NET07","Node Clustering","Supports grouping nodes into clusters based on data values or conditions.","No","Yes",null,null,null,null,{"$f":"IF(COUNTIFS($F$2:F536, F536, $P$2:P536, TRUE)>1,TRUE,FALSE)","v":false},{"$f":"OR(ISNUMBER(MATCH(Checklist[[#This Row],[Type]], $B$3:$B$22, 0)), Checklist[[#This Row],[Type]] = \"*\")","v":false}]
[null,null,null,"Features","Sankey Diagram","FC.NET08","Expand/Collapse","Supports expanding and collapsing nodes to show or hide branches.","No","Yes",null,null,null,null,{"$f":"IF(COUNTIFS($F$2:F537, F537, $P$2:P537, TRUE)>1,TRUE,FALSE)","v":false},{"$f":"OR(ISNUMBER(MATCH(Checklist[[#This Row],[Type]], $B$3:$B$22, 0)), Checklist[[#This Row],[Type]] = \"*\")","v":false}]
[null,null,null,"Features","Sankey Diagram","FC.NET09","Directional Arrows","Supports directional arrows to indicate the flow of relationships.","No","Yes",null,null,null,null,{"$f":"IF(COUNTIFS($F$2:F538, F538, $P$2:P538, TRUE)>1,TRUE,FALSE)","v":false},{"$f":"OR(ISNUMBER(MATCH(Checklist[[#This Row],[Type]], $B$3:$B$22, 0)), Checklist[[#This Row],[Type]] = \"*\")","v":false}]
[null,null,null,"Features","Sankey Diagram","FC.NET10","Jittering","Allows data points to be jittered to avoid overlap and improve visibility.","No","Yes",null,null,null,null,{"$f":"IF(COUNTIFS($F$2:F539, F539, $P$2:P539, TRUE)>1,TRUE,FALSE)","v":false},{"$f":"OR(ISNUMBER(MATCH(Checklist[[#This Row],[Type]], $B$3:$B$22, 0)), Checklist[[#This Row],[Type]] = \"*\")","v":false}]
[null,null,null,"Features","Sankey Diagram","FT.SANK01","Sorting","Supports sorting of categories or dimensions for better organization of data.","No","Yes",null,null,null,null,{"$f":"IF(COUNTIFS($F$2:F540, F540, $P$2:P540, TRUE)>1,TRUE,FALSE)","v":false},{"$f":"OR(ISNUMBER(MATCH(Checklist[[#This Row],[Type]], $B$3:$B$22, 0)), Checklist[[#This Row],[Type]] = \"*\")","v":false}]
[null,null,null,"Features","Sparklines","FC.NOAXIS01","Grid Lines","Supports grid lines to aid in reading data values.","No","Yes",null,null,null,null,{"$f":"IF(COUNTIFS($F$2:F541, F541, $P$2:P541, TRUE)>1,TRUE,FALSE)","v":false},{"$f":"OR(ISNUMBER(MATCH(Checklist[[#This Row],[Type]], $B$3:$B$22, 0)), Checklist[[#This Row],[Type]] = \"*\")","v":false}]
[null,null,null,"Features","Sparklines","FC.NOAXIS02","Reference Lines","Supports adding reference lines to highlight specific values or thresholds.","No","Yes",null,null,null,null,{"$f":"IF(COUNTIFS($F$2:F542, F542, $P$2:P542, TRUE)>1,TRUE,FALSE)","v":false},{"$f":"OR(ISNUMBER(MATCH(Checklist[[#This Row],[Type]], $B$3:$B$22, 0)), Checklist[[#This Row],[Type]] = \"*\")","v":false}]
[null,null,null,"Features","Sparklines","FT.SPARK01","Start, End, and High/Low Markers","Supports the display of start, end, and high/low data point markers for better context.","No","Yes",null,null,null,null,{"$f":"IF(COUNTIFS($F$2:F543, F543, $P$2:P543, TRUE)>1,TRUE,FALSE)","v":false},{"$f":"OR(ISNUMBER(MATCH(Checklist[[#This Row],[Type]], $B$3:$B$22, 0)), Checklist[[#This Row],[Type]] = \"*\")","v":false}]
[null,null,null,"Features","Sparklines","FT.SPARK02","Line Customization","Allows customization of the line style and color.","No","Yes",null,null,null,null,{"$f":"IF(COUNTIFS($F$2:F544, F544, $P$2:P544, TRUE)>1,TRUE,FALSE)","v":false},{"$f":"OR(ISNUMBER(MATCH(Checklist[[#This Row],[Type]], $B$3:$B$22, 0)), Checklist[[#This Row],[Type]] = \"*\")","v":false}]
[null,null,null,"Features","Sparklines","FT.SPARK03","Line Smoothing","Supports smoothing lines for better visualization (stepped, linear, etc.)","No","Yes",null,null,null,null,{"$f":"IF(COUNTIFS($F$2:F545, F545, $P$2:P545, TRUE)>1,TRUE,FALSE)","v":false},{"$f":"OR(ISNUMBER(MATCH(Checklist[[#This Row],[Type]], $B$3:$B$22, 0)), Checklist[[#This Row],[Type]] = \"*\")","v":false}]
[null,null,null,"Features","Sparklines","FT.SPARK04","Single Data Label","Supports displaying a dynamic data label that updates based on the latest data point.","No","Yes",null,null,null,null,{"$f":"IF(COUNTIFS($F$2:F546, F546, $P$2:P546, TRUE)>1,TRUE,FALSE)","v":false},{"$f":"OR(ISNUMBER(MATCH(Checklist[[#This Row],[Type]], $B$3:$B$22, 0)), Checklist[[#This Row],[Type]] = \"*\")","v":false}]
[null,null,null,"Features","Sparklines","FT.SPARK04.1","Interactive Data Label","Change data label based on user interaction with the sparkline.","No","Yes",null,null,null,null,{"$f":"IF(COUNTIFS($F$2:F547, F547, $P$2:P547, TRUE)>1,TRUE,FALSE)","v":false},{"$f":"OR(ISNUMBER(MATCH(Checklist[[#This Row],[Type]], $B$3:$B$22, 0)), Checklist[[#This Row],[Type]] = \"*\")","v":false}]
[null,null,null,"Features","Spiral Plot","FC.POLAR03","Grid Lines","Supports grid lines to aid in reading data values.","No","Yes",null,null,null,null,{"$f":"IF(COUNTIFS($F$2:F548, F548, $P$2:P548, TRUE)>1,TRUE,FALSE)","v":false},{"$f":"OR(ISNUMBER(MATCH(Checklist[[#This Row],[Type]], $B$3:$B$22, 0)), Checklist[[#This Row],[Type]] = \"*\")","v":false}]
[null,null,null,"Features","Spiral Plot","FC.POLAR05","Category Labels","Enables the display of labels for categories.","No","Yes",null,null,null,null,{"$f":"IF(COUNTIFS($F$2:F549, F549, $P$2:P549, TRUE)>1,TRUE,FALSE)","v":false},{"$f":"OR(ISNUMBER(MATCH(Checklist[[#This Row],[Type]], $B$3:$B$22, 0)), Checklist[[#This Row],[Type]] = \"*\")","v":false}]
[null,null,null,"Features","Spiral Plot","FC.POLAR06","Custom Grouping","Allows users to group data points or categories based on specific criteria to avoid displaying too much data.","No","Yes",null,null,null,null,{"$f":"IF(COUNTIFS($F$2:F550, F550, $P$2:P550, TRUE)>1,TRUE,FALSE)","v":false},{"$f":"OR(ISNUMBER(MATCH(Checklist[[#This Row],[Type]], $B$3:$B$22, 0)), Checklist[[#This Row],[Type]] = \"*\")","v":false}]
[null,null,null,"Features","Spiral Plot","FT.SPIRAL01","Start, End, and High/Low Markers","Supports the display of start, end, and high/low data point markers for better context.","No","Yes",null,null,null,null,{"$f":"IF(COUNTIFS($F$2:F551, F551, $P$2:P551, TRUE)>1,TRUE,FALSE)","v":false},{"$f":"OR(ISNUMBER(MATCH(Checklist[[#This Row],[Type]], $B$3:$B$22, 0)), Checklist[[#This Row],[Type]] = \"*\")","v":false}]
[null,null,null,"Features","Spiral Plot","FT.SPIRAL02","Stroke Customization","Allows customization of the stroke style and color.","No","Yes",null,null,null,null,{"$f":"IF(COUNTIFS($F$2:F552, F552, $P$2:P552, TRUE)>1,TRUE,FALSE)","v":false},{"$f":"OR(ISNUMBER(MATCH(Checklist[[#This Row],[Type]], $B$3:$B$22, 0)), Checklist[[#This Row],[Type]] = \"*\")","v":false}]
[null,null,null,"Features","Stream Chart","FC.CART01","Axis Titles","Allows users to add titles to the X and Y axes for better context.","No","Yes",null,null,null,null,{"$f":"IF(COUNTIFS($F$2:F553, F553, $P$2:P553, TRUE)>1,TRUE,FALSE)","v":false},{"$f":"OR(ISNUMBER(MATCH(Checklist[[#This Row],[Type]], $B$3:$B$22, 0)), Checklist[[#This Row],[Type]] = \"*\")","v":false}]
[null,null,null,"Features","Stream Chart","FC.CART02","Axis Customization","Allows customization of the axis labels, tick marks, and scales.","No","Yes",null,null,null,null,{"$f":"IF(COUNTIFS($F$2:F554, F554, $P$2:P554, TRUE)>1,TRUE,FALSE)","v":false},{"$f":"OR(ISNUMBER(MATCH(Checklist[[#This Row],[Type]], $B$3:$B$22, 0)), Checklist[[#This Row],[Type]] = \"*\")","v":false}]
[null,null,null,"Features","Stream Chart","FC.CART04","Grid Lines","Supports grid lines to aid in reading data values.","No","Yes",null,null,null,null,{"$f":"IF(COUNTIFS($F$2:F555, F555, $P$2:P555, TRUE)>1,TRUE,FALSE)","v":false},{"$f":"OR(ISNUMBER(MATCH(Checklist[[#This Row],[Type]], $B$3:$B$22, 0)), Checklist[[#This Row],[Type]] = \"*\")","v":false}]
[null,null,null,"Features","Stream Chart","FC.CART05","Reference Lines","Supports adding reference lines to highlight specific values or thresholds.","No","Yes",null,null,null,null,{"$f":"IF(COUNTIFS($F$2:F556, F556, $P$2:P556, TRUE)>1,TRUE,FALSE)","v":false},{"$f":"OR(ISNUMBER(MATCH(Checklist[[#This Row],[Type]], $B$3:$B$22, 0)), Checklist[[#This Row],[Type]] = \"*\")","v":false}]
[null,null,null,"Features","Stream Chart","FC.CART07","Data Point Markers","Allows users to conditionally format data point markers.","No","Yes",null,null,null,null,{"$f":"IF(COUNTIFS($F$2:F557, F557, $P$2:P557, TRUE)>1,TRUE,FALSE)","v":false},{"$f":"OR(ISNUMBER(MATCH(Checklist[[#This Row],[Type]], $B$3:$B$22, 0)), Checklist[[#This Row],[Type]] = \"*\")","v":false}]
[null,null,null,"Features","Stream Chart","FC.CART08","Trend Lines","Supports adding trend lines to visualize data trends.","No","Yes",null,null,null,null,{"$f":"IF(COUNTIFS($F$2:F558, F558, $P$2:P558, TRUE)>1,TRUE,FALSE)","v":false},{"$f":"OR(ISNUMBER(MATCH(Checklist[[#This Row],[Type]], $B$3:$B$22, 0)), Checklist[[#This Row],[Type]] = \"*\")","v":false}]
[null,null,null,"Features","Stream Chart","FC.CART09","Pan & Zoom","Supports panning and zooming for better exploration of data.","No","Yes",null,null,null,null,{"$f":"IF(COUNTIFS($F$2:F559, F559, $P$2:P559, TRUE)>1,TRUE,FALSE)","v":false},{"$f":"OR(ISNUMBER(MATCH(Checklist[[#This Row],[Type]], $B$3:$B$22, 0)), Checklist[[#This Row],[Type]] = \"*\")","v":false}]
[null,null,null,"Features","Stream Chart","FC.CART10","Dynamic Sorting","Supports sorting data points based on specific columns or measures.","No","Yes",null,null,null,null,{"$f":"IF(COUNTIFS($F$2:F560, F560, $P$2:P560, TRUE)>1,TRUE,FALSE)","v":false},{"$f":"OR(ISNUMBER(MATCH(Checklist[[#This Row],[Type]], $B$3:$B$22, 0)), Checklist[[#This Row],[Type]] = \"*\")","v":false}]
[null,null,null,"Features","Stream Chart","FC.CART11","Custom Annotations","Allows users to add custom annotations based on data or conditions.","No","Yes",null,null,null,null,{"$f":"IF(COUNTIFS($F$2:F561, F561, $P$2:P561, TRUE)>1,TRUE,FALSE)","v":false},{"$f":"OR(ISNUMBER(MATCH(Checklist[[#This Row],[Type]], $B$3:$B$22, 0)), Checklist[[#This Row],[Type]] = \"*\")","v":false}]
[null,null,null,"Features","Stream Chart","FT.STREAM01","Absolute or Percentage Values","Allows users to switch between absolute and percentage values for better comparison.","No","Yes",null,null,null,null,{"$f":"IF(COUNTIFS($F$2:F562, F562, $P$2:P562, TRUE)>1,TRUE,FALSE)","v":false},{"$f":"OR(ISNUMBER(MATCH(Checklist[[#This Row],[Type]], $B$3:$B$22, 0)), Checklist[[#This Row],[Type]] = \"*\")","v":false}]
[null,null,null,"Features","Stream Chart","FT.STREAM02","Stacking Sorting","Supports sorting of stacked areas.","No","Yes",null,null,null,null,{"$f":"IF(COUNTIFS($F$2:F563, F563, $P$2:P563, TRUE)>1,TRUE,FALSE)","v":false},{"$f":"OR(ISNUMBER(MATCH(Checklist[[#This Row],[Type]], $B$3:$B$22, 0)), Checklist[[#This Row],[Type]] = \"*\")","v":false}]
[null,null,null,"Features","Stream Chart","FT.STREAM03","Smooth Curves","Supports smooth curves for better visualization of trends.","No","Yes",null,null,null,null,{"$f":"IF(COUNTIFS($F$2:F564, F564, $P$2:P564, TRUE)>1,TRUE,FALSE)","v":false},{"$f":"OR(ISNUMBER(MATCH(Checklist[[#This Row],[Type]], $B$3:$B$22, 0)), Checklist[[#This Row],[Type]] = \"*\")","v":false}]
[null,null,null,"Features","Stream Chart","FT.STREAM04","Stroke Customization","Allows customization of the stroke for better visual distinction.","No","Yes",null,null,null,null,{"$f":"IF(COUNTIFS($F$2:F565, F565, $P$2:P565, TRUE)>1,TRUE,FALSE)","v":false},{"$f":"OR(ISNUMBER(MATCH(Checklist[[#This Row],[Type]], $B$3:$B$22, 0)), Checklist[[#This Row],[Type]] = \"*\")","v":false}]
[null,null,null,"Features","Stream Chart","FT.STREAM05","Category Labels","Enables the display of labels for categories.","No","Yes",null,null,null,null,{"$f":"IF(COUNTIFS($F$2:F566, F566, $P$2:P566, TRUE)>1,TRUE,FALSE)","v":false},{"$f":"OR(ISNUMBER(MATCH(Checklist[[#This Row],[Type]], $B$3:$B$22, 0)), Checklist[[#This Row],[Type]] = \"*\")","v":false}]
[null,null,null,"Features","Sunburst Chart","FC.HIER05","Node Clustering","Supports grouping nodes into clusters based on data values or conditions.","No","Yes",null,null,null,null,{"$f":"IF(COUNTIFS($F$2:F567, F567, $P$2:P567, TRUE)>1,TRUE,FALSE)","v":false},{"$f":"OR(ISNUMBER(MATCH(Checklist[[#This Row],[Type]], $B$3:$B$22, 0)), Checklist[[#This Row],[Type]] = \"*\")","v":false}]
[null,null,null,"Features","Sunburst Chart","FC.HIER06","Expand/Collapse","Supports expanding and collapsing nodes to show or hide branches.","No","Yes",null,null,null,null,{"$f":"IF(COUNTIFS($F$2:F568, F568, $P$2:P568, TRUE)>1,TRUE,FALSE)","v":false},{"$f":"OR(ISNUMBER(MATCH(Checklist[[#This Row],[Type]], $B$3:$B$22, 0)), Checklist[[#This Row],[Type]] = \"*\")","v":false}]
[null,null,null,"Features","Table","FC.TABLE01","Column Sorting","Allows users to sort columns based on specific criteria.","No","Yes",null,null,null,null,{"$f":"IF(COUNTIFS($F$2:F569, F569, $P$2:P569, TRUE)>1,TRUE,FALSE)","v":false},{"$f":"OR(ISNUMBER(MATCH(Checklist[[#This Row],[Type]], $B$3:$B$22, 0)), Checklist[[#This Row],[Type]] = \"*\")","v":false}]
[null,null,null,"Features","Table","FC.TABLE02","Column Grouping","Allows users to group columns.","No","Yes",null,null,null,null,{"$f":"IF(COUNTIFS($F$2:F570, F570, $P$2:P570, TRUE)>1,TRUE,FALSE)","v":false},{"$f":"OR(ISNUMBER(MATCH(Checklist[[#This Row],[Type]], $B$3:$B$22, 0)), Checklist[[#This Row],[Type]] = \"*\")","v":false}]
[null,null,null,"Features","Table","FC.TABLE03","Row Totals","Supports displaying totals for rows.","No","Yes",null,null,null,null,{"$f":"IF(COUNTIFS($F$2:F571, F571, $P$2:P571, TRUE)>1,TRUE,FALSE)","v":false},{"$f":"OR(ISNUMBER(MATCH(Checklist[[#This Row],[Type]], $B$3:$B$22, 0)), Checklist[[#This Row],[Type]] = \"*\")","v":false}]
[null,null,null,"Features","Table","FC.TABLE04","Row Subtotals","Supports displaying subtotals for rows.","No","Yes",null,null,null,null,{"$f":"IF(COUNTIFS($F$2:F572, F572, $P$2:P572, TRUE)>1,TRUE,FALSE)","v":false},{"$f":"OR(ISNUMBER(MATCH(Checklist[[#This Row],[Type]], $B$3:$B$22, 0)), Checklist[[#This Row],[Type]] = \"*\")","v":false}]
[null,null,null,"Features","Table","FC.TABLE05","Row Grouping","Allows users to group rows based on specific criteria.","No","Yes",null,null,null,null,{"$f":"IF(COUNTIFS($F$2:F573, F573, $P$2:P573, TRUE)>1,TRUE,FALSE)","v":false},{"$f":"OR(ISNUMBER(MATCH(Checklist[[#This Row],[Type]], $B$3:$B$22, 0)), Checklist[[#This Row],[Type]] = \"*\")","v":false}]
[null,null,null,"Features","Table","FT.TABLE01","Row-Level Formatting","Allows for formatting individual rows based on certain criteria for better readability.","No","Yes",null,null,null,null,{"$f":"IF(COUNTIFS($F$2:F574, F574, $P$2:P574, TRUE)>1,TRUE,FALSE)","v":false},{"$f":"OR(ISNUMBER(MATCH(Checklist[[#This Row],[Type]], $B$3:$B$22, 0)), Checklist[[#This Row],[Type]] = \"*\")","v":false}]
[null,null,null,"Features","Table","FT.TABLE02","Paging","Supports pagination to navigate through large datasets efficiently.","No","Yes",null,null,null,null,{"$f":"IF(COUNTIFS($F$2:F575, F575, $P$2:P575, TRUE)>1,TRUE,FALSE)","v":false},{"$f":"OR(ISNUMBER(MATCH(Checklist[[#This Row],[Type]], $B$3:$B$22, 0)), Checklist[[#This Row],[Type]] = \"*\")","v":false}]
[null,null,null,"Features","Timeline","FC.TIME06","Custom Annotations","Allows users to add custom annotations based on data or conditions.","No","Yes",null,null,null,null,{"$f":"IF(COUNTIFS($F$2:F576, F576, $P$2:P576, TRUE)>1,TRUE,FALSE)","v":false},{"$f":"OR(ISNUMBER(MATCH(Checklist[[#This Row],[Type]], $B$3:$B$22, 0)), Checklist[[#This Row],[Type]] = \"*\")","v":false}]
[null,null,null,"Features","Timeline","FT.TIME01","Event Markers","Allows users to mark specific events or milestones on the timeline for better visualization.","No","Yes",null,null,null,null,{"$f":"IF(COUNTIFS($F$2:F577, F577, $P$2:P577, TRUE)>1,TRUE,FALSE)","v":false},{"$f":"OR(ISNUMBER(MATCH(Checklist[[#This Row],[Type]], $B$3:$B$22, 0)), Checklist[[#This Row],[Type]] = \"*\")","v":false}]
[null,null,null,"Features","Timeline","FT.TIME02","Time Range Selection","Enables users to select a specific range of time to focus on within the timeline.","No","Yes",null,null,null,null,{"$f":"IF(COUNTIFS($F$2:F578, F578, $P$2:P578, TRUE)>1,TRUE,FALSE)","v":false},{"$f":"OR(ISNUMBER(MATCH(Checklist[[#This Row],[Type]], $B$3:$B$22, 0)), Checklist[[#This Row],[Type]] = \"*\")","v":false}]
[null,null,null,"Features","Timetable","FC.TIME06","Custom Annotations","Allows users to add custom annotations based on data or conditions.","No","Yes",null,null,null,null,{"$f":"IF(COUNTIFS($F$2:F579, F579, $P$2:P579, TRUE)>1,TRUE,FALSE)","v":false},{"$f":"OR(ISNUMBER(MATCH(Checklist[[#This Row],[Type]], $B$3:$B$22, 0)), Checklist[[#This Row],[Type]] = \"*\")","v":false}]
[null,null,null,"Features","Tornado Diagram","FC.CART01","Axis Titles","Allows users to add titles to the X and Y axes for better context.","No","Yes",null,null,null,null,{"$f":"IF(COUNTIFS($F$2:F580, F580, $P$2:P580, TRUE)>1,TRUE,FALSE)","v":false},{"$f":"OR(ISNUMBER(MATCH(Checklist[[#This Row],[Type]], $B$3:$B$22, 0)), Checklist[[#This Row],[Type]] = \"*\")","v":false}]
[null,null,null,"Features","Tornado Diagram","FC.CART02","Axis Customization","Allows customization of the axis labels, tick marks, and scales.","No","Yes",null,null,null,null,{"$f":"IF(COUNTIFS($F$2:F581, F581, $P$2:P581, TRUE)>1,TRUE,FALSE)","v":false},{"$f":"OR(ISNUMBER(MATCH(Checklist[[#This Row],[Type]], $B$3:$B$22, 0)), Checklist[[#This Row],[Type]] = \"*\")","v":false}]
[null,null,null,"Features","Tornado Diagram","FC.CART04","Grid Lines","Supports grid lines to aid in reading data values.","No","Yes",null,null,null,null,{"$f":"IF(COUNTIFS($F$2:F582, F582, $P$2:P582, TRUE)>1,TRUE,FALSE)","v":false},{"$f":"OR(ISNUMBER(MATCH(Checklist[[#This Row],[Type]], $B$3:$B$22, 0)), Checklist[[#This Row],[Type]] = \"*\")","v":false}]
[null,null,null,"Features","Tornado Diagram","FC.CART05","Reference Lines","Supports adding reference lines to highlight specific values or thresholds.","No","Yes",null,null,null,null,{"$f":"IF(COUNTIFS($F$2:F583, F583, $P$2:P583, TRUE)>1,TRUE,FALSE)","v":false},{"$f":"OR(ISNUMBER(MATCH(Checklist[[#This Row],[Type]], $B$3:$B$22, 0)), Checklist[[#This Row],[Type]] = \"*\")","v":false}]
[null,null,null,"Features","Tornado Diagram","FC.CART07","Data Point Markers","Allows users to conditionally format data point markers.","No","Yes",null,null,null,null,{"$f":"IF(COUNTIFS($F$2:F584, F584, $P$2:P584, TRUE)>1,TRUE,FALSE)","v":false},{"$f":"OR(ISNUMBER(MATCH(Checklist[[#This Row],[Type]], $B$3:$B$22, 0)), Checklist[[#This Row],[Type]] = \"*\")","v":false}]
[null,null,null,"Features","Tornado Diagram","FT.TORN01","Multiple Orientations","Supports both horizontal and vertical orientations.","No","Yes",null,null,null,null,{"$f":"IF(COUNTIFS($F$2:F585, F585, $P$2:P585, TRUE)>1,TRUE,FALSE)","v":false},{"$f":"OR(ISNUMBER(MATCH(Checklist[[#This Row],[Type]], $B$3:$B$22, 0)), Checklist[[#This Row],[Type]] = \"*\")","v":false}]
[null,null,null,"Features","Tornado Diagram","FT.TORN02","Segment Labels","Allows the display of labels on segments.","No","Yes",null,null,null,null,{"$f":"IF(COUNTIFS($F$2:F586, F586, $P$2:P586, TRUE)>1,TRUE,FALSE)","v":false},{"$f":"OR(ISNUMBER(MATCH(Checklist[[#This Row],[Type]], $B$3:$B$22, 0)), Checklist[[#This Row],[Type]] = \"*\")","v":false}]
[null,null,null,"Features","Tree Diagram","FC.HIER01","Node Customization","Allows customization of node size, color, and shape.","No","Yes",null,null,null,null,{"$f":"IF(COUNTIFS($F$2:F587, F587, $P$2:P587, TRUE)>1,TRUE,FALSE)","v":false},{"$f":"OR(ISNUMBER(MATCH(Checklist[[#This Row],[Type]], $B$3:$B$22, 0)), Checklist[[#This Row],[Type]] = \"*\")","v":false}]
[null,null,null,"Features","Tree Diagram","FC.HIER01.1","Dynamic Node Customization","Allows customization of node size, color, and shape based on data.","No","Yes",null,null,null,null,{"$f":"IF(COUNTIFS($F$2:F588, F588, $P$2:P588, TRUE)>1,TRUE,FALSE)","v":false},{"$f":"OR(ISNUMBER(MATCH(Checklist[[#This Row],[Type]], $B$3:$B$22, 0)), Checklist[[#This Row],[Type]] = \"*\")","v":false}]
[null,null,null,"Features","Tree Diagram","FC.HIER04","Node Positioning","Allows users to customize node positioning for better layout control.","No","Yes",null,null,null,null,{"$f":"IF(COUNTIFS($F$2:F589, F589, $P$2:P589, TRUE)>1,TRUE,FALSE)","v":false},{"$f":"OR(ISNUMBER(MATCH(Checklist[[#This Row],[Type]], $B$3:$B$22, 0)), Checklist[[#This Row],[Type]] = \"*\")","v":false}]
[null,null,null,"Features","Tree Diagram","FC.HIER05","Node Clustering","Supports grouping nodes into clusters based on data values or conditions.","No","Yes",null,null,null,null,{"$f":"IF(COUNTIFS($F$2:F590, F590, $P$2:P590, TRUE)>1,TRUE,FALSE)","v":false},{"$f":"OR(ISNUMBER(MATCH(Checklist[[#This Row],[Type]], $B$3:$B$22, 0)), Checklist[[#This Row],[Type]] = \"*\")","v":false}]
[null,null,null,"Features","Tree Diagram","FC.HIER06","Expand/Collapse","Supports expanding and collapsing nodes to show or hide branches.","No","Yes",null,null,null,null,{"$f":"IF(COUNTIFS($F$2:F591, F591, $P$2:P591, TRUE)>1,TRUE,FALSE)","v":false},{"$f":"OR(ISNUMBER(MATCH(Checklist[[#This Row],[Type]], $B$3:$B$22, 0)), Checklist[[#This Row],[Type]] = \"*\")","v":false}]
[null,null,null,"Features","Tree Diagram","FC.HIER07","Edge Customization","Allows customization of edge thickness, color, and style.","No","Yes",null,null,null,null,{"$f":"IF(COUNTIFS($F$2:F592, F592, $P$2:P592, TRUE)>1,TRUE,FALSE)","v":false},{"$f":"OR(ISNUMBER(MATCH(Checklist[[#This Row],[Type]], $B$3:$B$22, 0)), Checklist[[#This Row],[Type]] = \"*\")","v":false}]
[null,null,null,"Features","Tree Diagram","FC.HIER07.1","Dynamic Edge Customization","Allows customization of edge thickness, color, and style based on data.","No","Yes",null,null,null,null,{"$f":"IF(COUNTIFS($F$2:F593, F593, $P$2:P593, TRUE)>1,TRUE,FALSE)","v":false},{"$f":"OR(ISNUMBER(MATCH(Checklist[[#This Row],[Type]], $B$3:$B$22, 0)), Checklist[[#This Row],[Type]] = \"*\")","v":false}]
[null,null,null,"Features","Tree Diagram","FC.HIER08","Edge Labels","Enables the display of labels for edges to provide additional context.","No","Yes",null,null,null,null,{"$f":"IF(COUNTIFS($F$2:F594, F594, $P$2:P594, TRUE)>1,TRUE,FALSE)","v":false},{"$f":"OR(ISNUMBER(MATCH(Checklist[[#This Row],[Type]], $B$3:$B$22, 0)), Checklist[[#This Row],[Type]] = \"*\")","v":false}]
[null,null,null,"Features","Tree Diagram","FC.HIER09","Breadcrumb Navigation","Supports breadcrumbs to navigate through hierarchical levels.","No","Yes",null,null,null,null,{"$f":"IF(COUNTIFS($F$2:F595, F595, $P$2:P595, TRUE)>1,TRUE,FALSE)","v":false},{"$f":"OR(ISNUMBER(MATCH(Checklist[[#This Row],[Type]], $B$3:$B$22, 0)), Checklist[[#This Row],[Type]] = \"*\")","v":false}]
[null,null,null,"Features","Treemap","FC.PROP03","Category Labels","Enables the display of labels for categories.","No","Yes",null,null,null,null,{"$f":"IF(COUNTIFS($F$2:F596, F596, $P$2:P596, TRUE)>1,TRUE,FALSE)","v":false},{"$f":"OR(ISNUMBER(MATCH(Checklist[[#This Row],[Type]], $B$3:$B$22, 0)), Checklist[[#This Row],[Type]] = \"*\")","v":false}]
[null,null,null,"Features","Treemap","FC.PROP04","Borders Customization","Allows customization of borders for better visual distinction.","No","Yes",null,null,null,null,{"$f":"IF(COUNTIFS($F$2:F597, F597, $P$2:P597, TRUE)>1,TRUE,FALSE)","v":false},{"$f":"OR(ISNUMBER(MATCH(Checklist[[#This Row],[Type]], $B$3:$B$22, 0)), Checklist[[#This Row],[Type]] = \"*\")","v":false}]
[null,null,null,"Features","Treemap","FC.PROP05","Pan & Zoom","Supports panning and zooming for better exploration of data.","No","Yes",null,null,null,null,{"$f":"IF(COUNTIFS($F$2:F598, F598, $P$2:P598, TRUE)>1,TRUE,FALSE)","v":false},{"$f":"OR(ISNUMBER(MATCH(Checklist[[#This Row],[Type]], $B$3:$B$22, 0)), Checklist[[#This Row],[Type]] = \"*\")","v":false}]
[null,null,null,"Features","Treemap","FC.PROP06","Dynamic Sorting","Supports sorting data points based on specific columns or measures.","No","Yes",null,null,null,null,{"$f":"IF(COUNTIFS($F$2:F599, F599, $P$2:P599, TRUE)>1,TRUE,FALSE)","v":false},{"$f":"OR(ISNUMBER(MATCH(Checklist[[#This Row],[Type]], $B$3:$B$22, 0)), Checklist[[#This Row],[Type]] = \"*\")","v":false}]
[null,null,null,"Features","Treemap","FC.PROP07","Multiple Selection with Lasso","Allows users to select multiple data points by drawing a lasso around them.","No","Yes",null,null,null,null,{"$f":"IF(COUNTIFS($F$2:F600, F600, $P$2:P600, TRUE)>1,TRUE,FALSE)","v":false},{"$f":"OR(ISNUMBER(MATCH(Checklist[[#This Row],[Type]], $B$3:$B$22, 0)), Checklist[[#This Row],[Type]] = \"*\")","v":false}]
[null,null,null,"Features","Treemap","FT.TREEM01","Hierarchical Labels","Supports displaying hierarchical labels for better understanding of data structure.","No","Yes",null,null,null,null,{"$f":"IF(COUNTIFS($F$2:F601, F601, $P$2:P601, TRUE)>1,TRUE,FALSE)","v":false},{"$f":"OR(ISNUMBER(MATCH(Checklist[[#This Row],[Type]], $B$3:$B$22, 0)), Checklist[[#This Row],[Type]] = \"*\")","v":false}]
[null,null,null,"Features","Venn Diagram","FT.VENN01","Transparency","Supports transparency for better visualization of overlapping areas.","No","Yes",null,null,null,null,{"$f":"IF(COUNTIFS($F$2:F602, F602, $P$2:P602, TRUE)>1,TRUE,FALSE)","v":false},{"$f":"OR(ISNUMBER(MATCH(Checklist[[#This Row],[Type]], $B$3:$B$22, 0)), Checklist[[#This Row],[Type]] = \"*\")","v":false}]
[null,null,null,"Features","Venn Diagram","FT.VENN02","Custom Sorting","Allows users to customize the sorting of sets for better comparison.","No","Yes",null,null,null,null,{"$f":"IF(COUNTIFS($F$2:F603, F603, $P$2:P603, TRUE)>1,TRUE,FALSE)","v":false},{"$f":"OR(ISNUMBER(MATCH(Checklist[[#This Row],[Type]], $B$3:$B$22, 0)), Checklist[[#This Row],[Type]] = \"*\")","v":false}]
[null,null,null,"Features","Violin Plot","FC.CART01","Axis Titles","Allows users to add titles to the X and Y axes for better context.","No","Yes",null,null,null,null,{"$f":"IF(COUNTIFS($F$2:F604, F604, $P$2:P604, TRUE)>1,TRUE,FALSE)","v":false},{"$f":"OR(ISNUMBER(MATCH(Checklist[[#This Row],[Type]], $B$3:$B$22, 0)), Checklist[[#This Row],[Type]] = \"*\")","v":false}]
[null,null,null,"Features","Violin Plot","FC.CART02","Axis Customization","Allows customization of the axis labels, tick marks, and scales.","No","Yes",null,null,null,null,{"$f":"IF(COUNTIFS($F$2:F605, F605, $P$2:P605, TRUE)>1,TRUE,FALSE)","v":false},{"$f":"OR(ISNUMBER(MATCH(Checklist[[#This Row],[Type]], $B$3:$B$22, 0)), Checklist[[#This Row],[Type]] = \"*\")","v":false}]
[null,null,null,"Features","Violin Plot","FC.CART04","Grid Lines","Supports grid lines to aid in reading data values.","No","Yes",null,null,null,null,{"$f":"IF(COUNTIFS($F$2:F606, F606, $P$2:P606, TRUE)>1,TRUE,FALSE)","v":false},{"$f":"OR(ISNUMBER(MATCH(Checklist[[#This Row],[Type]], $B$3:$B$22, 0)), Checklist[[#This Row],[Type]] = \"*\")","v":false}]
[null,null,null,"Features","Violin Plot","FC.CART05","Reference Lines","Supports adding reference lines to highlight specific values or thresholds.","No","Yes",null,null,null,null,{"$f":"IF(COUNTIFS($F$2:F607, F607, $P$2:P607, TRUE)>1,TRUE,FALSE)","v":false},{"$f":"OR(ISNUMBER(MATCH(Checklist[[#This Row],[Type]], $B$3:$B$22, 0)), Checklist[[#This Row],[Type]] = \"*\")","v":false}]
[null,null,null,"Features","Violin Plot","FC.CART07","Data Point Markers","Allows users to conditionally format data point markers.","No","Yes",null,null,null,null,{"$f":"IF(COUNTIFS($F$2:F608, F608, $P$2:P608, TRUE)>1,TRUE,FALSE)","v":false},{"$f":"OR(ISNUMBER(MATCH(Checklist[[#This Row],[Type]], $B$3:$B$22, 0)), Checklist[[#This Row],[Type]] = \"*\")","v":false}]
[null,null,null,"Features","Violin Plot","FC.CART08","Trend Lines","Supports adding trend lines to visualize data trends.","No","Yes",null,null,null,null,{"$f":"IF(COUNTIFS($F$2:F609, F609, $P$2:P609, TRUE)>1,TRUE,FALSE)","v":false},{"$f":"OR(ISNUMBER(MATCH(Checklist[[#This Row],[Type]], $B$3:$B$22, 0)), Checklist[[#This Row],[Type]] = \"*\")","v":false}]
[null,null,null,"Features","Violin Plot","FC.CART09","Pan & Zoom","Supports panning and zooming for better exploration of data.","No","Yes",null,null,null,null,{"$f":"IF(COUNTIFS($F$2:F610, F610, $P$2:P610, TRUE)>1,TRUE,FALSE)","v":false},{"$f":"OR(ISNUMBER(MATCH(Checklist[[#This Row],[Type]], $B$3:$B$22, 0)), Checklist[[#This Row],[Type]] = \"*\")","v":false}]
[null,null,null,"Features","Violin Plot","FC.CART10","Dynamic Sorting","Supports sorting data points based on specific columns or measures.","No","Yes",null,null,null,null,{"$f":"IF(COUNTIFS($F$2:F611, F611, $P$2:P611, TRUE)>1,TRUE,FALSE)","v":false},{"$f":"OR(ISNUMBER(MATCH(Checklist[[#This Row],[Type]], $B$3:$B$22, 0)), Checklist[[#This Row],[Type]] = \"*\")","v":false}]
[null,null,null,"Features","Violin Plot","FC.CART11","Custom Annotations","Allows users to add custom annotations based on data or conditions.","No","Yes",null,null,null,null,{"$f":"IF(COUNTIFS($F$2:F612, F612, $P$2:P612, TRUE)>1,TRUE,FALSE)","v":false},{"$f":"OR(ISNUMBER(MATCH(Checklist[[#This Row],[Type]], $B$3:$B$22, 0)), Checklist[[#This Row],[Type]] = \"*\")","v":false}]
[null,null,null,"Features","Violin Plot","FT.VIOL01","Multiple Orientations","Supports both horizontal and vertical orientations.","No","Yes",null,null,null,null,{"$f":"IF(COUNTIFS($F$2:F613, F613, $P$2:P613, TRUE)>1,TRUE,FALSE)","v":false},{"$f":"OR(ISNUMBER(MATCH(Checklist[[#This Row],[Type]], $B$3:$B$22, 0)), Checklist[[#This Row],[Type]] = \"*\")","v":false}]
[null,null,null,"Features","Violin Plot","FT.VIOL02","Jittering","Allows data points to be jittered to avoid overlap and improve visibility.","No","Yes",null,null,null,null,{"$f":"IF(COUNTIFS($F$2:F614, F614, $P$2:P614, TRUE)>1,TRUE,FALSE)","v":false},{"$f":"OR(ISNUMBER(MATCH(Checklist[[#This Row],[Type]], $B$3:$B$22, 0)), Checklist[[#This Row],[Type]] = \"*\")","v":false}]
[null,null,null,"Features","Visual Builder","FT.VBUILD01","Chart Features","Supports a wide range of chart features and customization options, like standard visuals.","Terrible","Poor","Average","Good","Excellent",null,{"$f":"IF(COUNTIFS($F$2:F615, F615, $P$2:P615, TRUE)>1,TRUE,FALSE)","v":false},{"$f":"OR(ISNUMBER(MATCH(Checklist[[#This Row],[Type]], $B$3:$B$22, 0)), Checklist[[#This Row],[Type]] = \"*\")","v":false}]
[null,null,null,"Features","Visual Builder","FT.VBUILD02","Switch On-the-Fly","Allows users to switch between different visual types on-the-fly.","No","Yes",null,null,null,null,{"$f":"IF(COUNTIFS($F$2:F616, F616, $P$2:P616, TRUE)>1,TRUE,FALSE)","v":false},{"$f":"OR(ISNUMBER(MATCH(Checklist[[#This Row],[Type]], $B$3:$B$22, 0)), Checklist[[#This Row],[Type]] = \"*\")","v":false}]
[null,null,null,"Features","Visual Builder","FT.VBUILD03","Template Support","Includes support for saving and reusing visual templates.","No","Yes",null,null,null,null,{"$f":"IF(COUNTIFS($F$2:F617, F617, $P$2:P617, TRUE)>1,TRUE,FALSE)","v":false},{"$f":"OR(ISNUMBER(MATCH(Checklist[[#This Row],[Type]], $B$3:$B$22, 0)), Checklist[[#This Row],[Type]] = \"*\")","v":false}]
[null,null,null,"Features","Visual Builder","FT.VBUILD04","Sharing","Allows sharing custom visuals with others.","No","Yes",null,null,null,null,{"$f":"IF(COUNTIFS($F$2:F618, F618, $P$2:P618, TRUE)>1,TRUE,FALSE)","v":false},{"$f":"OR(ISNUMBER(MATCH(Checklist[[#This Row],[Type]], $B$3:$B$22, 0)), Checklist[[#This Row],[Type]] = \"*\")","v":false}]
[null,null,null,"Features","Voronoi Diagram","FC.CART01","Axis Titles","Allows users to add titles to the X and Y axes for better context.","No","Yes",null,null,null,null,{"$f":"IF(COUNTIFS($F$2:F619, F619, $P$2:P619, TRUE)>1,TRUE,FALSE)","v":false},{"$f":"OR(ISNUMBER(MATCH(Checklist[[#This Row],[Type]], $B$3:$B$22, 0)), Checklist[[#This Row],[Type]] = \"*\")","v":false}]
[null,null,null,"Features","Voronoi Diagram","FC.CART02","Axis Customization","Allows customization of the axis labels, tick marks, and scales.","No","Yes",null,null,null,null,{"$f":"IF(COUNTIFS($F$2:F620, F620, $P$2:P620, TRUE)>1,TRUE,FALSE)","v":false},{"$f":"OR(ISNUMBER(MATCH(Checklist[[#This Row],[Type]], $B$3:$B$22, 0)), Checklist[[#This Row],[Type]] = \"*\")","v":false}]
[null,null,null,"Features","Voronoi Diagram","FC.CART04","Grid Lines","Supports grid lines to aid in reading data values.","No","Yes",null,null,null,null,{"$f":"IF(COUNTIFS($F$2:F621, F621, $P$2:P621, TRUE)>1,TRUE,FALSE)","v":false},{"$f":"OR(ISNUMBER(MATCH(Checklist[[#This Row],[Type]], $B$3:$B$22, 0)), Checklist[[#This Row],[Type]] = \"*\")","v":false}]
[null,null,null,"Features","Voronoi Diagram","FC.CART05","Reference Lines","Supports adding reference lines to highlight specific values or thresholds.","No","Yes",null,null,null,null,{"$f":"IF(COUNTIFS($F$2:F622, F622, $P$2:P622, TRUE)>1,TRUE,FALSE)","v":false},{"$f":"OR(ISNUMBER(MATCH(Checklist[[#This Row],[Type]], $B$3:$B$22, 0)), Checklist[[#This Row],[Type]] = \"*\")","v":false}]
[null,null,null,"Features","Voronoi Diagram","FC.CART07","Data Point Markers","Allows users to conditionally format data point markers.","No","Yes",null,null,null,null,{"$f":"IF(COUNTIFS($F$2:F623, F623, $P$2:P623, TRUE)>1,TRUE,FALSE)","v":false},{"$f":"OR(ISNUMBER(MATCH(Checklist[[#This Row],[Type]], $B$3:$B$22, 0)), Checklist[[#This Row],[Type]] = \"*\")","v":false}]
[null,null,null,"Features","Voronoi Diagram","FC.CART08","Trend Lines","Supports adding trend lines to visualize data trends.","No","Yes",null,null,null,null,{"$f":"IF(COUNTIFS($F$2:F624, F624, $P$2:P624, TRUE)>1,TRUE,FALSE)","v":false},{"$f":"OR(ISNUMBER(MATCH(Checklist[[#This Row],[Type]], $B$3:$B$22, 0)), Checklist[[#This Row],[Type]] = \"*\")","v":false}]
[null,null,null,"Features","Voronoi Diagram","FC.CART09","Pan & Zoom","Supports panning and zooming for better exploration of data.","No","Yes",null,null,null,null,{"$f":"IF(COUNTIFS($F$2:F625, F625, $P$2:P625, TRUE)>1,TRUE,FALSE)","v":false},{"$f":"OR(ISNUMBER(MATCH(Checklist[[#This Row],[Type]], $B$3:$B$22, 0)), Checklist[[#This Row],[Type]] = \"*\")","v":false}]
[null,null,null,"Features","Voronoi Diagram","FC.CART11","Custom Annotations","Allows users to add custom annotations based on data or conditions.","No","Yes",null,null,null,null,{"$f":"IF(COUNTIFS($F$2:F626, F626, $P$2:P626, TRUE)>1,TRUE,FALSE)","v":false},{"$f":"OR(ISNUMBER(MATCH(Checklist[[#This Row],[Type]], $B$3:$B$22, 0)), Checklist[[#This Row],[Type]] = \"*\")","v":false}]
[null,null,null,"Features","Voronoi Diagram","FT.VOR01","Distance Measurement","Enables the display of distance measurements between points and their corresponding Voronoi cells.","No","Yes",null,null,null,null,{"$f":"IF(COUNTIFS($F$2:F627, F627, $P$2:P627, TRUE)>1,TRUE,FALSE)","v":false},{"$f":"OR(ISNUMBER(MATCH(Checklist[[#This Row],[Type]], $B$3:$B$22, 0)), Checklist[[#This Row],[Type]] = \"*\")","v":false}]
[null,null,null,"Features","Waffle Chart","FC.PROP03","Category Labels","Enables the display of labels for categories.","No","Yes",null,null,null,null,{"$f":"IF(COUNTIFS($F$2:F628, F628, $P$2:P628, TRUE)>1,TRUE,FALSE)","v":false},{"$f":"OR(ISNUMBER(MATCH(Checklist[[#This Row],[Type]], $B$3:$B$22, 0)), Checklist[[#This Row],[Type]] = \"*\")","v":false}]
[null,null,null,"Features","Waffle Chart","FC.PROP04","Borders Customization","Allows customization of borders for better visual distinction.","No","Yes",null,null,null,null,{"$f":"IF(COUNTIFS($F$2:F629, F629, $P$2:P629, TRUE)>1,TRUE,FALSE)","v":false},{"$f":"OR(ISNUMBER(MATCH(Checklist[[#This Row],[Type]], $B$3:$B$22, 0)), Checklist[[#This Row],[Type]] = \"*\")","v":false}]
[null,null,null,"Features","Waffle Chart","FC.PROP05","Pan & Zoom","Supports panning and zooming for better exploration of data.","No","Yes",null,null,null,null,{"$f":"IF(COUNTIFS($F$2:F630, F630, $P$2:P630, TRUE)>1,TRUE,FALSE)","v":false},{"$f":"OR(ISNUMBER(MATCH(Checklist[[#This Row],[Type]], $B$3:$B$22, 0)), Checklist[[#This Row],[Type]] = \"*\")","v":false}]
[null,null,null,"Features","Waffle Chart","FC.PROP06","Dynamic Sorting","Supports sorting data points based on specific columns or measures.","No","Yes",null,null,null,null,{"$f":"IF(COUNTIFS($F$2:F631, F631, $P$2:P631, TRUE)>1,TRUE,FALSE)","v":false},{"$f":"OR(ISNUMBER(MATCH(Checklist[[#This Row],[Type]], $B$3:$B$22, 0)), Checklist[[#This Row],[Type]] = \"*\")","v":false}]
[null,null,null,"Features","Waffle Chart","FC.PROP07","Multiple Selection with Lasso","Allows users to select multiple data points by drawing a lasso around them.","No","Yes",null,null,null,null,{"$f":"IF(COUNTIFS($F$2:F632, F632, $P$2:P632, TRUE)>1,TRUE,FALSE)","v":false},{"$f":"OR(ISNUMBER(MATCH(Checklist[[#This Row],[Type]], $B$3:$B$22, 0)), Checklist[[#This Row],[Type]] = \"*\")","v":false}]
[null,null,null,"Features","Waffle Chart","FT.WAFF01","Marker Customization","Allows users to customize the marker icon type.","No","Yes",null,null,null,null,{"$f":"IF(COUNTIFS($F$2:F633, F633, $P$2:P633, TRUE)>1,TRUE,FALSE)","v":false},{"$f":"OR(ISNUMBER(MATCH(Checklist[[#This Row],[Type]], $B$3:$B$22, 0)), Checklist[[#This Row],[Type]] = \"*\")","v":false}]
[null,null,null,"Features","Waffle Chart","FT.WAFF02","Distance Customization","Supports customization of the distance between markers for better visual appeal.","No","Yes",null,null,null,null,{"$f":"IF(COUNTIFS($F$2:F634, F634, $P$2:P634, TRUE)>1,TRUE,FALSE)","v":false},{"$f":"OR(ISNUMBER(MATCH(Checklist[[#This Row],[Type]], $B$3:$B$22, 0)), Checklist[[#This Row],[Type]] = \"*\")","v":false}]
[null,null,null,"Features","Waterfall Chart","FC.CART01","Axis Titles","Allows users to add titles to the X and Y axes for better context.","No","Yes",null,null,null,null,{"$f":"IF(COUNTIFS($F$2:F635, F635, $P$2:P635, TRUE)>1,TRUE,FALSE)","v":false},{"$f":"OR(ISNUMBER(MATCH(Checklist[[#This Row],[Type]], $B$3:$B$22, 0)), Checklist[[#This Row],[Type]] = \"*\")","v":false}]
[null,null,null,"Features","Waterfall Chart","FC.CART02","Axis Customization","Allows customization of the axis labels, tick marks, and scales.","No","Yes",null,null,null,null,{"$f":"IF(COUNTIFS($F$2:F636, F636, $P$2:P636, TRUE)>1,TRUE,FALSE)","v":false},{"$f":"OR(ISNUMBER(MATCH(Checklist[[#This Row],[Type]], $B$3:$B$22, 0)), Checklist[[#This Row],[Type]] = \"*\")","v":false}]
[null,null,null,"Features","Waterfall Chart","FC.CART04","Grid Lines","Supports grid lines to aid in reading data values.","No","Yes",null,null,null,null,{"$f":"IF(COUNTIFS($F$2:F637, F637, $P$2:P637, TRUE)>1,TRUE,FALSE)","v":false},{"$f":"OR(ISNUMBER(MATCH(Checklist[[#This Row],[Type]], $B$3:$B$22, 0)), Checklist[[#This Row],[Type]] = \"*\")","v":false}]
[null,null,null,"Features","Waterfall Chart","FC.CART05","Reference Lines","Supports adding reference lines to highlight specific values or thresholds.","No","Yes",null,null,null,null,{"$f":"IF(COUNTIFS($F$2:F638, F638, $P$2:P638, TRUE)>1,TRUE,FALSE)","v":false},{"$f":"OR(ISNUMBER(MATCH(Checklist[[#This Row],[Type]], $B$3:$B$22, 0)), Checklist[[#This Row],[Type]] = \"*\")","v":false}]
[null,null,null,"Features","Waterfall Chart","FC.CART07","Data Point Markers","Allows users to conditionally format data point markers.","No","Yes",null,null,null,null,{"$f":"IF(COUNTIFS($F$2:F639, F639, $P$2:P639, TRUE)>1,TRUE,FALSE)","v":false},{"$f":"OR(ISNUMBER(MATCH(Checklist[[#This Row],[Type]], $B$3:$B$22, 0)), Checklist[[#This Row],[Type]] = \"*\")","v":false}]
[null,null,null,"Features","Waterfall Chart","FC.CART08","Trend Lines","Supports adding trend lines to visualize data trends.","No","Yes",null,null,null,null,{"$f":"IF(COUNTIFS($F$2:F640, F640, $P$2:P640, TRUE)>1,TRUE,FALSE)","v":false},{"$f":"OR(ISNUMBER(MATCH(Checklist[[#This Row],[Type]], $B$3:$B$22, 0)), Checklist[[#This Row],[Type]] = \"*\")","v":false}]
[null,null,null,"Features","Waterfall Chart","FC.CART09","Pan & Zoom","Supports panning and zooming for better exploration of data.","No","Yes",null,null,null,null,{"$f":"IF(COUNTIFS($F$2:F641, F641, $P$2:P641, TRUE)>1,TRUE,FALSE)","v":false},{"$f":"OR(ISNUMBER(MATCH(Checklist[[#This Row],[Type]], $B$3:$B$22, 0)), Checklist[[#This Row],[Type]] = \"*\")","v":false}]
[null,null,null,"Features","Waterfall Chart","FC.CART10","Dynamic Sorting","Supports sorting data points based on specific columns or measures.","No","Yes",null,null,null,null,{"$f":"IF(COUNTIFS($F$2:F642, F642, $P$2:P642, TRUE)>1,TRUE,FALSE)","v":false},{"$f":"OR(ISNUMBER(MATCH(Checklist[[#This Row],[Type]], $B$3:$B$22, 0)), Checklist[[#This Row],[Type]] = \"*\")","v":false}]
[null,null,null,"Features","Waterfall Chart","FC.CART11","Custom Annotations","Allows users to add custom annotations based on data or conditions.","No","Yes",null,null,null,null,{"$f":"IF(COUNTIFS($F$2:F643, F643, $P$2:P643, TRUE)>1,TRUE,FALSE)","v":false},{"$f":"OR(ISNUMBER(MATCH(Checklist[[#This Row],[Type]], $B$3:$B$22, 0)), Checklist[[#This Row],[Type]] = \"*\")","v":false}]
[null,null,null,"Features","Waterfall Chart","FT.WATER01","Cumulative Totals","Supports displaying a line or additional bar indicating the cumulative total at each step.","No","Yes",null,null,null,null,{"$f":"IF(COUNTIFS($F$2:F644, F644, $P$2:P644, TRUE)>1,TRUE,FALSE)","v":false},{"$f":"OR(ISNUMBER(MATCH(Checklist[[#This Row],[Type]], $B$3:$B$22, 0)), Checklist[[#This Row],[Type]] = \"*\")","v":false}]
[null,null,null,"Features","Waterfall Chart","FT.WATER02","Stacked Bars","Allows users to switch between stacked and unstacked bars for better comparison.","No","Yes",null,null,null,null,{"$f":"IF(COUNTIFS($F$2:F645, F645, $P$2:P645, TRUE)>1,TRUE,FALSE)","v":false},{"$f":"OR(ISNUMBER(MATCH(Checklist[[#This Row],[Type]], $B$3:$B$22, 0)), Checklist[[#This Row],[Type]] = \"*\")","v":false}]
[null,null,null,"Features","Waterfall Chart","FT.WATER03","Multiple Orientations","Supports both horizontal and vertical orientations.","No","Yes",null,null,null,null,{"$f":"IF(COUNTIFS($F$2:F646, F646, $P$2:P646, TRUE)>1,TRUE,FALSE)","v":false},{"$f":"OR(ISNUMBER(MATCH(Checklist[[#This Row],[Type]], $B$3:$B$22, 0)), Checklist[[#This Row],[Type]] = \"*\")","v":false}]
[null,null,null,"Features","Word Cloud","FT.WORDS01","Word Orientation","Allows users to customize the orientation of words in the cloud.","No","Yes",null,null,null,null,{"$f":"IF(COUNTIFS($F$2:F647, F647, $P$2:P647, TRUE)>1,TRUE,FALSE)","v":false},{"$f":"OR(ISNUMBER(MATCH(Checklist[[#This Row],[Type]], $B$3:$B$22, 0)), Checklist[[#This Row],[Type]] = \"*\")","v":false}]
[null,null,null,"Features","Word Cloud","FT.WORDS02","Jittering","Allows words to be jittered to avoid overlap and improve visibility.","No","Yes",null,null,null,null,{"$f":"IF(COUNTIFS($F$2:F648, F648, $P$2:P648, TRUE)>1,TRUE,FALSE)","v":false},{"$f":"OR(ISNUMBER(MATCH(Checklist[[#This Row],[Type]], $B$3:$B$22, 0)), Checklist[[#This Row],[Type]] = \"*\")","v":false}]
[null,null,null,"Features","Word Cloud","FT.WORDS03","Custom Shape","Supports custom shapes for enclosing the word cloud.","No","Yes",null,null,null,null,{"$f":"IF(COUNTIFS($F$2:F649, F649, $P$2:P649, TRUE)>1,TRUE,FALSE)","v":false},{"$f":"OR(ISNUMBER(MATCH(Checklist[[#This Row],[Type]], $B$3:$B$22, 0)), Checklist[[#This Row],[Type]] = \"*\")","v":false}]
[null,null,null,"Features","3D Bar Chart","FC.CART01","Axis Titles","Allows users to add titles to the X and Y axes for better context.","No","Yes",null,null,null,null,{"$f":"IF(COUNTIFS($F$2:F650, F650, $P$2:P650, TRUE)>1,TRUE,FALSE)","v":false},{"$f":"OR(ISNUMBER(MATCH(Checklist[[#This Row],[Type]], $B$3:$B$22, 0)), Checklist[[#This Row],[Type]] = \"*\")","v":false}]
[null,null,null,"Features","3D Bar Chart","FC.CART02","Axis Customization","Allows customization of the axis labels, tick marks, and scales.","No","Yes",null,null,null,null,{"$f":"IF(COUNTIFS($F$2:F651, F651, $P$2:P651, TRUE)>1,TRUE,FALSE)","v":false},{"$f":"OR(ISNUMBER(MATCH(Checklist[[#This Row],[Type]], $B$3:$B$22, 0)), Checklist[[#This Row],[Type]] = \"*\")","v":false}]
[null,null,null,"Features","3D Bar Chart","FC.CART04","Grid Lines","Supports grid lines to aid in reading data values.","No","Yes",null,null,null,null,{"$f":"IF(COUNTIFS($F$2:F652, F652, $P$2:P652, TRUE)>1,TRUE,FALSE)","v":false},{"$f":"OR(ISNUMBER(MATCH(Checklist[[#This Row],[Type]], $B$3:$B$22, 0)), Checklist[[#This Row],[Type]] = \"*\")","v":false}]
[null,null,null,"Features","3D Bar Chart","FC.CART05","Reference Lines","Supports adding reference lines to highlight specific values or thresholds.","No","Yes",null,null,null,null,{"$f":"IF(COUNTIFS($F$2:F653, F653, $P$2:P653, TRUE)>1,TRUE,FALSE)","v":false},{"$f":"OR(ISNUMBER(MATCH(Checklist[[#This Row],[Type]], $B$3:$B$22, 0)), Checklist[[#This Row],[Type]] = \"*\")","v":false}]
[null,null,null,"Features","3D Bar Chart","FC.CART07","Data Point Markers","Allows users to conditionally format data point markers.","No","Yes",null,null,null,null,{"$f":"IF(COUNTIFS($F$2:F654, F654, $P$2:P654, TRUE)>1,TRUE,FALSE)","v":false},{"$f":"OR(ISNUMBER(MATCH(Checklist[[#This Row],[Type]], $B$3:$B$22, 0)), Checklist[[#This Row],[Type]] = \"*\")","v":false}]
[null,null,null,"Features","3D Bar Chart","FC.CART08","Trend Lines","Supports adding trend lines to visualize data trends.","No","Yes",null,null,null,null,{"$f":"IF(COUNTIFS($F$2:F655, F655, $P$2:P655, TRUE)>1,TRUE,FALSE)","v":false},{"$f":"OR(ISNUMBER(MATCH(Checklist[[#This Row],[Type]], $B$3:$B$22, 0)), Checklist[[#This Row],[Type]] = \"*\")","v":false}]
[null,null,null,"Features","3D Bar Chart","FC.CART09","Pan & Zoom","Supports panning and zooming for better exploration of data.","No","Yes",null,null,null,null,{"$f":"IF(COUNTIFS($F$2:F656, F656, $P$2:P656, TRUE)>1,TRUE,FALSE)","v":false},{"$f":"OR(ISNUMBER(MATCH(Checklist[[#This Row],[Type]], $B$3:$B$22, 0)), Checklist[[#This Row],[Type]] = \"*\")","v":false}]
[null,null,null,"Features","3D Bar Chart","FC.CART10","Dynamic Sorting","Supports sorting data points based on specific columns or measures.","No","Yes",null,null,null,null,{"$f":"IF(COUNTIFS($F$2:F657, F657, $P$2:P657, TRUE)>1,TRUE,FALSE)","v":false},{"$f":"OR(ISNUMBER(MATCH(Checklist[[#This Row],[Type]], $B$3:$B$22, 0)), Checklist[[#This Row],[Type]] = \"*\")","v":false}]
[null,null,null,"Features","3D Bar Chart","FC.CART11","Custom Annotations","Allows users to add custom annotations based on data or conditions.","No","Yes",null,null,null,null,{"$f":"IF(COUNTIFS($F$2:F658, F658, $P$2:P658, TRUE)>1,TRUE,FALSE)","v":false},{"$f":"OR(ISNUMBER(MATCH(Checklist[[#This Row],[Type]], $B$3:$B$22, 0)), Checklist[[#This Row],[Type]] = \"*\")","v":false}]
[null,null,null,"Features","3D Bar Chart","FC.3D01","3D Rotation","Allows users to rotate the 3D chart for better visualization.","No","Yes",null,null,null,null,{"$f":"IF(COUNTIFS($F$2:F659, F659, $P$2:P659, TRUE)>1,TRUE,FALSE)","v":false},{"$f":"OR(ISNUMBER(MATCH(Checklist[[#This Row],[Type]], $B$3:$B$22, 0)), Checklist[[#This Row],[Type]] = \"*\")","v":false}]
[null,null,null,"Features","3D Bar Chart","FC.3D02","3D Depth","Supports adjusting the depth of the 3D chart for better perspective.","No","Yes",null,null,null,null,{"$f":"IF(COUNTIFS($F$2:F660, F660, $P$2:P660, TRUE)>1,TRUE,FALSE)","v":false},{"$f":"OR(ISNUMBER(MATCH(Checklist[[#This Row],[Type]], $B$3:$B$22, 0)), Checklist[[#This Row],[Type]] = \"*\")","v":false}]
[null,null,null,"Features","3D Bar Chart","FC.3D03","3D Shading & Lighting","Supports shading and lighting effects to enhance the 3D chart appearance.","No","Yes",null,null,null,null,{"$f":"IF(COUNTIFS($F$2:F661, F661, $P$2:P661, TRUE)>1,TRUE,FALSE)","v":false},{"$f":"OR(ISNUMBER(MATCH(Checklist[[#This Row],[Type]], $B$3:$B$22, 0)), Checklist[[#This Row],[Type]] = \"*\")","v":false}]
[null,null,null,"Features","3D Pie/Donut Chart","FC.POLAR03","Grid Lines","Supports grid lines to aid in reading data values.","No","Yes",null,null,null,null,{"$f":"IF(COUNTIFS($F$2:F662, F662, $P$2:P662, TRUE)>1,TRUE,FALSE)","v":false},{"$f":"OR(ISNUMBER(MATCH(Checklist[[#This Row],[Type]], $B$3:$B$22, 0)), Checklist[[#This Row],[Type]] = \"*\")","v":false}]
[null,null,null,"Features","3D Pie/Donut Chart","FC.POLAR05","Category Labels","Enables the display of labels for categories.","No","Yes",null,null,null,null,{"$f":"IF(COUNTIFS($F$2:F663, F663, $P$2:P663, TRUE)>1,TRUE,FALSE)","v":false},{"$f":"OR(ISNUMBER(MATCH(Checklist[[#This Row],[Type]], $B$3:$B$22, 0)), Checklist[[#This Row],[Type]] = \"*\")","v":false}]
[null,null,null,"Features","3D Pie/Donut Chart","FC.POLAR06","Custom Grouping","Allows users to group data points or categories based on specific criteria to avoid displaying too much data.","No","Yes",null,null,null,null,{"$f":"IF(COUNTIFS($F$2:F664, F664, $P$2:P664, TRUE)>1,TRUE,FALSE)","v":false},{"$f":"OR(ISNUMBER(MATCH(Checklist[[#This Row],[Type]], $B$3:$B$22, 0)), Checklist[[#This Row],[Type]] = \"*\")","v":false}]
[null,null,null,"Features","3D Pie/Donut Chart","FC.POLAR07","Exploded Views","Separating segments slightly to emphasize them.","No","Yes",null,null,null,null,{"$f":"IF(COUNTIFS($F$2:F665, F665, $P$2:P665, TRUE)>1,TRUE,FALSE)","v":false},{"$f":"OR(ISNUMBER(MATCH(Checklist[[#This Row],[Type]], $B$3:$B$22, 0)), Checklist[[#This Row],[Type]] = \"*\")","v":false}]
[null,null,null,"Features","3D Pie/Donut Chart","FC.POLAR08","Custom Annotations","Allows users to add custom annotations based on data or conditions.","No","Yes",null,null,null,null,{"$f":"IF(COUNTIFS($F$2:F666, F666, $P$2:P666, TRUE)>1,TRUE,FALSE)","v":false},{"$f":"OR(ISNUMBER(MATCH(Checklist[[#This Row],[Type]], $B$3:$B$22, 0)), Checklist[[#This Row],[Type]] = \"*\")","v":false}]
[null,null,null,"Features","3D Pie/Donut Chart","FC.POLAR09","3D Effects","Supports 3D effects to enhance the visual appearance.","No","Yes",null,null,null,null,{"$f":"IF(COUNTIFS($F$2:F667, F667, $P$2:P667, TRUE)>1,TRUE,FALSE)","v":false},{"$f":"OR(ISNUMBER(MATCH(Checklist[[#This Row],[Type]], $B$3:$B$22, 0)), Checklist[[#This Row],[Type]] = \"*\")","v":false}]
[null,null,null,"Features","3D Pie/Donut Chart","FC.3D01","3D Rotation","Allows users to rotate the 3D chart for better visualization.","No","Yes",null,null,null,null,{"$f":"IF(COUNTIFS($F$2:F668, F668, $P$2:P668, TRUE)>1,TRUE,FALSE)","v":false},{"$f":"OR(ISNUMBER(MATCH(Checklist[[#This Row],[Type]], $B$3:$B$22, 0)), Checklist[[#This Row],[Type]] = \"*\")","v":false}]
[null,null,null,"Features","3D Pie/Donut Chart","FC.3D02","3D Depth","Supports adjusting the depth of the 3D chart for better perspective.","No","Yes",null,null,null,null,{"$f":"IF(COUNTIFS($F$2:F669, F669, $P$2:P669, TRUE)>1,TRUE,FALSE)","v":false},{"$f":"OR(ISNUMBER(MATCH(Checklist[[#This Row],[Type]], $B$3:$B$22, 0)), Checklist[[#This Row],[Type]] = \"*\")","v":false}]
[null,null,null,"Features","3D Pie/Donut Chart","FC.3D03","3D Shading & Lighting","Supports shading and lighting effects to enhance the 3D chart appearance.","No","Yes",null,null,null,null,{"$f":"IF(COUNTIFS($F$2:F670, F670, $P$2:P670, TRUE)>1,TRUE,FALSE)","v":false},{"$f":"OR(ISNUMBER(MATCH(Checklist[[#This Row],[Type]], $B$3:$B$22, 0)), Checklist[[#This Row],[Type]] = \"*\")","v":false}]
[null,null,null,"Features","3D Scatter Plot","FT.3DSCAT01","Jittering","Allows data points to be jittered to avoid overlap and improve visibility.","No","Yes",null,null,null,null,{"$f":"IF(COUNTIFS($F$2:F671, F671, $P$2:P671, TRUE)>1,TRUE,FALSE)","v":false},{"$f":"OR(ISNUMBER(MATCH(Checklist[[#This Row],[Type]], $B$3:$B$22, 0)), Checklist[[#This Row],[Type]] = \"*\")","v":false}]
[null,null,null,"Features","3D Scatter Plot","FT.3DSCAT02","Clustering","Groups nearby data points into clusters for better visualization of density.","No","Yes",null,null,null,null,{"$f":"IF(COUNTIFS($F$2:F672, F672, $P$2:P672, TRUE)>1,TRUE,FALSE)","v":false},{"$f":"OR(ISNUMBER(MATCH(Checklist[[#This Row],[Type]], $B$3:$B$22, 0)), Checklist[[#This Row],[Type]] = \"*\")","v":false}]
[null,null,null,"Features","3D Surface Plot","FC.CART01","Axis Titles","Allows users to add titles to the X and Y axes for better context.","No","Yes",null,null,null,null,{"$f":"IF(COUNTIFS($F$2:F673, F673, $P$2:P673, TRUE)>1,TRUE,FALSE)","v":false},{"$f":"OR(ISNUMBER(MATCH(Checklist[[#This Row],[Type]], $B$3:$B$22, 0)), Checklist[[#This Row],[Type]] = \"*\")","v":false}]
[null,null,null,"Features","3D Surface Plot","FC.CART02","Axis Customization","Allows customization of the axis labels, tick marks, and scales.","No","Yes",null,null,null,null,{"$f":"IF(COUNTIFS($F$2:F674, F674, $P$2:P674, TRUE)>1,TRUE,FALSE)","v":false},{"$f":"OR(ISNUMBER(MATCH(Checklist[[#This Row],[Type]], $B$3:$B$22, 0)), Checklist[[#This Row],[Type]] = \"*\")","v":false}]
[null,null,null,"Features","3D Surface Plot","FC.CART04","Grid Lines","Supports grid lines to aid in reading data values.","No","Yes",null,null,null,null,{"$f":"IF(COUNTIFS($F$2:F675, F675, $P$2:P675, TRUE)>1,TRUE,FALSE)","v":false},{"$f":"OR(ISNUMBER(MATCH(Checklist[[#This Row],[Type]], $B$3:$B$22, 0)), Checklist[[#This Row],[Type]] = \"*\")","v":false}]
[null,null,null,"Features","3D Surface Plot","FC.CART05","Reference Lines","Supports adding reference lines to highlight specific values or thresholds.","No","Yes",null,null,null,null,{"$f":"IF(COUNTIFS($F$2:F676, F676, $P$2:P676, TRUE)>1,TRUE,FALSE)","v":false},{"$f":"OR(ISNUMBER(MATCH(Checklist[[#This Row],[Type]], $B$3:$B$22, 0)), Checklist[[#This Row],[Type]] = \"*\")","v":false}]
[null,null,null,"Features","3D Surface Plot","FC.CART07","Data Point Markers","Allows users to conditionally format data point markers.","No","Yes",null,null,null,null,{"$f":"IF(COUNTIFS($F$2:F677, F677, $P$2:P677, TRUE)>1,TRUE,FALSE)","v":false},{"$f":"OR(ISNUMBER(MATCH(Checklist[[#This Row],[Type]], $B$3:$B$22, 0)), Checklist[[#This Row],[Type]] = \"*\")","v":false}]
[null,null,null,"Features","3D Surface Plot","FC.CART08","Trend Lines","Supports adding trend lines to visualize data trends.","No","Yes",null,null,null,null,{"$f":"IF(COUNTIFS($F$2:F678, F678, $P$2:P678, TRUE)>1,TRUE,FALSE)","v":false},{"$f":"OR(ISNUMBER(MATCH(Checklist[[#This Row],[Type]], $B$3:$B$22, 0)), Checklist[[#This Row],[Type]] = \"*\")","v":false}]
[null,null,null,"Features","3D Surface Plot","FC.CART09","Pan & Zoom","Supports panning and zooming for better exploration of data.","No","Yes",null,null,null,null,{"$f":"IF(COUNTIFS($F$2:F679, F679, $P$2:P679, TRUE)>1,TRUE,FALSE)","v":false},{"$f":"OR(ISNUMBER(MATCH(Checklist[[#This Row],[Type]], $B$3:$B$22, 0)), Checklist[[#This Row],[Type]] = \"*\")","v":false}]
[null,null,null,"Features","3D Surface Plot","FC.CART10","Dynamic Sorting","Supports sorting data points based on specific columns or measures.","No","Yes",null,null,null,null,{"$f":"IF(COUNTIFS($F$2:F680, F680, $P$2:P680, TRUE)>1,TRUE,FALSE)","v":false},{"$f":"OR(ISNUMBER(MATCH(Checklist[[#This Row],[Type]], $B$3:$B$22, 0)), Checklist[[#This Row],[Type]] = \"*\")","v":false}]
[null,null,null,"Features","3D Surface Plot","FC.CART11","Custom Annotations","Allows users to add custom annotations based on data or conditions.","No","Yes",null,null,null,null,{"$f":"IF(COUNTIFS($F$2:F681, F681, $P$2:P681, TRUE)>1,TRUE,FALSE)","v":false},{"$f":"OR(ISNUMBER(MATCH(Checklist[[#This Row],[Type]], $B$3:$B$22, 0)), Checklist[[#This Row],[Type]] = \"*\")","v":false}]
[null,null,null,"Features","3D Surface Plot","FC.3D01","3D Rotation","Allows users to rotate the 3D chart for better visualization.","No","Yes",null,null,null,null,{"$f":"IF(COUNTIFS($F$2:F682, F682, $P$2:P682, TRUE)>1,TRUE,FALSE)","v":false},{"$f":"OR(ISNUMBER(MATCH(Checklist[[#This Row],[Type]], $B$3:$B$22, 0)), Checklist[[#This Row],[Type]] = \"*\")","v":false}]
[null,null,null,"Features","3D Surface Plot","FC.3D02","3D Depth","Supports adjusting the depth of the 3D chart for better perspective.","No","Yes",null,null,null,null,{"$f":"IF(COUNTIFS($F$2:F683, F683, $P$2:P683, TRUE)>1,TRUE,FALSE)","v":false},{"$f":"OR(ISNUMBER(MATCH(Checklist[[#This Row],[Type]], $B$3:$B$22, 0)), Checklist[[#This Row],[Type]] = \"*\")","v":false}]
[null,null,null,"Features","3D Surface Plot","FC.3D03","3D Shading & Lighting","Supports shading and lighting effects to enhance the 3D chart appearance.","No","Yes",null,null,null,null,{"$f":"IF(COUNTIFS($F$2:F684, F684, $P$2:P684, TRUE)>1,TRUE,FALSE)","v":false},{"$f":"OR(ISNUMBER(MATCH(Checklist[[#This Row],[Type]], $B$3:$B$22, 0)), Checklist[[#This Row],[Type]] = \"*\")","v":false}]
[null,null,null,"Design","*","D00","Look and Feel","Overall aesthetic quality of the visual.","Terrible","Poor","Average","Good","Excellent",null,{"$f":"IF(COUNTIFS($F$2:F685, F685, $P$2:P685, TRUE)>1,TRUE,FALSE)","v":false},{"$f":"OR(ISNUMBER(MATCH(Checklist[[#This Row],[Type]], $B$3:$B$22, 0)), Checklist[[#This Row],[Type]] = \"*\")","v":true}]
[null,null,null,"Design","*","D01","Power BI Design Adherence","Consistency with Power BI's design guidelines.","No","Yes",null,null,null,null,{"$f":"IF(COUNTIFS($F$2:F686, F686, $P$2:P686, TRUE)>1,TRUE,FALSE)","v":false},{"$f":"OR(ISNUMBER(MATCH(Checklist[[#This Row],[Type]], $B$3:$B$22, 0)), Checklist[[#This Row],[Type]] = \"*\")","v":true}]
[null,null,null,"Design","*","D02","Consistent Design Across UI","Uniformity in design elements throughout the visual interface.","No","Yes",null,null,null,null,{"$f":"IF(COUNTIFS($F$2:F687, F687, $P$2:P687, TRUE)>1,TRUE,FALSE)","v":false},{"$f":"OR(ISNUMBER(MATCH(Checklist[[#This Row],[Type]], $B$3:$B$22, 0)), Checklist[[#This Row],[Type]] = \"*\")","v":true}]
[null,null,null,"Design","*","D07","Visual Type(s) Design Adherence","Consistency with design principles for the chosen visual type(s).","No","Partially","Yes",null,null,null,{"$f":"IF(COUNTIFS($F$2:F688, F688, $P$2:P688, TRUE)>1,TRUE,FALSE)","v":false},{"$f":"OR(ISNUMBER(MATCH(Checklist[[#This Row],[Type]], $B$3:$B$22, 0)), Checklist[[#This Row],[Type]] = \"*\")","v":true}]
[null,null,null,"Design","*","D03","High Quality Images or Icons","Uses high-resolution images where applicable.","No","Yes",null,null,null,null,{"$f":"IF(COUNTIFS($F$2:F689, F689, $P$2:P689, TRUE)>1,TRUE,FALSE)","v":false},{"$f":"OR(ISNUMBER(MATCH(Checklist[[#This Row],[Type]], $B$3:$B$22, 0)), Checklist[[#This Row],[Type]] = \"*\")","v":true}]
[null,null,null,"Design","*","D04","Easy to Use and Intuitive","User-friendly design that is easy to navigate and understand.","No","Yes",null,null,null,null,{"$f":"IF(COUNTIFS($F$2:F690, F690, $P$2:P690, TRUE)>1,TRUE,FALSE)","v":false},{"$f":"OR(ISNUMBER(MATCH(Checklist[[#This Row],[Type]], $B$3:$B$22, 0)), Checklist[[#This Row],[Type]] = \"*\")","v":true}]
[null,null,null,"Design","*","D05","Wizard or Setup Guide","Provides a setup wizard to guide users in the visual.","No","Yes",null,null,null,null,{"$f":"IF(COUNTIFS($F$2:F691, F691, $P$2:P691, TRUE)>1,TRUE,FALSE)","v":false},{"$f":"OR(ISNUMBER(MATCH(Checklist[[#This Row],[Type]], $B$3:$B$22, 0)), Checklist[[#This Row],[Type]] = \"*\")","v":true}]
[null,null,null,"Design","*","D06","Visual Size Responsiveness","How well the visual adapts to different visual sizes","No","Partially","Yes",null,null,null,{"$f":"IF(COUNTIFS($F$2:F692, F692, $P$2:P692, TRUE)>1,TRUE,FALSE)","v":false},{"$f":"OR(ISNUMBER(MATCH(Checklist[[#This Row],[Type]], $B$3:$B$22, 0)), Checklist[[#This Row],[Type]] = \"*\")","v":true}]
[null,null,null,"Design","*","D10","Accessibility Features","Support for accessibility features like screen readers, keyboard navigation, etc.","Not Available","Poor","Good",null,null,null,{"$f":"IF(COUNTIFS($F$2:F693, F693, $P$2:P693, TRUE)>1,TRUE,FALSE)","v":false},{"$f":"OR(ISNUMBER(MATCH(Checklist[[#This Row],[Type]], $B$3:$B$22, 0)), Checklist[[#This Row],[Type]] = \"*\")","v":true}]
[null,null,null,"Design","*","D11","Multiple Language Localization","Support for multiple languages interface.","No","Partial","Full",null,null,null,{"$f":"IF(COUNTIFS($F$2:F694, F694, $P$2:P694, TRUE)>1,TRUE,FALSE)","v":false},{"$f":"OR(ISNUMBER(MATCH(Checklist[[#This Row],[Type]], $B$3:$B$22, 0)), Checklist[[#This Row],[Type]] = \"*\")","v":true}]
[null,null,null,"Design","*","D12","Power BI Theme Support","Support for Power BI themes to match the visual with the report theme.","No","Partial","Full",null,null,null,{"$f":"IF(COUNTIFS($F$2:F695, F695, $P$2:P695, TRUE)>1,TRUE,FALSE)","v":false},{"$f":"OR(ISNUMBER(MATCH(Checklist[[#This Row],[Type]], $B$3:$B$22, 0)), Checklist[[#This Row],[Type]] = \"*\")","v":true}]
[null,null,null,"Design","*","D20","Loading Time","Time taken to load the visual in Power BI with typical data volumes.","Slow","Average","Fast",null,null,null,{"$f":"IF(COUNTIFS($F$2:F696, F696, $P$2:P696, TRUE)>1,TRUE,FALSE)","v":false},{"$f":"OR(ISNUMBER(MATCH(Checklist[[#This Row],[Type]], $B$3:$B$22, 0)), Checklist[[#This Row],[Type]] = \"*\")","v":true}]
[null,null,null,"Design","*","D21","Interaction Responsiveness","How quickly the visual responds to user interactions.","Poor","Good","Excellent",null,null,null,{"$f":"IF(COUNTIFS($F$2:F697, F697, $P$2:P697, TRUE)>1,TRUE,FALSE)","v":false},{"$f":"OR(ISNUMBER(MATCH(Checklist[[#This Row],[Type]], $B$3:$B$22, 0)), Checklist[[#This Row],[Type]] = \"*\")","v":true}]
[null,null,null,"Design","*","D22","Scalability","The visual's ability to handle large datasets without performance degradation.","Terrible","Poor","Average","Good","Excellent",null,{"$f":"IF(COUNTIFS($F$2:F698, F698, $P$2:P698, TRUE)>1,TRUE,FALSE)","v":false},{"$f":"OR(ISNUMBER(MATCH(Checklist[[#This Row],[Type]], $B$3:$B$22, 0)), Checklist[[#This Row],[Type]] = \"*\")","v":true}]
[null,null,null,"Design","*","D23","Performance Optimization Features","Availability of features like data reduction or performance settings.","No","Yes",null,null,null,null,{"$f":"IF(COUNTIFS($F$2:F699, F699, $P$2:P699, TRUE)>1,TRUE,FALSE)","v":false},{"$f":"OR(ISNUMBER(MATCH(Checklist[[#This Row],[Type]], $B$3:$B$22, 0)), Checklist[[#This Row],[Type]] = \"*\")","v":true}]
[null,null,null,"Support","*","S00","Email Support","Availability of email support for users (also through a form).","No","Yes",null,null,null,null,{"$f":"IF(COUNTIFS($F$2:F700, F700, $P$2:P700, TRUE)>1,TRUE,FALSE)","v":false},{"$f":"OR(ISNUMBER(MATCH(Checklist[[#This Row],[Type]], $B$3:$B$22, 0)), Checklist[[#This Row],[Type]] = \"*\")","v":true}]
[null,null,null,"Support","*","S01","Chat Support","Availability of chat support for users.","No","AI","Human",null,null,null,{"$f":"IF(COUNTIFS($F$2:F701, F701, $P$2:P701, TRUE)>1,TRUE,FALSE)","v":false},{"$f":"OR(ISNUMBER(MATCH(Checklist[[#This Row],[Type]], $B$3:$B$22, 0)), Checklist[[#This Row],[Type]] = \"*\")","v":true}]
[null,null,null,"Support","*","S02","Phone Support","Availability of phone support for users.","No","Yes",null,null,null,null,{"$f":"IF(COUNTIFS($F$2:F702, F702, $P$2:P702, TRUE)>1,TRUE,FALSE)","v":false},{"$f":"OR(ISNUMBER(MATCH(Checklist[[#This Row],[Type]], $B$3:$B$22, 0)), Checklist[[#This Row],[Type]] = \"*\")","v":true}]
[null,null,null,"Support","*","S10","Documentation Site","Presence of a dedicated documentation website or specific area.","No","Yes",null,null,null,null,{"$f":"IF(COUNTIFS($F$2:F703, F703, $P$2:P703, TRUE)>1,TRUE,FALSE)","v":false},{"$f":"OR(ISNUMBER(MATCH(Checklist[[#This Row],[Type]], $B$3:$B$22, 0)), Checklist[[#This Row],[Type]] = \"*\")","v":true}]
[null,null,null,"Support","*","S11","Screenshots or Screencasts in Documentation","Presence of screenshots or screencast in the documentation.","None","Some","Extensive",null,null,null,{"$f":"IF(COUNTIFS($F$2:F704, F704, $P$2:P704, TRUE)>1,TRUE,FALSE)","v":false},{"$f":"OR(ISNUMBER(MATCH(Checklist[[#This Row],[Type]], $B$3:$B$22, 0)), Checklist[[#This Row],[Type]] = \"*\")","v":true}]
[null,null,null,"Support","*","S12","Step-by-step Instructions in Documentation","Detailed guidance on using the visual in the documentation.","No","Yes",null,null,null,null,{"$f":"IF(COUNTIFS($F$2:F705, F705, $P$2:P705, TRUE)>1,TRUE,FALSE)","v":false},{"$f":"OR(ISNUMBER(MATCH(Checklist[[#This Row],[Type]], $B$3:$B$22, 0)), Checklist[[#This Row],[Type]] = \"*\")","v":true}]
[null,null,null,"Support","*","S13","Troubleshooting","Provides solutions for common issues.","No","Yes",null,null,null,null,{"$f":"IF(COUNTIFS($F$2:F706, F706, $P$2:P706, TRUE)>1,TRUE,FALSE)","v":false},{"$f":"OR(ISNUMBER(MATCH(Checklist[[#This Row],[Type]], $B$3:$B$22, 0)), Checklist[[#This Row],[Type]] = \"*\")","v":true}]
[null,null,null,"Support","*","S14","Glossary","Includes a glossary of terms used in the visual.","No","Yes",null,null,null,null,{"$f":"IF(COUNTIFS($F$2:F707, F707, $P$2:P707, TRUE)>1,TRUE,FALSE)","v":false},{"$f":"OR(ISNUMBER(MATCH(Checklist[[#This Row],[Type]], $B$3:$B$22, 0)), Checklist[[#This Row],[Type]] = \"*\")","v":true}]
[null,null,null,"Support","*","S15","Up-to-Date Documentation","Documentation is current with the latest version of the visual.","No","Partially","Yes",null,null,null,{"$f":"IF(COUNTIFS($F$2:F708, F708, $P$2:P708, TRUE)>1,TRUE,FALSE)","v":false},{"$f":"OR(ISNUMBER(MATCH(Checklist[[#This Row],[Type]], $B$3:$B$22, 0)), Checklist[[#This Row],[Type]] = \"*\")","v":true}]
[null,null,null,"Support","*","S16","Documentation Search","Ability to search within the documentation.","Not Available","Poor","Good",null,null,null,{"$f":"IF(COUNTIFS($F$2:F709, F709, $P$2:P709, TRUE)>1,TRUE,FALSE)","v":false},{"$f":"OR(ISNUMBER(MATCH(Checklist[[#This Row],[Type]], $B$3:$B$22, 0)), Checklist[[#This Row],[Type]] = \"*\")","v":true}]
[null,null,null,"Support","*","S17","Well-Written Documentation","The documentation is clear, concise, and easy to understand for an international average audience.","No","Yes",null,null,null,null,{"$f":"IF(COUNTIFS($F$2:F710, F710, $P$2:P710, TRUE)>1,TRUE,FALSE)","v":false},{"$f":"OR(ISNUMBER(MATCH(Checklist[[#This Row],[Type]], $B$3:$B$22, 0)), Checklist[[#This Row],[Type]] = \"*\")","v":true}]
[null,null,null,"Support","*","S20","Articles","Detailed tutorials provided as articles.","No","Yes",null,null,null,null,{"$f":"IF(COUNTIFS($F$2:F711, F711, $P$2:P711, TRUE)>1,TRUE,FALSE)","v":false},{"$f":"OR(ISNUMBER(MATCH(Checklist[[#This Row],[Type]], $B$3:$B$22, 0)), Checklist[[#This Row],[Type]] = \"*\")","v":true}]
[null,null,null,"Support","*","S21","Comprehensive Videos","Video tutorials covering various aspects of the visual.","No","Yes",null,null,null,null,{"$f":"IF(COUNTIFS($F$2:F712, F712, $P$2:P712, TRUE)>1,TRUE,FALSE)","v":false},{"$f":"OR(ISNUMBER(MATCH(Checklist[[#This Row],[Type]], $B$3:$B$22, 0)), Checklist[[#This Row],[Type]] = \"*\")","v":true}]
[null,null,null,"Support","*","S22","Use Cases","Provides real-world use cases for the visual.","No","Yes",null,null,null,null,{"$f":"IF(COUNTIFS($F$2:F713, F713, $P$2:P713, TRUE)>1,TRUE,FALSE)","v":false},{"$f":"OR(ISNUMBER(MATCH(Checklist[[#This Row],[Type]], $B$3:$B$22, 0)), Checklist[[#This Row],[Type]] = \"*\")","v":true}]
[null,null,null,"Support","*","S30","Community Forum","Availability of a community forum for user discussions.","No","Yes",null,null,null,null,{"$f":"IF(COUNTIFS($F$2:F714, F714, $P$2:P714, TRUE)>1,TRUE,FALSE)","v":false},{"$f":"OR(ISNUMBER(MATCH(Checklist[[#This Row],[Type]], $B$3:$B$22, 0)), Checklist[[#This Row],[Type]] = \"*\")","v":true}]
[null,null,null,"Support","*","S40","Issues Tracker","Allows users to report issues or bugs on GitHub or other platforms.","No","Yes",null,null,null,null,{"$f":"IF(COUNTIFS($F$2:F715, F715, $P$2:P715, TRUE)>1,TRUE,FALSE)","v":false},{"$f":"OR(ISNUMBER(MATCH(Checklist[[#This Row],[Type]], $B$3:$B$22, 0)), Checklist[[#This Row],[Type]] = \"*\")","v":true}]
[null,null,null,"Support","*","S41","Open Issues","Number of unresolved issues.","Many","Some","None",null,null,null,{"$f":"IF(COUNTIFS($F$2:F716, F716, $P$2:P716, TRUE)>1,TRUE,FALSE)","v":false},{"$f":"OR(ISNUMBER(MATCH(Checklist[[#This Row],[Type]], $B$3:$B$22, 0)), Checklist[[#This Row],[Type]] = \"*\")","v":true}]
[null,null,null,"Support","*","S50","FAQ","Availability of a Frequently asked questions page.","Not Available","Incomplete","Exhaustive",null,null,null,{"$f":"IF(COUNTIFS($F$2:F717, F717, $P$2:P717, TRUE)>1,TRUE,FALSE)","v":false},{"$f":"OR(ISNUMBER(MATCH(Checklist[[#This Row],[Type]], $B$3:$B$22, 0)), Checklist[[#This Row],[Type]] = \"*\")","v":true}]
[null,null,null,"Support","*","S51","Changelog","Provides a changelog of updates and new features.","No","Yes",null,null,null,null,{"$f":"IF(COUNTIFS($F$2:F718, F718, $P$2:P718, TRUE)>1,TRUE,FALSE)","v":false},{"$f":"OR(ISNUMBER(MATCH(Checklist[[#This Row],[Type]], $B$3:$B$22, 0)), Checklist[[#This Row],[Type]] = \"*\")","v":true}]

{"sheet":"Types","index":2,"n_rows":89,"n_cols":1,"rows_kept":89,"cut":false,"hidden":true,"merged":[]}
["3D Bar Chart"]
["3D Bubble/Scatter Chart"]
["3D Pie/Donut Chart"]
["3D Surface Plot"]
["Arc Diagram"]
["Area Chart"]
["Bar Chart"]
["Beeswarm Chart"]
["Bowtie Chart"]
["Box & Whisker Plot"]
["Bubble Map"]
["Bubble/Scatter Chart"]
["Bullet Chart"]
["Bump Chart"]
["Calendar"]
["Candlestick Chart"]
["Card"]
["Cartogram"]
["Chart on Map"]
["Chord Diagram"]
["Choropleth Map"]
["Circle Packing"]
["Combo Chart"]
["Control Filter"]
["Date Filter"]
["Decorative Element"]
["Dendrogram"]
["Density Plot"]
["Dot Matrix Chart"]
["Dot Plot"]
["Dumbbell Chart"]
["Fan Chart"]
["Flow Chart"]
["Flow Map"]
["Funnel Chart"]
["Gantt Chart"]
["Gauge"]
["Heatmap"]
["Hexbin Map"]
["Histogram"]
["Illustration Diagram"]
["Infographic"]
["Isopleth Map"]
["Joy Plot"]
["KPI"]
["Likert Scale Chart"]
["Line Chart"]
["List Filter"]
["Lollipop Chart"]
["Marimekko Chart"]
["Matrix"]
["Mind Map"]
["Motion Chart"]
["Narrative"]
["Network Diagram"]
["Org Chart"]
["Parallel Coordinates Plot"]
["Pareto Chart"]
["Pictogram Chart"]
["Pie/Donut Chart"]
["Point & Figure Chart"]
["Polar Area Chart"]
["Population Pyramid"]
["Proportional Area Chart"]
["Pyramid Chart"]
["Radar Chart"]
["Radial Bar Chart"]
["Ribbon Chart"]
["Risk Matrix"]
["Sankey Diagram"]
["Sparklines"]
["Spiral Plot"]
["Stream Chart"]
["Sunburst Chart"]
["Table"]
["Text Filter"]
["Timeline"]
["Timetable"]
["Tornado Diagram"]
["Tree Diagram"]
["Treemap"]
["Venn Diagram"]
["Violin Plot"]
["Visual Builder"]
["Voronoi Diagram"]
["Waffle Chart"]
["Waterfall Chart"]
["Word Cloud"]
["Other"]